Workbook

Sheet Start Page
P5: This tool will help you to produce a cost comparison between a GreenBridge Windows Server 2016 deployment and a traditional PC deployment. You can access the user guide for the tool by clicking here.
P7: Key Windows Server 2016 Benefits
P8: §More computing at lower total cost of acquisition and ownership
P9: §Engaged students, empowered employees
P10: §Simple technology, working for you
P11: Microsoft Differentiators
P12: §Familiar Windows experience
P13: §Based on the latest Windows client and server technology
P14: §Supported by Microsoft with access to updates, service packs, and security fixes
P15: §Broad partner ecosystem
BH16: Enter value or select from Dropdown box in each cell
A17: 1 | P17: =Text!B55 -> What is the organization's name? | BG17: ?
A18: 1 | P18: Is your organization a qualified academic institution or a business? | BG18: ? | BH18: Academic
A19: 1 | P19: How many stations do you plan to deploy? | BG19: ? | BH19: 1000
A20: 1 | P20: =Text!B57 -> Where is the organization located? | BG20: ? | BH20: United States
A21: 1
A22: 1 | P22: What usage scenario do you want to design for? | BG22: ? | BH22: Internet, productivity and light multimedia
A23: 1 | P23: Will you reuse devices (desktops, laptops, netbooks, thin-clients, etc.) as stations? | BG23: ? | BH23: No
A24: 1 | P24: Will you reuse monitors, keyboards, mice? | BG24: ? | BH24: No
A25: 1 | P25: Will all stations be located within 5 meters of their host computer? | BG25: ? | BH25: No
A26: 1
A27: 1
A28: 1
A29: 1
A30: 1
A31: 1 | P31: =Text!B59 -> Although great care has been taken to ensure the accuracy and completeness of results derived from this tool, this tool should be used for informational purposes only, and Microsoft makes no warranties, express, implied or statutory, as to the information generated by the tool or any organization's achievement of the potential benefits estimated by using Microsoft solutions or products. Use, disclosure or reproduction of this tool is prohibited without the prior written permission of Microsoft Corporation.
P32: v1.0 | S32: 2016-12-01

Sheet International
H2: =Text!B744 -> International Settings
H3: =Text!B745 -> Currency for the analysis | BT3: ? | BU3: =IFERROR(VLOOKUP(Country,FD12:FH257,2,FALSE),"") -> dollar
H4: =Text!B746 -> Currency symbol | BK4: =Text!B750 -> New Rate | BU4: =IFERROR(VLOOKUP(Country,FD12:FH257,3,FALSE),"") -> US$
H5: =Text!B747 -> Exchange Rate - amount of selected currency equal to 1 US$. | BK5: ? | BL5: 0 | BT5: =BU3&BU4 -> dollarUS$ | BU5: =IFERROR(VLOOKUP(Country,FD12:FH257,4,FALSE),0) -> 1
BG7: =Text!B748 -> Thousands Separator | BR7: =Text!B749 -> Decimal Symbol
H9: Number format for tool and report | AN9: , | AX9: . | BG9: ? | BH9: , | BR9: .
BN10: 1000
BH11: =Text!B753 -> Example of number format
FC12: ='Country information'!N2 -> Afghanistan | FD12: ='Country information'!O2 -> Afghanistan | FE12: ='Country information'!C2 -> afghani | FF12: ='Country information'!D2 -> ؋ | FG12: ='Country information'!E2 -> 44.5 | FH12: ='Country information'!F2 -> 40592.406
FC13: ='Country information'!N3 -> Albania | FD13: ='Country information'!O3 -> Albania | FE13: ='Country information'!C3 -> lek | FF13: ='Country information'!D3 -> Lek | FG13: ='Country information'!E3 -> 106.36 | FH13: ='Country information'!F3 -> 40592.406
FC14: ='Country information'!N4 -> Algeria | FD14: ='Country information'!O4 -> Algeria | FE14: ='Country information'!C4 -> dinar | FF14: ='Country information'!D4 -> DA | FG14: ='Country information'!E4 -> 73.15 | FH14: ='Country information'!F4 -> 40592.406
FC15: ='Country information'!N5 -> American Samoa | FD15: ='Country information'!O5 -> American Samoa | FE15: ='Country information'!C5 -> dollar | FF15: ='Country information'!D5 -> US$ | FG15: ='Country information'!E5 -> 1 | FH15: ='Country information'!F5 -> 40128.58928
FC16: ='Country information'!N6 -> Andorra | FD16: ='Country information'!O6 -> Andorra | FE16: ='Country information'!C6 -> euro | FF16: ='Country information'!D6 -> € | FG16: ='Country information'!E6 -> 0.77 | FH16: ='Country information'!F6 -> 40592.40605
FC17: ='Country information'!N7 -> Angola | FD17: ='Country information'!O7 -> Angola | FE17: ='Country information'!C7 -> kwanza | FF17: ='Country information'!D7 -> Kz | FG17: ='Country information'!E7 -> 90 | FH17: ='Country information'!F7 -> 40592.406
FC18: ='Country information'!N8 -> Anguilla | FD18: ='Country information'!O8 -> Anguilla | FE18: ='Country information'!C8 -> dollar | FF18: ='Country information'!D8 -> EC$ | FG18: ='Country information'!E8 -> 2.7 | FH18: ='Country information'!F8 -> 40592.40605
FC19: ='Country information'!N9 -> Antigua and Barbuda | FD19: ='Country information'!O9 -> Antigua and Barbuda | FE19: ='Country information'!C9 -> dollar | FF19: ='Country information'!D9 -> EC$ | FG19: ='Country information'!E9 -> 2.7 | FH19: ='Country information'!F9 -> 40592.40605
FC20: ='Country information'!N10 -> Argentina | FD20: ='Country information'!O10 -> Argentina | FE20: ='Country information'!C10 -> peso | FF20: ='Country information'!D10 -> $AR | FG20: ='Country information'!E10 -> 3.98 | FH20: ='Country information'!F10 -> 40592.406
FC21: ='Country information'!N11 -> Armenia | FD21: ='Country information'!O11 -> Armenia | FE21: ='Country information'!C11 -> dram | FF21: ='Country information'!D11 -> AMD | FG21: ='Country information'!E11 -> 360 | FH21: ='Country information'!F11 -> 40592.406
FC22: ='Country information'!N12 -> Aruba | FD22: ='Country information'!O12 -> Aruba | FE22: ='Country information'!C12 -> guilder | FF22: ='Country information'!D12 -> Afl. | FG22: ='Country information'!E12 -> 1.79 | FH22: ='Country information'!F12 -> 39413
FC23: ='Country information'!N13 -> Australia | FD23: ='Country information'!O13 -> Australia | FE23: ='Country information'!C13 -> dollar | FF23: ='Country information'!D13 -> A$ | FG23: ='Country information'!E13 -> 1.04 | FH23: ='Country information'!F13 -> 40592.406
FC24: ='Country information'!N14 -> Austria | FD24: ='Country information'!O14 -> Austria | FE24: ='Country information'!C14 -> euro | FF24: ='Country information'!D14 -> € | FG24: ='Country information'!E14 -> 0.77 | FH24: ='Country information'!F14 -> 40592.406
FC25: ='Country information'!N15 -> Azerbaijan | FD25: ='Country information'!O15 -> Azerbaijan | FE25: ='Country information'!C15 -> manat | FF25: ='Country information'!D15 -> AZN | FG25: ='Country information'!E15 -> 0.82 | FH25: ='Country information'!F15 -> 40592.406
FC26: ='Country information'!N16 -> Bahamas | FD26: ='Country information'!O16 -> Bahamas | FE26: ='Country information'!C16 -> dollar | FF26: ='Country information'!D16 -> B$ | FG26: ='Country information'!E16 -> 1 | FH26: ='Country information'!F16 -> 40592.406
FC27: ='Country information'!N17 -> Bahrain | FD27: ='Country information'!O17 -> Bahrain | FE27: ='Country information'!C17 -> dinar | FF27: ='Country information'!D17 -> BD | FG27: ='Country information'!E17 -> 0.38 | FH27: ='Country information'!F17 -> 40592.406
FC28: ='Country information'!N18 -> Bangladesh | FD28: ='Country information'!O18 -> Bangladesh | FE28: ='Country information'!C18 -> taka | FF28: ='Country information'!D18 -> Tk | FG28: ='Country information'!E18 -> 69 | FH28: ='Country information'!F18 -> 40592.406
FC29: ='Country information'!N19 -> Barbados | FD29: ='Country information'!O19 -> Barbados | FE29: ='Country information'!C19 -> dollar | FF29: ='Country information'!D19 -> Bds$ | FG29: ='Country information'!E19 -> 2.02 | FH29: ='Country information'!F19 -> 40592.406
FC30: ='Country information'!N20 -> Belarus | FD30: ='Country information'!O20 -> Belarus | FE30: ='Country information'!C20 -> ruble | FF30: ='Country information'!D20 -> BYR | FG30: ='Country information'!E20 -> 3010 | FH30: ='Country information'!F20 -> 40592.406
FC31: ='Country information'!N21 -> Belgium | FD31: ='Country information'!O21 -> Belgium | FE31: ='Country information'!C21 -> euro | FF31: ='Country information'!D21 -> € | FG31: ='Country information'!E21 -> 0.77 | FH31: ='Country information'!F21 -> 40592.406
FC32: ='Country information'!N22 -> Belize | FD32: ='Country information'!O22 -> Belize | FE32: ='Country information'!C22 -> dollar | FF32: ='Country information'!D22 -> BZ$ | FG32: ='Country information'!E22 -> 2 | FH32: ='Country information'!F22 -> 40592.40601
FC33: ='Country information'!N23 -> Benin | FD33: ='Country information'!O23 -> Benin | FE33: ='Country information'!C23 -> franc | FF33: ='Country information'!D23 -> CFAF | FG33: ='Country information'!E23 -> 503.3 | FH33: ='Country information'!F23 -> 40592.40601
FC34: ='Country information'!N24 -> Bermuda | FD34: ='Country information'!O24 -> Bermuda | FE34: ='Country information'!C24 -> dollar | FF34: ='Country information'!D24 -> Bd$ | FG34: ='Country information'!E24 -> 1 | FH34: ='Country information'!F24 -> 40592.40601
FC35: ='Country information'!N25 -> Bhutan | FD35: ='Country information'!O25 -> Bhutan | FE35: ='Country information'!C25 -> ngultrum | FF35: ='Country information'!D25 -> Nu | FG35: ='Country information'!E25 -> 39.78 | FH35: ='Country information'!F25 -> 39413
FC36: ='Country information'!N26 -> Bolivia | FD36: ='Country information'!O26 -> Bolivia | FE36: ='Country information'!C26 -> boliviano | FF36: ='Country information'!D26 -> $b | FG36: ='Country information'!E26 -> 6.96 | FH36: ='Country information'!F26 -> 40592.40601
FC37: ='Country information'!N27 -> Bosnia-Herzegovina | FD37: ='Country information'!O27 -> Bosnia-Herzegovina | FE37: ='Country information'!C27 -> convertible marka | FF37: ='Country information'!D27 -> KM | FG37: ='Country information'!E27 -> 1.31612 | FH37: ='Country information'!F27 -> 39413
FC38: ='Country information'!N28 -> Botswana | FD38: ='Country information'!O28 -> Botswana | FE38: ='Country information'!C28 -> pula | FF38: ='Country information'!D28 -> P | FG38: ='Country information'!E28 -> 6.75 | FH38: ='Country information'!F28 -> 40592.40601
FC39: ='Country information'!N29 -> Brazil | FD39: ='Country information'!O29 -> Brazil | FE39: ='Country information'!C29 -> real | FF39: ='Country information'!D29 -> R$ | FG39: ='Country information'!E29 -> 1.72 | FH39: ='Country information'!F29 -> 40592.40601
FC40: ='Country information'!N30 -> British Indian Ocean Territory | FD40: ='Country information'!O30 -> British Indian Ocean Territory | FE40: ='Country information'!C30 -> dollar | FF40: ='Country information'!D30 -> US$ | FG40: ='Country information'!E30 -> 1 | FH40: ='Country information'!F30 -> 40128.58928
FC41: ='Country information'!N31 -> British Virgin Islands | FD41: ='Country information'!O31 -> British Virgin Islands | FE41: ='Country information'!C31 -> dollar | FF41: ='Country information'!D31 -> US$ | FG41: ='Country information'!E31 -> 1 | FH41: ='Country information'!F31 -> 40128.58928
FC42: ='Country information'!N32 -> Brunei | FD42: ='Country information'!O32 -> Brunei | FE42: ='Country information'!C32 -> ringgit | FF42: ='Country information'!D32 -> B$ | FG42: ='Country information'!E32 -> 1.32 | FH42: ='Country information'!F32 -> 40592.40601
FC43: ='Country information'!N33 -> Bulgaria | FD43: ='Country information'!O33 -> Bulgaria | FE43: ='Country information'!C33 -> new lev | FF43: ='Country information'!D33 -> лв | FG43: ='Country information'!E33 -> 1.5 | FH43: ='Country information'!F33 -> 40592.40601
FC44: ='Country information'!N34 -> Burkina Faso | FD44: ='Country information'!O34 -> Burkina Faso | FE44: ='Country information'!C34 -> franc | FF44: ='Country information'!D34 -> CFAF | FG44: ='Country information'!E34 -> 503.3 | FH44: ='Country information'!F34 -> 40592.40601
FC45: ='Country information'!N35 -> Burundi | FD45: ='Country information'!O35 -> Burundi | FE45: ='Country information'!C35 -> franc | FF45: ='Country information'!D35 -> FBu | FG45: ='Country information'!E35 -> 1243 | FH45: ='Country information'!F35 -> 40592.40601
FC46: ='Country information'!N36 -> Cambodia | FD46: ='Country information'!O36 -> Cambodia | FE46: ='Country information'!C36 -> new riel | FF46: ='Country information'!D36 -> CR | FG46: ='Country information'!E36 -> 3975.4 | FH46: ='Country information'!F36 -> 39413
FC47: ='Country information'!N37 -> Cameroon | FD47: ='Country information'!O37 -> Cameroon | FE47: ='Country information'!C37 -> franc | FF47: ='Country information'!D37 -> CFAF | FG47: ='Country information'!E37 -> 503.3 | FH47: ='Country information'!F37 -> 40592.40601
FC48: ='Country information'!N38 -> Canada | FD48: ='Country information'!O38 -> Canada | FE48: ='Country information'!C38 -> dollar | FF48: ='Country information'!D38 -> Can$ | FG48: ='Country information'!E38 -> 1.02 | FH48: ='Country information'!F38 -> 40592.40601
FC49: ='Country information'!N39 -> Cape Verde Island | FD49: ='Country information'!O39 -> Cape Verde Island | FE49: ='Country information'!C39 -> escudo | FF49: ='Country information'!D39 -> C.V.Esc. | FG49: ='Country information'!E39 -> 74.31 | FH49: ='Country information'!F39 -> 39413
FC50: ='Country information'!N40 -> Cayman Islands | FD50: ='Country information'!O40 -> Cayman Islands | FE50: ='Country information'!C40 -> dollar | FF50: ='Country information'!D40 -> CI$ | FG50: ='Country information'!E40 -> 0.82 | FH50: ='Country information'!F40 -> 40592.40601
FC51: ='Country information'!N41 -> Central African Republic | FD51: ='Country information'!O41 -> Central African Republic | FE51: ='Country information'!C41 -> franc | FF51: ='Country information'!D41 -> CFAF | FG51: ='Country information'!E41 -> 503.3 | FH51: ='Country information'!F41 -> 40592.40601
FC52: ='Country information'!N42 -> Chad | FD52: ='Country information'!O42 -> Chad | FE52: ='Country information'!C42 -> franc | FF52: ='Country information'!D42 -> CFAF | FG52: ='Country information'!E42 -> 503.3 | FH52: ='Country information'!F42 -> 40592.40601
FC53: ='Country information'!N43 -> Chile | FD53: ='Country information'!O43 -> Chile | FE53: ='Country information'!C43 -> peso | FF53: ='Country information'!D43 -> Ch$ | FG53: ='Country information'!E43 -> 486.7 | FH53: ='Country information'!F43 -> 40592.40601
FC54: ='Country information'!N44 -> China | FD54: ='Country information'!O44 -> China | FE54: ='Country information'!C44 -> yuan renminbi | FF54: ='Country information'!D44 -> ¥ | FG54: ='Country information'!E44 -> 6.67 | FH54: ='Country information'!F44 -> 40592.40601
FC55: ='Country information'!N45 -> Christmas Island | FD55: ='Country information'!O45 -> Christmas Island | FE55: ='Country information'!C45 -> dollar | FF55: ='Country information'!D45 -> A$ | FG55: ='Country information'!E45 -> 1.04 | FH55: ='Country information'!F45 -> 40592.40605
FC56: ='Country information'!N46 -> Cocos (Keeling) Islands | FD56: ='Country information'!O46 -> Cocos (Keeling) Islands | FE56: ='Country information'!C46 -> dollar | FF56: ='Country information'!D46 -> A$ | FG56: ='Country information'!E46 -> 1.04 | FH56: ='Country information'!F46 -> 40592.40605
FC57: ='Country information'!N47 -> Colombia | FD57: ='Country information'!O47 -> Colombia | FE57: ='Country information'!C47 -> peso | FF57: ='Country information'!D47 -> Col$ | FG57: ='Country information'!E47 -> 1920 | FH57: ='Country information'!F47 -> 40592.40601
FC58: ='Country information'!N48 -> Comoros | FD58: ='Country information'!O48 -> Comoros | FE58: ='Country information'!C48 -> franc | FF58: ='Country information'!D48 -> KMF | FG58: ='Country information'!E48 -> 361.35 | FH58: ='Country information'!F48 -> 40592.40601
FC59: ='Country information'!N49 -> Congo | FD59: ='Country information'!O49 -> Congo | FE59: ='Country information'!C49 -> franc | FF59: ='Country information'!D49 -> CFAF | FG59: ='Country information'!E49 -> 503.3 | FH59: ='Country information'!F49 -> 40592.40601
FC60: ='Country information'!N50 -> Congo, Dem. Rep. | FD60: ='Country information'!O50 -> Congo, Dem. Rep. | FE60: ='Country information'!C50 -> franc | FF60: ='Country information'!D50 -> CDF | FG60: ='Country information'!E50 -> 560 | FH60: ='Country information'!F50 -> 39413
FC61: ='Country information'!N51 -> Cook Islands | FD61: ='Country information'!O51 -> Cook Islands | FE61: ='Country information'!C51 -> dollar | FF61: ='Country information'!D51 -> NZ$ | FG61: ='Country information'!E51 -> 1.34 | FH61: ='Country information'!F51 -> 40592.40605
FC62: ='Country information'!N52 -> Costa Rica | FD62: ='Country information'!O52 -> Costa Rica | FE62: ='Country information'!C52 -> colon | FF62: ='Country information'!D52 -> ₡ | FG62: ='Country information'!E52 -> 501.95 | FH62: ='Country information'!F52 -> 40592.40602
FC63: ='Country information'!N53 -> Côte d'Ivoire | FD63: ='Country information'!O53 -> Côte d'Ivoire | FE63: ='Country information'!C53 -> franc | FF63: ='Country information'!D53 -> CFAF | FG63: ='Country information'!E53 -> 503.3 | FH63: ='Country information'!F53 -> 40592.40605
FC64: ='Country information'!N54 -> Croatia | FD64: ='Country information'!O54 -> Croatia | FE64: ='Country information'!C54 -> kuna | FF64: ='Country information'!D54 -> kn | FG64: ='Country information'!E54 -> 5.59 | FH64: ='Country information'!F54 -> 40592.40602
FC65: ='Country information'!N55 -> Cuba (external) | FD65: ='Country information'!O55 -> Cuba (external) | FE65: ='Country information'!C55 -> convertible peso | FF65: ='Country information'!D55 -> Cuc$ | FG65: ='Country information'!E55 -> 0.9259 | FH65: ='Country information'!F55 -> 39413
FC66: ='Country information'!N56 -> Cuba (internal) | FD66: ='Country information'!O56 -> Cuba (internal) | FE66: ='Country information'!C56 -> peso | FF66: ='Country information'!D56 -> ₱ | FG66: ='Country information'!E56 -> 26.49708532 | FH66: ='Country information'!F56 -> 39413
FC67: ='Country information'!N57 -> Cyprus | FD67: ='Country information'!O57 -> Cyprus | FE67: ='Country information'!C57 -> poundC | FF67: ='Country information'!D57 -> £C | FG67: ='Country information'!E57 -> 0.77 | FH67: ='Country information'!F57 -> 40592.40602
FC68: ='Country information'!N58 -> Cyprus (Northern) | FD68: ='Country information'!O58 -> Cyprus (Northern) | FE68: ='Country information'!C58 -> new lira | FF68: ='Country information'!D58 -> YTL | FG68: ='Country information'!E58 -> 1.344989913 | FH68: ='Country information'!F58 -> 38817
FC69: ='Country information'!N59 -> Czech | FD69: ='Country information'!O59 -> Czech | FE69: ='Country information'!C59 -> koruna | FF69: ='Country information'!D59 -> Kč | FG69: ='Country information'!E59 -> 17 | FH69: ='Country information'!F59 -> 40599.40435
FC70: ='Country information'!N60 -> Denmark | FD70: ='Country information'!O60 -> Denmark | FE70: ='Country information'!C60 -> kroner | FF70: ='Country information'!D60 -> Dkr | FG70: ='Country information'!E60 -> 5.72 | FH70: ='Country information'!F60 -> 40592.40602
FC71: ='Country information'!N61 -> Djibouti | FD71: ='Country information'!O61 -> Djibouti | FE71: ='Country information'!C61 -> franc | FF71: ='Country information'!D61 -> DF | FG71: ='Country information'!E61 -> 177 | FH71: ='Country information'!F61 -> 40592.40602
FC72: ='Country information'!N62 -> Dominica | FD72: ='Country information'!O62 -> Dominica | FE72: ='Country information'!C62 -> dollar | FF72: ='Country information'!D62 -> EC$ | FG72: ='Country information'!E62 -> 2.7 | FH72: ='Country information'!F62 -> 40592.40605
FC73: ='Country information'!N63 -> Dominican Rep. | FD73: ='Country information'!O63 -> Dominican Rep. | FE73: ='Country information'!C63 -> peso | FF73: ='Country information'!D63 -> RD$ | FG73: ='Country information'!E63 -> 33.4835 | FH73: ='Country information'!F63 -> 39413
FC74: ='Country information'!N64 -> Dronning Maud Land | FD74: ='Country information'!O64 -> Dronning Maud Land | FE74: ='Country information'!C64 -> krone | FF74: ='Country information'!D64 -> NKr | FG74: ='Country information'!E64 -> 6.2 | FH74: ='Country information'!F64 -> 40592.40605
FC75: ='Country information'!N65 -> East Timor | FD75: ='Country information'!O65 -> East Timor | FE75: ='Country information'!C65 -> dollar | FF75: ='Country information'!D65 -> US$ | FG75: ='Country information'!E65 -> 1 | FH75: ='Country information'!F65 -> 40592.40602
FC76: ='Country information'!N66 -> Ecuador | FD76: ='Country information'!O66 -> Ecuador | FE76: ='Country information'!C66 -> dollar | FF76: ='Country information'!D66 -> US$ | FG76: ='Country information'!E66 -> 1 | FH76: ='Country information'!F66 -> 40128.58928
FC77: ='Country information'!N67 -> Egypt | FD77: ='Country information'!O67 -> Egypt | FE77: ='Country information'!C67 -> poundE | FF77: ='Country information'!D67 -> £E | FG77: ='Country information'!E67 -> 5.79 | FH77: ='Country information'!F67 -> 40592.40602
FC78: ='Country information'!N68 -> El Salvador | FD78: ='Country information'!O68 -> El Salvador | FE78: ='Country information'!C68 -> dollar | FF78: ='Country information'!D68 -> US$ | FG78: ='Country information'!E68 -> 1 | FH78: ='Country information'!F68 -> 40592.40602
FC79: ='Country information'!N69 -> Equatorial Guinea | FD79: ='Country information'!O69 -> Equatorial Guinea | FE79: ='Country information'!C69 -> franc | FF79: ='Country information'!D69 -> CFAF | FG79: ='Country information'!E69 -> 503.3 | FH79: ='Country information'!F69 -> 40592.40602
FC80: ='Country information'!N70 -> Eritrea | FD80: ='Country information'!O70 -> Eritrea | FE80: ='Country information'!C70 -> nakfa | FF80: ='Country information'!D70 -> Nfa | FG80: ='Country information'!E70 -> 15 | FH80: ='Country information'!F70 -> 40592.40602
FC81: ='Country information'!N71 -> Estonia | FD81: ='Country information'!O71 -> Estonia | FE81: ='Country information'!C71 -> kroon | FF81: ='Country information'!D71 -> KR | FG81: ='Country information'!E71 -> 12 | FH81: ='Country information'!F71 -> 40592.40602
FC82: ='Country information'!N72 -> Ethiopia | FD82: ='Country information'!O72 -> Ethiopia | FE82: ='Country information'!C72 -> birr | FF82: ='Country information'!D72 -> Br | FG82: ='Country information'!E72 -> 16.49 | FH82: ='Country information'!F72 -> 40592.40602
FC83: ='Country information'!N73 -> Faeroe Islands (Føroyar) | FD83: ='Country information'!O73 -> Faeroe Islands (Føroyar) | FE83: ='Country information'!C73 -> kroner | FF83: ='Country information'!D73 -> Dkr | FG83: ='Country information'!E73 -> 5.72 | FH83: ='Country information'!F73 -> 40592.40605
FC84: ='Country information'!N74 -> Falkland Islands | FD84: ='Country information'!O74 -> Falkland Islands | FE84: ='Country information'!C74 -> pound | FF84: ='Country information'!D74 -> £ | FG84: ='Country information'!E74 -> 0.64 | FH84: ='Country information'!F74 -> 40592.40605
FC85: ='Country information'!N75 -> Fiji | FD85: ='Country information'!O75 -> Fiji | FE85: ='Country information'!C75 -> dollar | FF85: ='Country information'!D75 -> F$ | FG85: ='Country information'!E75 -> 1.82 | FH85: ='Country information'!F75 -> 40592.40602
FC86: ='Country information'!N76 -> Finland | FD86: ='Country information'!O76 -> Finland | FE86: ='Country information'!C76 -> euro | FF86: ='Country information'!D76 -> € | FG86: ='Country information'!E76 -> 0.77 | FH86: ='Country information'!F76 -> 40592.40602
FC87: ='Country information'!N77 -> France | FD87: ='Country information'!O77 -> France | FE87: ='Country information'!C77 -> euro | FF87: ='Country information'!D77 -> € | FG87: ='Country information'!E77 -> 0.77 | FH87: ='Country information'!F77 -> 40592.40602
FC88: ='Country information'!N78 -> French Guiana | FD88: ='Country information'!O78 -> French Guiana | FE88: ='Country information'!C78 -> euro | FF88: ='Country information'!D78 -> € | FG88: ='Country information'!E78 -> 0.77 | FH88: ='Country information'!F78 -> 40592.40605
FC89: ='Country information'!N79 -> French Polynesia | FD89: ='Country information'!O79 -> French Polynesia | FE89: ='Country information'!C79 -> euro | FF89: ='Country information'!D79 -> € | FG89: ='Country information'!E79 -> 0.733 | FH89: ='Country information'!F79 -> 39413
FC90: ='Country information'!N80 -> Gabon | FD90: ='Country information'!O80 -> Gabon | FE90: ='Country information'!C80 -> franc | FF90: ='Country information'!D80 -> CFAF | FG90: ='Country information'!E80 -> 503.3 | FH90: ='Country information'!F80 -> 40592.40602
FC91: ='Country information'!N81 -> Gambia | FD91: ='Country information'!O81 -> Gambia | FE91: ='Country information'!C81 -> dalasi | FF91: ='Country information'!D81 -> D | FG91: ='Country information'!E81 -> 28 | FH91: ='Country information'!F81 -> 40592.40602
FC92: ='Country information'!N82 -> Gaza | FD92: ='Country information'!O82 -> Gaza | FE92: ='Country information'!C82 -> new shekel | FF92: ='Country information'!D82 -> NIS | FG92: ='Country information'!E82 -> 3.8614 | FH92: ='Country information'!F82 -> 39413
FC93: ='Country information'!N83 -> Georgia | FD93: ='Country information'!O83 -> Georgia | FE93: ='Country information'!C83 -> lari | FF93: ='Country information'!D83 -> GEL | FG93: ='Country information'!E83 -> 1.76 | FH93: ='Country information'!F83 -> 40592.40602
FC94: ='Country information'!N84 -> Germany | FD94: ='Country information'!O84 -> Germany | FE94: ='Country information'!C84 -> euro | FF94: ='Country information'!D84 -> € | FG94: ='Country information'!E84 -> 0.77 | FH94: ='Country information'!F84 -> 40592.40605
FC95: ='Country information'!N85 -> Ghana | FD95: ='Country information'!O85 -> Ghana | FE95: ='Country information'!C85 -> new cedi | FF95: ='Country information'!D85 -> ¢ | FG95: ='Country information'!E85 -> 1.45 | FH95: ='Country information'!F85 -> 40592.40602
FC96: ='Country information'!N86 -> Gibraltar | FD96: ='Country information'!O86 -> Gibraltar | FE96: ='Country information'!C86 -> pound | FF96: ='Country information'!D86 -> £ | FG96: ='Country information'!E86 -> 0.64 | FH96: ='Country information'!F86 -> 40592.40605
FC97: ='Country information'!N87 -> Great Britain | FD97: ='Country information'!O87 -> Great Britain | FE97: ='Country information'!C87 -> pound | FF97: ='Country information'!D87 -> £ | FG97: ='Country information'!E87 -> 0.64 | FH97: ='Country information'!F87 -> 40592.40605
FC98: ='Country information'!N88 -> Greece | FD98: ='Country information'!O88 -> Greece | FE98: ='Country information'!C88 -> euro | FF98: ='Country information'!D88 -> € | FG98: ='Country information'!E88 -> 0.77 | FH98: ='Country information'!F88 -> 40592.40602
FC99: ='Country information'!N89 -> Greenland | FD99: ='Country information'!O89 -> Greenland | FE99: ='Country information'!C89 -> kroner | FF99: ='Country information'!D89 -> Dkr | FG99: ='Country information'!E89 -> 5.72 | FH99: ='Country information'!F89 -> 40592.40605
FC100: ='Country information'!N90 -> Grenada | FD100: ='Country information'!O90 -> Grenada | FE100: ='Country information'!C90 -> dollar | FF100: ='Country information'!D90 -> EC$ | FG100: ='Country information'!E90 -> 2.7 | FH100: ='Country information'!F90 -> 40592.40602
FC101: ='Country information'!N91 -> Guadeloupe | FD101: ='Country information'!O91 -> Guadeloupe | FE101: ='Country information'!C91 -> euro | FF101: ='Country information'!D91 -> € | FG101: ='Country information'!E91 -> 0.77 | FH101: ='Country information'!F91 -> 40592.40605
FC102: ='Country information'!N92 -> Guam | FD102: ='Country information'!O92 -> Guam | FE102: ='Country information'!C92 -> dollar | FF102: ='Country information'!D92 -> US$ | FG102: ='Country information'!E92 -> 1 | FH102: ='Country information'!F92 -> 40128.58928
FC103: ='Country information'!N93 -> Guatemala | FD103: ='Country information'!O93 -> Guatemala | FE103: ='Country information'!C93 -> quetzal | FF103: ='Country information'!D93 -> Q | FG103: ='Country information'!E93 -> 8 | FH103: ='Country information'!F93 -> 40592.40602
FC104: ='Country information'!N94 -> Guernsey | FD104: ='Country information'!O94 -> Guernsey | FE104: ='Country information'!C94 -> pound | FF104: ='Country information'!D94 -> £ | FG104: ='Country information'!E94 -> 0.64 | FH104: ='Country information'!F94 -> 40592.40605
FC105: ='Country information'!N95 -> Guinea | FD105: ='Country information'!O95 -> Guinea | FE105: ='Country information'!C95 -> franc | FF105: ='Country information'!D95 -> GNF | FG105: ='Country information'!E95 -> 6078 | FH105: ='Country information'!F95 -> 40592.40602
FC106: ='Country information'!N96 -> Guinea-Bissau | FD106: ='Country information'!O96 -> Guinea-Bissau | FE106: ='Country information'!C96 -> franc | FF106: ='Country information'!D96 -> CFAF | FG106: ='Country information'!E96 -> 503.3 | FH106: ='Country information'!F96 -> 40592.40605
FC107: ='Country information'!N97 -> Guyana | FD107: ='Country information'!O97 -> Guyana | FE107: ='Country information'!C97 -> dollar | FF107: ='Country information'!D97 -> G$ | FG107: ='Country information'!E97 -> 201 | FH107: ='Country information'!F97 -> 40592.40602
FC108: ='Country information'!N98 -> Haiti | FD108: ='Country information'!O98 -> Haiti | FE108: ='Country information'!C98 -> gourde | FF108: ='Country information'!D98 -> G | FG108: ='Country information'!E98 -> 38.5 | FH108: ='Country information'!F98 -> 40592.40602
FC109: ='Country information'!N99 -> Heard and McDonald Islands | FD109: ='Country information'!O99 -> Heard and McDonald Islands | FE109: ='Country information'!C99 -> dollar | FF109: ='Country information'!D99 -> A$ | FG109: ='Country information'!E99 -> 1.04 | FH109: ='Country information'!F99 -> 40592.40605
FC110: ='Country information'!N100 -> Honduras | FD110: ='Country information'!O100 -> Honduras | FE110: ='Country information'!C100 -> lempira | FF110: ='Country information'!D100 -> L | FG110: ='Country information'!E100 -> 18.9 | FH110: ='Country information'!F100 -> 40592.40602
FC111: ='Country information'!N101 -> Hong Kong | FD111: ='Country information'!O101 -> Hong Kong | FE111: ='Country information'!C101 -> dollar | FF111: ='Country information'!D101 -> HK$ | FG111: ='Country information'!E101 -> 7.77 | FH111: ='Country information'!F101 -> 40592.40603
FC112: ='Country information'!N102 -> Hungary | FD112: ='Country information'!O102 -> Hungary | FE112: ='Country information'!C102 -> forint | FF112: ='Country information'!D102 -> Ft | FG112: ='Country information'!E102 -> 217.12 | FH112: ='Country information'!F102 -> 40592.40603
FC113: ='Country information'!N103 -> Iceland | FD113: ='Country information'!O103 -> Iceland | FE113: ='Country information'!C103 -> króna | FF113: ='Country information'!D103 -> IKr | FG113: ='Country information'!E103 -> 117.07 | FH113: ='Country information'!F103 -> 40592.40603
FC114: ='Country information'!N104 -> India | FD114: ='Country information'!O104 -> India | FE114: ='Country information'!C104 -> rupee | FF114: ='Country information'!D104 -> ₨ | FG114: ='Country information'!E104 -> 45.7 | FH114: ='Country information'!F104 -> 40592.40603
FC115: ='Country information'!N105 -> Indonesia | FD115: ='Country information'!O105 -> Indonesia | FE115: ='Country information'!C105 -> rupiah | FF115: ='Country information'!D105 -> Rp | FG115: ='Country information'!E105 -> 8900 | FH115: ='Country information'!F105 -> 40592.40603
FC116: ='Country information'!N106 -> Iran | FD116: ='Country information'!O106 -> Iran | FE116: ='Country information'!C106 -> rial | FF116: ='Country information'!D106 -> ﷼ | FG116: ='Country information'!E106 -> 8229 | FH116: ='Country information'!F106 -> 40592.40603
FC117: ='Country information'!N107 -> Iraq | FD117: ='Country information'!O107 -> Iraq | FE117: ='Country information'!C107 -> new dinar | FF117: ='Country information'!D107 -> ID | FG117: ='Country information'!E107 -> 1166.5 | FH117: ='Country information'!F107 -> 40592.40603
FC118: ='Country information'!N108 -> Ireland | FD118: ='Country information'!O108 -> Ireland | FE118: ='Country information'!C108 -> euro | FF118: ='Country information'!D108 -> € | FG118: ='Country information'!E108 -> 0.77 | FH118: ='Country information'!F108 -> 40592.40603
FC119: ='Country information'!N109 -> Isle of Man | FD119: ='Country information'!O109 -> Isle of Man | FE119: ='Country information'!C109 -> pound | FF119: ='Country information'!D109 -> £ | FG119: ='Country information'!E109 -> 0.64 | FH119: ='Country information'!F109 -> 40592.40605
FC120: ='Country information'!N110 -> Israel | FD120: ='Country information'!O110 -> Israel | FE120: ='Country information'!C110 -> new shekel | FF120: ='Country information'!D110 -> ₪ | FG120: ='Country information'!E110 -> 3.68 | FH120: ='Country information'!F110 -> 40592.40603
FC121: ='Country information'!N111 -> Italy | FD121: ='Country information'!O111 -> Italy | FE121: ='Country information'!C111 -> euro | FF121: ='Country information'!D111 -> € | FG121: ='Country information'!E111 -> 0.77 | FH121: ='Country information'!F111 -> 40592.40603
FC122: ='Country information'!N112 -> Ivory Coast | FD122: ='Country information'!O112 -> Ivory Coast | FE122: ='Country information'!C112 -> franc | FF122: ='Country information'!D112 -> CFAF | FG122: ='Country information'!E112 -> 503.3 | FH122: ='Country information'!F112 -> 40592.40605
FC123: ='Country information'!N113 -> Jamaica | FD123: ='Country information'!O113 -> Jamaica | FE123: ='Country information'!C113 -> dollar | FF123: ='Country information'!D113 -> J$ | FG123: ='Country information'!E113 -> 85.8 | FH123: ='Country information'!F113 -> 40592.40603
FC124: ='Country information'!N114 -> Japan | FD124: ='Country information'!O114 -> Japan | FE124: ='Country information'!C114 -> yen | FF124: ='Country information'!D114 -> ¥ | FG124: ='Country information'!E114 -> 83.83 | FH124: ='Country information'!F114 -> 40592.40603
FC125: ='Country information'!N115 -> Jersey | FD125: ='Country information'!O115 -> Jersey | FE125: ='Country information'!C115 -> pound | FF125: ='Country information'!D115 -> £ | FG125: ='Country information'!E115 -> 0.64 | FH125: ='Country information'!F115 -> 40592.40605
FC126: ='Country information'!N116 -> Johnston Island | FD126: ='Country information'!O116 -> Johnston Island | FE126: ='Country information'!C116 -> dollar | FF126: ='Country information'!D116 -> US$ | FG126: ='Country information'!E116 -> 1 | FH126: ='Country information'!F116 -> 40128.58928
FC127: ='Country information'!N117 -> Jordan | FD127: ='Country information'!O117 -> Jordan | FE127: ='Country information'!C117 -> dinar | FF127: ='Country information'!D117 -> JD | FG127: ='Country information'!E117 -> 0.71 | FH127: ='Country information'!F117 -> 40592.40603
FC128: ='Country information'!N118 -> Kampuchea | FD128: ='Country information'!O118 -> Kampuchea | FE128: ='Country information'!C118 -> new riel | FF128: ='Country information'!D118 -> CR | FG128: ='Country information'!E118 -> 3975.4 | FH128: ='Country information'!F118 -> 39413
FC129: ='Country information'!N119 -> Kazakhstan | FD129: ='Country information'!O119 -> Kazakhstan | FE129: ='Country information'!C119 -> tenge | FF129: ='Country information'!D119 -> лв | FG129: ='Country information'!E119 -> 147.5 | FH129: ='Country information'!F119 -> 40592.40603
FC130: ='Country information'!N120 -> Kenya | FD130: ='Country information'!O120 -> Kenya | FE130: ='Country information'!C120 -> shilling | FF130: ='Country information'!D120 -> K Sh | FG130: ='Country information'!E120 -> 80.9 | FH130: ='Country information'!F120 -> 40592.40603
FC131: ='Country information'!N121 -> Kiribati | FD131: ='Country information'!O121 -> Kiribati | FE131: ='Country information'!C121 -> dollar | FF131: ='Country information'!D121 -> A$ | FG131: ='Country information'!E121 -> 1.04 | FH131: ='Country information'!F121 -> 40592.40605
FC132: ='Country information'!N122 -> Korea, North | FD132: ='Country information'!O122 -> Korea, North | FE132: ='Country information'!C122 -> won | FF132: ='Country information'!D122 -> Wn | FG132: ='Country information'!E122 -> 142.45 | FH132: ='Country information'!F122 -> 39413
FC133: ='Country information'!N123 -> Korea, South | FD133: ='Country information'!O123 -> Korea, South | FE133: ='Country information'!C123 -> won | FF133: ='Country information'!D123 -> W | FG133: ='Country information'!E123 -> 929.689 | FH133: ='Country information'!F123 -> 39413
FC134: ='Country information'!N124 -> Kuwait | FD134: ='Country information'!O124 -> Kuwait | FE134: ='Country information'!C124 -> dinar | FF134: ='Country information'!D124 -> KD | FG134: ='Country information'!E124 -> 0.28 | FH134: ='Country information'!F124 -> 40592.40603
FC135: ='Country information'!N125 -> Kyrgyzstan | FD135: ='Country information'!O125 -> Kyrgyzstan | FE135: ='Country information'!C125 -> som | FF135: ='Country information'!D125 -> KGS | FG135: ='Country information'!E125 -> 46.8 | FH135: ='Country information'!F125 -> 40592.40603
FC136: ='Country information'!N126 -> Laos | FD136: ='Country information'!O126 -> Laos | FE136: ='Country information'!C126 -> new kip | FF136: ='Country information'!D126 -> ₭ | FG136: ='Country information'!E126 -> 8031 | FH136: ='Country information'!F126 -> 40592.40603
FC137: ='Country information'!N127 -> Latvia | FD137: ='Country information'!O127 -> Latvia | FE137: ='Country information'!C127 -> lat | FF137: ='Country information'!D127 -> Ls | FG137: ='Country information'!E127 -> 0.54 | FH137: ='Country information'!F127 -> 40592.40603
FC138: ='Country information'!N128 -> Lebanon | FD138: ='Country information'!O128 -> Lebanon | FE138: ='Country information'!C128 -> pound | FF138: ='Country information'!D128 -> L.L. | FG138: ='Country information'!E128 -> 1500 | FH138: ='Country information'!F128 -> 40592.40603
FC139: ='Country information'!N129 -> Lesotho | FD139: ='Country information'!O129 -> Lesotho | FE139: ='Country information'!C129 -> loti | FF139: ='Country information'!D129 -> L | FG139: ='Country information'!E129 -> 7.07 | FH139: ='Country information'!F129 -> 40592.40603
FC140: ='Country information'!N130 -> Liberia | FD140: ='Country information'!O130 -> Liberia | FE140: ='Country information'!C130 -> dollar | FF140: ='Country information'!D130 -> US$ | FG140: ='Country information'!E130 -> 49 | FH140: ='Country information'!F130 -> 40592.40603
FC141: ='Country information'!N131 -> Libya | FD141: ='Country information'!O131 -> Libya | FE141: ='Country information'!C131 -> dinar | FF141: ='Country information'!D131 -> LD | FG141: ='Country information'!E131 -> 1.25 | FH141: ='Country information'!F131 -> 40592.40603
FC142: ='Country information'!N132 -> Liechtenstein | FD142: ='Country information'!O132 -> Liechtenstein | FE142: ='Country information'!C132 -> franc | FF142: ='Country information'!D132 -> SwF | FG142: ='Country information'!E132 -> 1 | FH142: ='Country information'!F132 -> 40592.40606
FC143: ='Country information'!N133 -> Lithuania | FD143: ='Country information'!O133 -> Lithuania | FE143: ='Country information'!C133 -> litai | FF143: ='Country information'!D133 -> Lt | FG143: ='Country information'!E133 -> 2.65 | FH143: ='Country information'!F133 -> 40592.40603
FC144: ='Country information'!N134 -> Luxembourg | FD144: ='Country information'!O134 -> Luxembourg | FE144: ='Country information'!C134 -> euro | FF144: ='Country information'!D134 -> € | FG144: ='Country information'!E134 -> 0.77 | FH144: ='Country information'!F134 -> 40592.40603
FC145: ='Country information'!N135 -> Macao (Macau) | FD145: ='Country information'!O135 -> Macao (Macau) | FE145: ='Country information'!C135 -> pataca | FF145: ='Country information'!D135 -> P | FG145: ='Country information'!E135 -> 8 | FH145: ='Country information'!F135 -> 39413
FC146: ='Country information'!N136 -> Macedonia | FD146: ='Country information'!O136 -> Macedonia | FE146: ='Country information'!C136 -> denar | FF146: ='Country information'!D136 -> ден | FG146: ='Country information'!E136 -> 41.4625 | FH146: ='Country information'!F136 -> 39413
FC147: ='Country information'!N137 -> Madagascar | FD147: ='Country information'!O137 -> Madagascar | FE147: ='Country information'!C137 -> ariayry | FF147: ='Country information'!D137 -> MGA | FG147: ='Country information'!E137 -> 2010.61 | FH147: ='Country information'!F137 -> 40592.40603
FC148: ='Country information'!N138 -> Malawi | FD148: ='Country information'!O138 -> Malawi | FE148: ='Country information'!C138 -> kwacha | FF148: ='Country information'!D138 -> MK | FG148: ='Country information'!E138 -> 151 | FH148: ='Country information'!F138 -> 40592.40603
FC149: ='Country information'!N139 -> Malaysia | FD149: ='Country information'!O139 -> Malaysia | FE149: ='Country information'!C139 -> ringgit | FF149: ='Country information'!D139 -> RM | FG149: ='Country information'!E139 -> 3.17 | FH149: ='Country information'!F139 -> 40592.40603
FC150: ='Country information'!N140 -> Maldives | FD150: ='Country information'!O140 -> Maldives | FE150: ='Country information'!C140 -> rufiyaa | FF150: ='Country information'!D140 -> Rf | FG150: ='Country information'!E140 -> 12.8 | FH150: ='Country information'!F140 -> 39413
FC151: ='Country information'!N141 -> Mali | FD151: ='Country information'!O141 -> Mali | FE151: ='Country information'!C141 -> franc | FF151: ='Country information'!D141 -> CFAF | FG151: ='Country information'!E141 -> 503.3 | FH151: ='Country information'!F141 -> 40592.40603
FC152: ='Country information'!N142 -> Malta | FD152: ='Country information'!O142 -> Malta | FE152: ='Country information'!C142 -> lira | FF152: ='Country information'!D142 -> Lm | FG152: ='Country information'!E142 -> 0.77 | FH152: ='Country information'!F142 -> 40592.40603
FC153: ='Country information'!N143 -> Martinique | FD153: ='Country information'!O143 -> Martinique | FE153: ='Country information'!C143 -> euro | FF153: ='Country information'!D143 -> € | FG153: ='Country information'!E143 -> 0.77 | FH153: ='Country information'!F143 -> 40592.40603
FC154: ='Country information'!N144 -> Mauritania | FD154: ='Country information'!O144 -> Mauritania | FE154: ='Country information'!C144 -> ouguiya | FF154: ='Country information'!D144 -> UM | FG154: ='Country information'!E144 -> 290 | FH154: ='Country information'!F144 -> 40592.40603
FC155: ='Country information'!N145 -> Mauritius | FD155: ='Country information'!O145 -> Mauritius | FE155: ='Country information'!C145 -> rupee | FF155: ='Country information'!D145 -> Mau Rs | FG155: ='Country information'!E145 -> 30.3 | FH155: ='Country information'!F145 -> 40592.40603
FC156: ='Country information'!N146 -> Mexico | FD156: ='Country information'!O146 -> Mexico | FE156: ='Country information'!C146 -> peso | FF156: ='Country information'!D146 -> Mex$ | FG156: ='Country information'!E146 -> 12.5 | FH156: ='Country information'!F146 -> 40592.40603
FC157: ='Country information'!N147 -> Micronesia | FD157: ='Country information'!O147 -> Micronesia | FE157: ='Country information'!C147 -> dollar | FF157: ='Country information'!D147 -> US$ | FG157: ='Country information'!E147 -> 1 | FH157: ='Country information'!F147 -> 40592.40603
FC158: ='Country information'!N148 -> Midway Islands | FD158: ='Country information'!O148 -> Midway Islands | FE158: ='Country information'!C148 -> dollar | FF158: ='Country information'!D148 -> US$ | FG158: ='Country information'!E148 -> 1 | FH158: ='Country information'!F148 -> 40128.58928
FC159: ='Country information'!N149 -> Moldova | FD159: ='Country information'!O149 -> Moldova | FE159: ='Country information'!C149 -> Lei | FF159: ='Country information'!D149 -> MDL | FG159: ='Country information'!E149 -> 12.17 | FH159: ='Country information'!F149 -> 40592.40603
FC160: ='Country information'!N150 -> Monaco | FD160: ='Country information'!O150 -> Monaco | FE160: ='Country information'!C150 -> euro | FF160: ='Country information'!D150 -> € | FG160: ='Country information'!E150 -> 0.77 | FH160: ='Country information'!F150 -> 40592.40605
FC161: ='Country information'!N151 -> Mongolia | FD161: ='Country information'!O151 -> Mongolia | FE161: ='Country information'!C151 -> tughrik | FF161: ='Country information'!D151 -> ₮ | FG161: ='Country information'!E151 -> 1262.45 | FH161: ='Country information'!F151 -> 40592.40603
FC162: ='Country information'!N152 -> Montserrat | FD162: ='Country information'!O152 -> Montserrat | FE162: ='Country information'!C152 -> dollar | FF162: ='Country information'!D152 -> EC$ | FG162: ='Country information'!E152 -> 2.7 | FH162: ='Country information'!F152 -> 40592.40605
FC163: ='Country information'!N153 -> Morocco | FD163: ='Country information'!O153 -> Morocco | FE163: ='Country information'!C153 -> dirham | FF163: ='Country information'!D153 -> DH | FG163: ='Country information'!E153 -> 8.5 | FH163: ='Country information'!F153 -> 40592.40604
FC164: ='Country information'!N154 -> Mozambique | FD164: ='Country information'!O154 -> Mozambique | FE164: ='Country information'!C154 -> metical | FF164: ='Country information'!D154 -> Mt | FG164: ='Country information'!E154 -> 35.71 | FH164: ='Country information'!F154 -> 40592.40604
FC165: ='Country information'!N155 -> Myanmar | FD165: ='Country information'!O155 -> Myanmar | FE165: ='Country information'!C155 -> kyat | FF165: ='Country information'!D155 -> K | FG165: ='Country information'!E155 -> 6.42085 | FH165: ='Country information'!F155 -> 39413
FC166: ='Country information'!N156 -> Namibia | FD166: ='Country information'!O156 -> Namibia | FE166: ='Country information'!C156 -> dollar | FF166: ='Country information'!D156 -> N$ | FG166: ='Country information'!E156 -> 7.07 | FH166: ='Country information'!F156 -> 40592.40604
FC167: ='Country information'!N157 -> Nauru | FD167: ='Country information'!O157 -> Nauru | FE167: ='Country information'!C157 -> dollar | FF167: ='Country information'!D157 -> A$ | FG167: ='Country information'!E157 -> 1.04 | FH167: ='Country information'!F157 -> 40592.40605
FC168: ='Country information'!N158 -> Nepal | FD168: ='Country information'!O158 -> Nepal | FE168: ='Country information'!C158 -> rupee | FF168: ='Country information'!D158 -> NRs | FG168: ='Country information'!E158 -> 72.95 | FH168: ='Country information'!F158 -> 40592.40604
FC169: ='Country information'!N159 -> Netherlands | FD169: ='Country information'!O159 -> Netherlands | FE169: ='Country information'!C159 -> euro | FF169: ='Country information'!D159 -> € | FG169: ='Country information'!E159 -> 0.77 | FH169: ='Country information'!F159 -> 40592.40604
FC170: ='Country information'!N160 -> Netherlands Antilles | FD170: ='Country information'!O160 -> Netherlands Antilles | FE170: ='Country information'!C160 -> guilder | FF170: ='Country information'!D160 -> NAf. | FG170: ='Country information'!E160 -> 1.78 | FH170: ='Country information'!F160 -> 40592.40604
FC171: ='Country information'!N161 -> New Caledonia | FD171: ='Country information'!O161 -> New Caledonia | FE171: ='Country information'!C161 -> franc | FF171: ='Country information'!D161 -> XPF | FG171: ='Country information'!E161 -> 80.1131 | FH171: ='Country information'!F161 -> 39413
FC172: ='Country information'!N162 -> New Zealand | FD172: ='Country information'!O162 -> New Zealand | FE172: ='Country information'!C162 -> dollar | FF172: ='Country information'!D162 -> NZ$ | FG172: ='Country information'!E162 -> 1.34 | FH172: ='Country information'!F162 -> 40592.40604
FC173: ='Country information'!N163 -> Nicaragua | FD173: ='Country information'!O163 -> Nicaragua | FE173: ='Country information'!C163 -> gold cordoba | FF173: ='Country information'!D163 -> C$ | FG173: ='Country information'!E163 -> 21.79 | FH173: ='Country information'!F163 -> 40592.40604
FC174: ='Country information'!N164 -> Niger | FD174: ='Country information'!O164 -> Niger | FE174: ='Country information'!C164 -> franc | FF174: ='Country information'!D164 -> CFAF | FG174: ='Country information'!E164 -> 503.3 | FH174: ='Country information'!F164 -> 40592.40604
FC175: ='Country information'!N165 -> Nigeria | FD175: ='Country information'!O165 -> Nigeria | FE175: ='Country information'!C165 -> naira | FF175: ='Country information'!D165 -> ₦ | FG175: ='Country information'!E165 -> 150.6 | FH175: ='Country information'!F165 -> 40592.40604
FC176: ='Country information'!N166 -> Niue | FD176: ='Country information'!O166 -> Niue | FE176: ='Country information'!C166 -> dollar | FF176: ='Country information'!D166 -> NZ$ | FG176: ='Country information'!E166 -> 1.34 | FH176: ='Country information'!F166 -> 40592.40605
FC177: ='Country information'!N167 -> Norfolk Island | FD177: ='Country information'!O167 -> Norfolk Island | FE177: ='Country information'!C167 -> dollar | FF177: ='Country information'!D167 -> A$ | FG177: ='Country information'!E167 -> 1.04 | FH177: ='Country information'!F167 -> 40592.40605
FC178: ='Country information'!N168 -> Norway | FD178: ='Country information'!O168 -> Norway | FE178: ='Country information'!C168 -> krone | FF178: ='Country information'!D168 -> NKr | FG178: ='Country information'!E168 -> 6.2 | FH178: ='Country information'!F168 -> 40592.40604
FC179: ='Country information'!N169 -> Oman | FD179: ='Country information'!O169 -> Oman | FE179: ='Country information'!C169 -> rial | FF179: ='Country information'!D169 -> ﷼ | FG179: ='Country information'!E169 -> 0.39 | FH179: ='Country information'!F169 -> 40592.40604
FC180: ='Country information'!N170 -> Pakistan | FD180: ='Country information'!O170 -> Pakistan | FE180: ='Country information'!C170 -> rupee | FF180: ='Country information'!D170 -> Rs | FG180: ='Country information'!E170 -> 85.7 | FH180: ='Country information'!F170 -> 40592.40604
FC181: ='Country information'!N171 -> Palau | FD181: ='Country information'!O171 -> Palau | FE181: ='Country information'!C171 -> dollar | FF181: ='Country information'!D171 -> US$ | FG181: ='Country information'!E171 -> 1 | FH181: ='Country information'!F171 -> 40592.40604
FC182: ='Country information'!N172 -> Panama | FD182: ='Country information'!O172 -> Panama | FE182: ='Country information'!C172 -> balboa | FF182: ='Country information'!D172 -> B/. | FG182: ='Country information'!E172 -> 1 | FH182: ='Country information'!F172 -> 40592.40604
FC183: ='Country information'!N173 -> Papua New Guinea | FD183: ='Country information'!O173 -> Papua New Guinea | FE183: ='Country information'!C173 -> kina | FF183: ='Country information'!D173 -> K | FG183: ='Country information'!E173 -> 2.48 | FH183: ='Country information'!F173 -> 40592.40604
FC184: ='Country information'!N174 -> Paraguay | FD184: ='Country information'!O174 -> Paraguay | FE184: ='Country information'!C174 -> guarani | FF184: ='Country information'!D174 -> PYG | FG184: ='Country information'!E174 -> 4700 | FH184: ='Country information'!F174 -> 40592.40604
FC185: ='Country information'!N175 -> Peru | FD185: ='Country information'!O175 -> Peru | FE185: ='Country information'!C175 -> new sol | FF185: ='Country information'!D175 -> S/. | FG185: ='Country information'!E175 -> 3.01485 | FH185: ='Country information'!F175 -> 39413
FC186: ='Country information'!N176 -> Philippines | FD186: ='Country information'!O176 -> Philippines | FE186: ='Country information'!C176 -> peso | FF186: ='Country information'!D176 -> PHP | FG186: ='Country information'!E176 -> 44.1 | FH186: ='Country information'!F176 -> 40592.40604
FC187: ='Country information'!N177 -> Pitcairn Island | FD187: ='Country information'!O177 -> Pitcairn Island | FE187: ='Country information'!C177 -> dollar | FF187: ='Country information'!D177 -> NZ$ | FG187: ='Country information'!E177 -> 1.34 | FH187: ='Country information'!F177 -> 40592.40605
FC188: ='Country information'!N178 -> Poland | FD188: ='Country information'!O178 -> Poland | FE188: ='Country information'!C178 -> zloty | FF188: ='Country information'!D178 -> zł | FG188: ='Country information'!E178 -> 3.11 | FH188: ='Country information'!F178 -> 40592.40604
FC189: ='Country information'!N179 -> Portugal | FD189: ='Country information'!O179 -> Portugal | FE189: ='Country information'!C179 -> euro | FF189: ='Country information'!D179 -> € | FG189: ='Country information'!E179 -> 0.77 | FH189: ='Country information'!F179 -> 40592.40604
FC190: ='Country information'!N180 -> Puerto Rico | FD190: ='Country information'!O180 -> Puerto Rico | FE190: ='Country information'!C180 -> dollar | FF190: ='Country information'!D180 -> US$ | FG190: ='Country information'!E180 -> 1 | FH190: ='Country information'!F180 -> 40128.58928
FC191: ='Country information'!N181 -> Qatar | FD191: ='Country information'!O181 -> Qatar | FE191: ='Country information'!C181 -> riyal | FF191: ='Country information'!D181 -> QAR | FG191: ='Country information'!E181 -> 3.64 | FH191: ='Country information'!F181 -> 40592.40604
FC192: ='Country information'!N182 -> Reunion | FD192: ='Country information'!O182 -> Reunion | FE192: ='Country information'!C182 -> euro | FF192: ='Country information'!D182 -> € | FG192: ='Country information'!E182 -> 0.77 | FH192: ='Country information'!F182 -> 40592.40605
FC193: ='Country information'!N183 -> Romania | FD193: ='Country information'!O183 -> Romania | FE193: ='Country information'!C183 -> Lei | FF193: ='Country information'!D183 -> L | FG193: ='Country information'!E183 -> 3.29 | FH193: ='Country information'!F183 -> 40592.40604
FC194: ='Country information'!N184 -> Russia | FD194: ='Country information'!O184 -> Russia | FE194: ='Country information'!C184 -> ruble | FF194: ='Country information'!D184 -> руб | FG194: ='Country information'!E184 -> 31.4 | FH194: ='Country information'!F184 -> 40592.40604
FC195: ='Country information'!N185 -> Rwanda | FD195: ='Country information'!O185 -> Rwanda | FE195: ='Country information'!C185 -> franc | FF195: ='Country information'!D185 -> RF | FG195: ='Country information'!E185 -> 592.02 | FH195: ='Country information'!F185 -> 40592.40604
FC196: ='Country information'!N186 -> Samoa (America) | FD196: ='Country information'!O186 -> Samoa (America) | FE196: ='Country information'!C186 -> dollar | FF196: ='Country information'!D186 -> US$ | FG196: ='Country information'!E186 -> 1 | FH196: ='Country information'!F186 -> 40128.58928
FC197: ='Country information'!N187 -> Samoa (Western) | FD197: ='Country information'!O187 -> Samoa (Western) | FE197: ='Country information'!C187 -> tala | FF197: ='Country information'!D187 -> WS$ | FG197: ='Country information'!E187 -> 2.67023 | FH197: ='Country information'!F187 -> 39413
FC198: ='Country information'!N188 -> San Marino | FD198: ='Country information'!O188 -> San Marino | FE198: ='Country information'!C188 -> euro | FF198: ='Country information'!D188 -> € | FG198: ='Country information'!E188 -> 0.77 | FH198: ='Country information'!F188 -> 40592.40605
FC199: ='Country information'!N189 -> Sao Tome & Principe | FD199: ='Country information'!O189 -> Sao Tome & Principe | FE199: ='Country information'!C189 -> dobra | FF199: ='Country information'!D189 -> Db | FG199: ='Country information'!E189 -> 18526.1191 | FH199: ='Country information'!F189 -> 40592.40604
FC200: ='Country information'!N190 -> Saudi Arabia | FD200: ='Country information'!O190 -> Saudi Arabia | FE200: ='Country information'!C190 -> riyal | FF200: ='Country information'!D190 -> SRls | FG200: ='Country information'!E190 -> 3.75 | FH200: ='Country information'!F190 -> 40592.40604
FC201: ='Country information'!N191 -> Senegal | FD201: ='Country information'!O191 -> Senegal | FE201: ='Country information'!C191 -> franc | FF201: ='Country information'!D191 -> CFAF | FG201: ='Country information'!E191 -> 503.3 | FH201: ='Country information'!F191 -> 40592.40604
FC202: ='Country information'!N192 -> Serbia | FD202: ='Country information'!O192 -> Serbia | FE202: ='Country information'!C192 -> dinar | FF202: ='Country information'!D192 -> Din | FG202: ='Country information'!E192 -> 0.77 | FH202: ='Country information'!F192 -> 40592.40604
FC203: ='Country information'!N193 -> Seychelles | FD203: ='Country information'!O193 -> Seychelles | FE203: ='Country information'!C193 -> rupee | FF203: ='Country information'!D193 -> SR | FG203: ='Country information'!E193 -> 12.1 | FH203: ='Country information'!F193 -> 40592.40604
... 54 more rows

Sheet Results
H2: =Lists!G14 -> Results
H4: This cost comparison is based on the inputs you have selected and the default values in the tool. All of the default values can be changed by following the links on this page. You will also find links to additional product information to help with your design decisions. You may enter values directly in the table below if you have calculated them outside of this tool. These changes will be reflected on the charts and table on this page. However, you may need to update the other tabs for all of the values in the report to be accurate.
H6: ="This analysis compares the cost of deploying GreenBridge zero client computing for " &'Report Info'!B3 & " concurrent users using " &'Report Info'!B5 & " host servers. The analysis shows the expected cost of deploying the Windows Server solution using " &'Report Info'!B19& " is " & 'Report Info'!B12 &". Deploying a similar solution with traditional computers is estimated to cost "&'Report Info'!B17&". This represents a "&'Report Info'!B18&" percent reduction in costs from a traditional deployment." -> This analysis compares the cost of deploying GreenBridge zero client computing for 1,000 concurrent users using 72 host servers. The analysis shows the expected cost of deploying the Windows Server solution using LAN connections is US$ 445,026. Deploying a similar solution with traditional computers is estimated to cost US$ 1,647,908. This represents a 73% percent reduction in costs from a traditional deployment.
H7: ="Because multiple stations can be powered by a single host computer, you can reduce the upfront costs of technology. The cost savings on the upfront hardware investment is estimated to be "&'Report Info'!B21&". The hardware cost per station for The HUB 400 zero clients is "&'Report Info'!B22&", which compares to "&'Report Info'!B23&" for a traditional computer deployment." -> Because multiple stations can be powered by a single host computer, you can reduce the upfront costs of technology. The cost savings on the upfront hardware investment is estimated to be US$ 284,300. The hardware cost per station for The HUB 400 zero clients is US$ 318, which compares to US$ 602 for a traditional computer deployment.
H9: Windows MultiPoint costs | CG9: % Difference in Costs Over 5-Years
S10: Year 1 | Z10: Year 2 | AG10: Year 3 | AN10: Year 4 | AU10: Year 5 | BB10: Average | CG10: Windows MultiPoint | CQ10: Traditional | CX10: % difference
H11: Hardware | P11: =CurrencySymbol -> US$ | S11: =DP11 -> 317800 | Z11: =DQ11 -> 0 | AG11: =DR11 -> 0 | AN11: =DS11 -> 0 | AU11: =DT11 -> 0 | BB11: =SUM(S11:BA11)/5 -> 63560 | BJ11: See calculation details | BZ11: Hardware | CG11: =CurrencySymbol -> US$ | CJ11: =BB11*5 -> 317800 | CQ11: =BB19*5 -> 602100 | CX11: =IF(CQ11=0,"N/A",1-CJ11/CQ11) -> 0.4721807009 | DP11: =Calculations!CC19 -> 317800 | DQ11: 0 | DR11: 0 | DS11: 0 | DT11: 0
H12: Software | P12: =CurrencySymbol -> US$ | S12: =DP12 -> 38360 | Z12: =DQ12 -> 0 | AG12: =DR12 -> 0 | AN12: =DS12 -> 0 | AU12: =DT12 -> 0 | BB12: =SUM(S12:BA12)/5 -> 7672 | BJ12: See calculation details | BZ12: Software | CG12: =CurrencySymbol -> US$ | CJ12: =BB12*5 -> 38360 | CQ12: =BB20*5 -> 115000 | CX12: =IF(CQ12=0,"N/A",1-CJ12/CQ12) -> 0.6664347826 | DP12: =Calculations!CC25 -> 38360 | DQ12: =IF(Software!$BH$9=Lists!$B$35,Calculations!$CC$25,0) -> 0 | DR12: =IF(Software!$BH$9=Lists!$B$35,Calculations!$CC$25,0) -> 0 | DS12: =IF(Software!$BH$9=Lists!$B$35,Calculations!$CC$25,0) -> 0 | DT12: =IF(Software!$BH$9=Lists!$B$35,Calculations!$CC$25,0) -> 0
H13: Deployment | P13: =CurrencySymbol -> US$ | S13: =DP13 -> 3850 | Z13: =DQ13 -> 0 | AG13: =DR13 -> 0 | AN13: =DS13 -> 0 | AU13: =DT13 -> 0 | BB13: =SUM(S13:BA13)/5 -> 770 | BJ13: See calculation details | BZ13: Deployment | CG13: =CurrencySymbol -> US$ | CJ13: =BB13*5 -> 3850 | CQ13: =BB21*5 -> 52183.33333 | CX13: =IF(CQ13=0,"N/A",1-CJ13/CQ13) -> 0.9262216544 | DP13: =Calculations!CC31 -> 3850 | DQ13: 0 | DR13: 0 | DS13: 0 | DT13: 0
H14: Operations | P14: =CurrencySymbol -> US$ | S14: =DP14 -> 17003.27808 | Z14: =DQ14 -> 17003.27808 | AG14: =DR14 -> 17003.27808 | AN14: =DS14 -> 17003.27808 | AU14: =DT14 -> 17003.27808 | BB14: =SUM(S14:BA14)/5 -> 17003.27808 | BJ14: See calculation details | BZ14: Operations | CG14: =CurrencySymbol -> US$ | CJ14: =BB14*5 -> 85016.3904 | CQ14: =BB22*5 -> 878624.2837 | CX14: =IF(CQ14=0,"N/A",1-CJ14/CQ14) -> 0.9032391979 | DP14: =Calculations!CC39 -> 17003.27808 | DQ14: =Calculations!CC39 -> 17003.27808 | DR14: =Calculations!CC39 -> 17003.27808 | DS14: =Calculations!CC39 -> 17003.27808 | DT14: =Calculations!CC39 -> 17003.27808
H15: Total | P15: =CurrencySymbol -> US$ | S15: =SUM(S11:Y14) -> 377013.2781 | Z15: =SUM(Z11:AF14) -> 17003.27808 | AG15: =SUM(AG11:AM14) -> 17003.27808 | AN15: =SUM(AN11:AT14) -> 17003.27808 | AU15: =SUM(AU11:BA14) -> 17003.27808 | BB15: =SUM(BB11:BH14) -> 89005.27808 | BZ15: Total | CG15: =CurrencySymbol -> US$ | CJ15: =BB15*5 -> 445026.3904 | CQ15: =BB23*5 -> 1647907.617 | CX15: =IF(CQ15=0,"N/A",1-CJ15/CQ15) -> 0.7299445759
H17: Traditional deployment costs | CG17: % Difference in Acquisition Costs
S18: Year 1 | Z18: Year 2 | AG18: Year 3 | AN18: Year 4 | AU18: Year 5 | BB18: Average | CG18: Windows MultiPoint | CQ18: Traditional | CX18: % difference
H19: Hardware | P19: =CurrencySymbol -> US$ | S19: =DP19 -> 602100 | Z19: =DQ19 -> 0 | AG19: =DR19 -> 0 | AN19: =DS19 -> 0 | AU19: =DT19 -> 0 | BB19: =SUM(S19:BA19)/5 -> 120420 | BJ19: See calculation details | BZ19: Hardware | CG19: =CurrencySymbol -> US$ | CJ19: =S11 -> 317800 | CQ19: =S19 -> 602100 | CX19: =IF(CQ19=0,"N/A",1-CJ19/CQ19) -> 0.4721807009 | DP19: =Calculations!CZ19 -> 602100 | DQ19: 0 | DR19: 0 | DS19: 0 | DT19: 0
H20: Software | P20: =CurrencySymbol -> US$ | S20: =DP20 -> 115000 | Z20: =DQ20 -> 0 | AG20: =DR20 -> 0 | AN20: =DS20 -> 0 | AU20: =DT20 -> 0 | BB20: =SUM(S20:BA20)/5 -> 23000 | BJ20: See calculation details | BZ20: Software | CG20: =CurrencySymbol -> US$ | CJ20: =S12 -> 38360 | CQ20: =S20 -> 115000 | CX20: =IF(CQ20=0,"N/A",1-CJ20/CQ20) -> 0.6664347826 | DP20: =Calculations!CZ25 -> 115000 | DQ20: =IF(Software!$BH$9=Lists!$B$35,Calculations!$CZ$25,0) -> 0 | DR20: =IF(Software!$BH$9=Lists!$B$35,Calculations!$CZ$25,0) -> 0 | DS20: =IF(Software!$BH$9=Lists!$B$35,Calculations!$CZ$25,0) -> 0 | DT20: =IF(Software!$BH$9=Lists!$B$35,Calculations!$CZ$25,0) -> 0
H21: Deployment | P21: =CurrencySymbol -> US$ | S21: =DP21 -> 52183.33333 | Z21: =DQ21 -> 0 | AG21: =DR21 -> 0 | AN21: =DS21 -> 0 | AU21: =DT21 -> 0 | BB21: =SUM(S21:BA21)/5 -> 10436.66667 | BJ21: See calculation details | BZ21: Deployment | CG21: =CurrencySymbol -> US$ | CJ21: 3850 | CQ21: 52183.33333 | CX21: =IF(CQ21=0,"N/A",1-CJ21/CQ21) -> 0.9262216544 | DP21: =Calculations!CZ31 -> 52183.33333 | DQ21: 0 | DR21: 0 | DS21: 0 | DT21: 0
H22: Operations | P22: =CurrencySymbol -> US$ | S22: =DP22 -> 175724.8567 | Z22: =DQ22 -> 175724.8567 | AG22: =DR22 -> 175724.8567 | AN22: =DS22 -> 175724.8567 | AU22: =DT22 -> 175724.8567 | BB22: =SUM(S22:BA22)/5 -> 175724.8567 | BJ22: See calculation details | BZ22: Total | CG22: =CurrencySymbol -> US$ | CJ22: =SUM(CJ19:CP21) -> 360010 | CQ22: =SUM(CQ19:CW21) -> 769283.3333 | CX22: =IF(CQ22=0,"N/A",1-CJ22/CQ22) -> 0.5320189787 | DP22: =Calculations!CZ39 -> 175724.8567 | DQ22: =Calculations!CZ39 -> 175724.8567 | DR22: =Calculations!CZ39 -> 175724.8567 | DS22: =Calculations!CZ39 -> 175724.8567 | DT22: =Calculations!CZ39 -> 175724.8567
H23: Total | P23: =CurrencySymbol -> US$ | S23: =SUM(S19:Y22) -> 945008.1901 | Z23: =SUM(Z19:AF22) -> 175724.8567 | AG23: =SUM(AG19:AM22) -> 175724.8567 | AN23: =SUM(AN19:AT22) -> 175724.8567 | AU23: =SUM(AU19:BA22) -> 175724.8567 | BB23: =SUM(BB19:BH22) -> 329581.5234
A26: =IF(OR(LicenseType = Lists!#REF!,LicenseType=Lists!#REF!,LicenseType=Lists!#REF!),1,0) -> 
A27: =IF(OR(LicenseType=Lists!#REF!,LicenseType=Lists!#REF!,LicenseType=Lists!#REF!,LicenseType = Lists!#REF!), 0,1) -> 
A28: 0
A29: 1
A30: =IF(OR(LicenseType = Lists!#REF!,LicenseType = Lists!#REF!),1,0) -> 
A31: =IF(OR(LicenseType = Lists!#REF!,LicenseType = Lists!#REF!),0,0) -> 
A35: 1

Sheet CalculationsDisp
AP4: Windows MultiPoint Server | BN4: PC Configuration
AQ5: Count | AT5: Cost | BC5: Total | BN5: Count | BQ5: Cost | BZ5: Total
B6: 1 | H6: LAN connected or hybrid host computers | AQ6: =Calculations!BN6 -> 72 | AT6: =CurrencySymbol -> US$ | AW6: =Calculations!BT6 -> 1300 | BC6: =CurrencySymbol -> US$ | BF6: =Calculations!CC6 -> 93600
B7: 1 | H7: Video/USB direct connect host computers | AQ7: =Calculations!BN7 -> 0 | AT7: =CurrencySymbol -> US$ | AW7: =Calculations!BT7 -> 1300 | BC7: =CurrencySymbol -> US$ | BF7: =Calculations!CC7 -> 0
B8: 1 | H8: USB direct connect host computers | AQ8: =Calculations!BN8 -> 0 | AT8: =CurrencySymbol -> US$ | AW8: =Calculations!BT8 -> 1300 | BC8: =CurrencySymbol -> US$ | BF8: =Calculations!CC8 -> 0
B9: 1 | H9: PCs (includes monitor, mouse, keyboard, Operating System license) | BN9: =Calculations!CK9 -> 1000 | BQ9: =CurrencySymbol -> US$ | BT9: =Calculations!CQ9 -> 600 | BZ9: =CurrencySymbol -> US$ | CC9: =Calculations!CZ9 -> 600000
B10: 1
B11: 1 | H11: Monitors | AQ11: =Calculations!BN11 -> 1000 | AT11: =CurrencySymbol -> US$ | AW11: =Calculations!BT11 -> 100 | BC11: =CurrencySymbol -> US$ | BF11: =Calculations!CC11 -> 100000 | BN11: =Calculations!CK11 -> 1000 | BQ11: =CurrencySymbol -> US$ | BT11: =Calculations!CQ11 -> 0 | BZ11: =CurrencySymbol -> US$ | CC11: =Calculations!CZ11 -> 0
B12: 1 | H12: Mouse and keyboards | AQ12: =Calculations!BN12 -> 1000 | AT12: US$ | AW12: =Calculations!BT12 -> 20 | BC12: US$ | BF12: =Calculations!CC12 -> 20000 | BN12: =Calculations!CK12 -> 1000 | BQ12: US$ | BT12: =Calculations!CQ12 -> 0 | BZ12: US$ | CC12: =Calculations!CZ12 -> 0
B13: 1 | H13: USB video adaptor/thin-client | AQ13: =Calculations!BN13 -> 0 | AT13: US$ | AW13: =Calculations!BT13 -> 0 | BC13: US$ | BF13: =Calculations!CC13 -> 0 | BN13: =Calculations!CK13 -> 0 | BQ13: US$ | BT13: =Calculations!CQ13 -> 0 | BZ13: US$ | CC13: =Calculations!CZ13 -> 0
B14: 1 | H14: USB hubs | AQ14: =Calculations!BN14 -> 0 | AT14: US$ | AW14: =Calculations!BT14 -> 20 | BC14: US$ | BF14: =Calculations!CC14 -> 0 | BN14: =Calculations!CK14 -> 0 | BQ14: US$ | BT14: =Calculations!CQ14 -> 20 | BZ14: US$ | CC14: =Calculations!CZ14 -> 0
B15: 1 | H15: Video cards | AQ15: =Calculations!BN15 -> 0 | AT15: US$ | AW15: =Calculations!BT15 -> 0 | BC15: US$ | BF15: =Calculations!CC15 -> 0 | BN15: =Calculations!CK15 -> 0 | BQ15: US$ | BT15: =Calculations!CQ15 -> 0 | BZ15: US$ | CC15: =Calculations!CZ15 -> 0
B16: 1 | H16: Ethernet switches | AQ16: =Calculations!BN16 -> 42 | AT16: US$ | AW16: =Calculations!BT16 -> 100 | BC16: US$ | BF16: =Calculations!CC16 -> 4200 | BN16: =Calculations!CK16 -> 42 | BQ16: US$ | BT16: =Calculations!CQ16 -> 50 | BZ16: US$ | CC16: =Calculations!CZ16 -> 2100
B17: 1 | H17: LAN connected stations (desktop, laptop, RemoteFX, etc.) | AQ17: =Calculations!BN17 -> 1000 | AT17: US$ | AW17: =Calculations!BT17 -> 100 | BC17: US$ | BF17: =Calculations!CC17 -> 100000
BC18: US$ | BF18: =Calculations!CC18 -> 0 | BZ18: =CurrencySymbol -> US$ | CC18: =Calculations!CZ18 -> 0
B19: 1 | H19: Total Cost | BC19: =CurrencySymbol -> US$ | BF19: =Calculations!CC19 -> 317800 | BZ19: =CurrencySymbol -> US$ | CC19: =Calculations!CZ19 -> 602100
B20: 1 | AP20: Windows MultiPoint Server | BN20: PC Configuration
B21: 1 | AQ21: Count | AT21: Cost | BC21: Total
H22: =Software!H18 -> Windows Client Software | BN22: =Calculations!CK21 -> 1000 | BQ22: =CurrencySymbol -> US$ | BT22: =Calculations!CQ21 -> 115 | BZ22: =CurrencySymbol -> US$ | CC22: =Calculations!CZ21 -> 115000
B23: 1 | H23: Windows MultiPoint Server licenses | AA23: =Software!$BH$9 -> Perpetual | AQ23: =Calculations!BN22 -> 72 | AT23: =CurrencySymbol -> US$ | AW23: =Calculations!BT22 -> 130 | BC23: =CurrencySymbol -> US$ | BF23: =Calculations!CC22 -> 9360
B24: 1 | H24: Windows MultiPoint Server CALs | AA24: =Software!$BH$9 -> Perpetual | AQ24: =Calculations!BN23 -> 1000 | AT24: =CurrencySymbol -> US$ | AW24: =Calculations!BT23 -> 29 | BC24: =CurrencySymbol -> US$ | BF24: =Calculations!CC23 -> 29000
BC25: =CurrencySymbol -> US$ | BF25: =Calculations!CC24 -> 0 | BZ25: =CurrencySymbol -> US$ | CC25: =Calculations!CZ24 -> 0
B26: 1 | H26: =IF(Software!BH9=Lists!B35,"Total Annual Cost","Total Cost") -> Total Cost | BC26: =CurrencySymbol -> US$ | BF26: =Calculations!CC25 -> 38360 | BZ26: =CurrencySymbol -> US$ | CC26: =Calculations!CZ25 -> 115000
B27: 1 | AP27: Windows MultiPoint Server | BN27: PC Configuration
B28: 1 | AQ28: Hours | AT28: Cost per hour | BC28: Total | BN28: Hours | BQ28: Cost per hour | BZ28: Total
B29: 1 | H29: Ethernet cabling (if new building) | BC29: =CurrencySymbol -> US$ | BF29: =Calculations!CC28 -> 100 | BZ29: =CurrencySymbol -> US$ | CC29: =Calculations!CZ28 -> 100
B30: 1 | H30: Software deployment | AQ30: =Calculations!BN29 -> 72 | AT30: =CurrencySymbol -> US$ | AW30: =Calculations!BT29 -> 52.08333333 | BC30: =CurrencySymbol -> US$ | BF30: =Calculations!CC29 -> 3750 | BN30: =Calculations!CK29 -> 1000 | BQ30: =CurrencySymbol -> US$ | BT30: =Calculations!CQ29 -> 52.08333333 | BZ30: =CurrencySymbol -> US$ | CC30: =Calculations!CZ29 -> 52083.33333
BC31: =CurrencySymbol -> US$ | BF31: =Calculations!CC30 -> 0 | BZ31: =CurrencySymbol -> US$ | CC31: =Calculations!CZ30 -> 0
B32: 1 | H32: Total Cost | BC32: =CurrencySymbol -> US$ | BF32: =Calculations!CC31 -> 3850 | BZ32: =CurrencySymbol -> US$ | CC32: =Calculations!CZ31 -> 52183.33333
B33: 1 | AP33: Windows MultiPoint Server | BN33: PC Configuration
B34: 1 | AT34: Cost | BC34: Total | BQ34: Cost | BZ34: Total
B35: 1 | H35: Power consumption | AT35: =CurrencySymbol -> US$ | AW35: =Calculations!BT34 -> 5903.27808 | BC35: =CurrencySymbol -> US$ | BF35: =Calculations!CC34 -> 5903.27808 | BQ35: =CurrencySymbol -> US$ | BT35: =Calculations!CQ34 -> 21558.19008 | BZ35: =CurrencySymbol -> US$ | CC35: =Calculations!CZ34 -> 21558.19008
B36: 1 | H36: Hardware maintenance | AT36: =CurrencySymbol -> US$ | AW36: =Calculations!BT35 -> 3600 | BC36: =CurrencySymbol -> US$ | BF36: =Calculations!CC35 -> 3600 | BQ36: =CurrencySymbol -> US$ | BT36: =Calculations!CQ35 -> 50000 | BZ36: =CurrencySymbol -> US$ | CC36: =Calculations!CZ35 -> 50000
B37: 1 | AQ37: Hours | AT37: Cost per hour | BC37: Total | BN37: Hours | BQ37: Cost per hour | BZ37: Total
B38: 1 | H38: System management and updates | AQ38: =Calculations!BN37 -> 144 | AT38: =CurrencySymbol -> US$ | AW38: =Calculations!BT37 -> 52.08333333 | BC38: =CurrencySymbol -> US$ | BF38: =Calculations!CC37 -> 7500 | BN38: =Calculations!CK37 -> 2000 | BQ38: =CurrencySymbol -> US$ | BT38: =Calculations!CQ37 -> 52.08333333 | BZ38: =CurrencySymbol -> US$ | CC38: =Calculations!CZ37 -> 104166.6667
BC39: =CurrencySymbol -> US$ | BF39: =Calculations!CC38 -> 0 | BZ39: =CurrencySymbol -> US$ | CC39: =Calculations!CZ38 -> 0
A40: =IF(OR(LicenseType = Lists!#REF!,LicenseType=Lists!#REF!,LicenseType=Lists!#REF!),1,0) ->  | B40: 1 | H40: Total Annual Cost | BC40: =CurrencySymbol -> US$ | BF40: =Calculations!CC39 -> 17003.27808 | BZ40: =CurrencySymbol -> US$ | CC40: =Calculations!CZ39 -> 175724.8567
A41: =IF(OR(LicenseType=Lists!#REF!,LicenseType=Lists!#REF!,LicenseType=Lists!#REF!,LicenseType = Lists!#REF!), 0,1) -> 
A42: 0
A43: 1
A44: =IF(OR(LicenseType = Lists!#REF!,LicenseType = Lists!#REF!),1,0) -> 
A45: =IF(OR(LicenseType = Lists!#REF!,LicenseType = Lists!#REF!),0,0) -> 
EG47: ='Country information'!N1 -> Localized name | EH47: ='Country information'!C1 -> Currency | EI47: ='Country information'!D1 -> Symbol | EJ47: ='Country information'!E1 -> Exchange Rate | EK47: ='Country information'!F1 -> Date updated
A48: 1 | EG48: ='Country information'!N233 -> United States | EH48: ='Country information'!C233 -> dollar | EI48: ='Country information'!D233 -> US$ | EJ48: ='Country information'!E233 -> 1 | EK48: ='Country information'!F233 -> 40128.58928 | EL48: 1
EG49: ='Country information'!N21 -> Belgium | EH49: ='Country information'!C21 -> euro | EI49: ='Country information'!D21 -> € | EJ49: ='Country information'!E21 -> 0.77 | EK49: ='Country information'!F21 -> 40592.406
EG50: ='Country information'!N22 -> Belize | EH50: ='Country information'!C22 -> dollar | EI50: ='Country information'!D22 -> BZ$ | EJ50: ='Country information'!E22 -> 2 | EK50: ='Country information'!F22 -> 40592.40601
EG51: ='Country information'!N23 -> Benin | EH51: ='Country information'!C23 -> franc | EI51: ='Country information'!D23 -> CFAF | EJ51: ='Country information'!E23 -> 503.3 | EK51: ='Country information'!F23 -> 40592.40601
EG52: ='Country information'!N24 -> Bermuda | EH52: ='Country information'!C24 -> dollar | EI52: ='Country information'!D24 -> Bd$ | EJ52: ='Country information'!E24 -> 1 | EK52: ='Country information'!F24 -> 40592.40601
EG53: ='Country information'!N35 -> Burundi | EH53: ='Country information'!C35 -> franc | EI53: ='Country information'!D35 -> FBu | EJ53: ='Country information'!E35 -> 1243 | EK53: ='Country information'!F35 -> 40592.40601
EG54: ='Country information'!N36 -> Cambodia | EH54: ='Country information'!C36 -> new riel | EI54: ='Country information'!D36 -> CR | EJ54: ='Country information'!E36 -> 3975.4 | EK54: ='Country information'!F36 -> 39413
EG55: ='Country information'!N37 -> Cameroon | EH55: ='Country information'!C37 -> franc | EI55: ='Country information'!D37 -> CFAF | EJ55: ='Country information'!E37 -> 503.3 | EK55: ='Country information'!F37 -> 40592.40601
EG56: ='Country information'!N38 -> Canada | EH56: ='Country information'!C38 -> dollar | EI56: ='Country information'!D38 -> Can$ | EJ56: ='Country information'!E38 -> 1.02 | EK56: ='Country information'!F38 -> 40592.40601
EG57: ='Country information'!N39 -> Cape Verde Island | EH57: ='Country information'!C39 -> escudo | EI57: ='Country information'!D39 -> C.V.Esc. | EJ57: ='Country information'!E39 -> 74.31 | EK57: ='Country information'!F39 -> 39413
EG58: ='Country information'!N40 -> Cayman Islands | EH58: ='Country information'!C40 -> dollar | EI58: ='Country information'!D40 -> CI$ | EJ58: ='Country information'!E40 -> 0.82 | EK58: ='Country information'!F40 -> 40592.40601
EG59: ='Country information'!N41 -> Central African Republic | EH59: ='Country information'!C41 -> franc | EI59: ='Country information'!D41 -> CFAF | EJ59: ='Country information'!E41 -> 503.3 | EK59: ='Country information'!F41 -> 40592.40601
EG60: ='Country information'!N42 -> Chad | EH60: ='Country information'!C42 -> franc | EI60: ='Country information'!D42 -> CFAF | EJ60: ='Country information'!E42 -> 503.3 | EK60: ='Country information'!F42 -> 40592.40601
EG61: ='Country information'!N43 -> Chile | EH61: ='Country information'!C43 -> peso | EI61: ='Country information'!D43 -> Ch$ | EJ61: ='Country information'!E43 -> 486.7 | EK61: ='Country information'!F43 -> 40592.40601
EG62: ='Country information'!N44 -> China | EH62: ='Country information'!C44 -> yuan renminbi | EI62: ='Country information'!D44 -> ¥ | EJ62: ='Country information'!E44 -> 6.67 | EK62: ='Country information'!F44 -> 40592.40601
EG63: ='Country information'!N45 -> Christmas Island | EH63: ='Country information'!C45 -> dollar | EI63: ='Country information'!D45 -> A$ | EJ63: ='Country information'!E45 -> 1.04 | EK63: ='Country information'!F45 -> 40592.40605
EG64: ='Country information'!N46 -> Cocos (Keeling) Islands | EH64: ='Country information'!C46 -> dollar | EI64: ='Country information'!D46 -> A$ | EJ64: ='Country information'!E46 -> 1.04 | EK64: ='Country information'!F46 -> 40592.40605
EG65: ='Country information'!N47 -> Colombia | EH65: ='Country information'!C47 -> peso | EI65: ='Country information'!D47 -> Col$ | EJ65: ='Country information'!E47 -> 1920 | EK65: ='Country information'!F47 -> 40592.40601
EG66: ='Country information'!N48 -> Comoros | EH66: ='Country information'!C48 -> franc | EI66: ='Country information'!D48 -> KMF | EJ66: ='Country information'!E48 -> 361.35 | EK66: ='Country information'!F48 -> 40592.40601
EG67: ='Country information'!N49 -> Congo | EH67: ='Country information'!C49 -> franc | EI67: ='Country information'!D49 -> CFAF | EJ67: ='Country information'!E49 -> 503.3 | EK67: ='Country information'!F49 -> 40592.40601
EG68: ='Country information'!N50 -> Congo, Dem. Rep. | EH68: ='Country information'!C50 -> franc | EI68: ='Country information'!D50 -> CDF | EJ68: ='Country information'!E50 -> 560 | EK68: ='Country information'!F50 -> 39413
EG69: ='Country information'!N51 -> Cook Islands | EH69: ='Country information'!C51 -> dollar | EI69: ='Country information'!D51 -> NZ$ | EJ69: ='Country information'!E51 -> 1.34 | EK69: ='Country information'!F51 -> 40592.40605
EG70: ='Country information'!N52 -> Costa Rica | EH70: ='Country information'!C52 -> colon | EI70: ='Country information'!D52 -> ₡ | EJ70: ='Country information'!E52 -> 501.95 | EK70: ='Country information'!F52 -> 40592.40602
EG71: ='Country information'!N53 -> Côte d'Ivoire | EH71: ='Country information'!C53 -> franc | EI71: ='Country information'!D53 -> CFAF | EJ71: ='Country information'!E53 -> 503.3 | EK71: ='Country information'!F53 -> 40592.40605
EG72: ='Country information'!N54 -> Croatia | EH72: ='Country information'!C54 -> kuna | EI72: ='Country information'!D54 -> kn | EJ72: ='Country information'!E54 -> 5.59 | EK72: ='Country information'!F54 -> 40592.40602
EG73: ='Country information'!N55 -> Cuba (external) | EH73: ='Country information'!C55 -> convertible peso | EI73: ='Country information'!D55 -> Cuc$ | EJ73: ='Country information'!E55 -> 0.9259 | EK73: ='Country information'!F55 -> 39413
EG74: ='Country information'!N56 -> Cuba (internal) | EH74: ='Country information'!C56 -> peso | EI74: ='Country information'!D56 -> ₱ | EJ74: ='Country information'!E56 -> 26.49708532 | EK74: ='Country information'!F56 -> 39413
EG75: ='Country information'!N57 -> Cyprus | EH75: ='Country information'!C57 -> poundC | EI75: ='Country information'!D57 -> £C | EJ75: ='Country information'!E57 -> 0.77 | EK75: ='Country information'!F57 -> 40592.40602
EG76: ='Country information'!N58 -> Cyprus (Northern) | EH76: ='Country information'!C58 -> new lira | EI76: ='Country information'!D58 -> YTL | EJ76: ='Country information'!E58 -> 1.344989913 | EK76: ='Country information'!F58 -> 38817
EG77: ='Country information'!N59 -> Czech | EH77: ='Country information'!C59 -> koruna | EI77: ='Country information'!D59 -> Kč | EJ77: ='Country information'!E59 -> 17 | EK77: ='Country information'!F59 -> 40599.40435
EG78: ='Country information'!N60 -> Denmark | EH78: ='Country information'!C60 -> kroner | EI78: ='Country information'!D60 -> Dkr | EJ78: ='Country information'!E60 -> 5.72 | EK78: ='Country information'!F60 -> 40592.40602
EG79: ='Country information'!N61 -> Djibouti | EH79: ='Country information'!C61 -> franc | EI79: ='Country information'!D61 -> DF | EJ79: ='Country information'!E61 -> 177 | EK79: ='Country information'!F61 -> 40592.40602
EG80: ='Country information'!N62 -> Dominica | EH80: ='Country information'!C62 -> dollar | EI80: ='Country information'!D62 -> EC$ | EJ80: ='Country information'!E62 -> 2.7 | EK80: ='Country information'!F62 -> 40592.40605
EG81: ='Country information'!N63 -> Dominican Rep. | EH81: ='Country information'!C63 -> peso | EI81: ='Country information'!D63 -> RD$ | EJ81: ='Country information'!E63 -> 33.4835 | EK81: ='Country information'!F63 -> 39413
EG82: ='Country information'!N64 -> Dronning Maud Land | EH82: ='Country information'!C64 -> krone | EI82: ='Country information'!D64 -> NKr | EJ82: ='Country information'!E64 -> 6.2 | EK82: ='Country information'!F64 -> 40592.40605
EG83: ='Country information'!N65 -> East Timor | EH83: ='Country information'!C65 -> dollar | EI83: ='Country information'!D65 -> US$ | EJ83: ='Country information'!E65 -> 1 | EK83: ='Country information'!F65 -> 40592.40602
EG84: ='Country information'!N66 -> Ecuador | EH84: ='Country information'!C66 -> dollar | EI84: ='Country information'!D66 -> US$ | EJ84: ='Country information'!E66 -> 1 | EK84: ='Country information'!F66 -> 40128.58928
EG85: ='Country information'!N67 -> Egypt | EH85: ='Country information'!C67 -> poundE | EI85: ='Country information'!D67 -> £E | EJ85: ='Country information'!E67 -> 5.79 | EK85: ='Country information'!F67 -> 40592.40602
EG86: ='Country information'!N68 -> El Salvador | EH86: ='Country information'!C68 -> dollar | EI86: ='Country information'!D68 -> US$ | EJ86: ='Country information'!E68 -> 1 | EK86: ='Country information'!F68 -> 40592.40602
EG87: ='Country information'!N69 -> Equatorial Guinea | EH87: ='Country information'!C69 -> franc | EI87: ='Country information'!D69 -> CFAF | EJ87: ='Country information'!E69 -> 503.3 | EK87: ='Country information'!F69 -> 40592.40602
EG88: ='Country information'!N70 -> Eritrea | EH88: ='Country information'!C70 -> nakfa | EI88: ='Country information'!D70 -> Nfa | EJ88: ='Country information'!E70 -> 15 | EK88: ='Country information'!F70 -> 40592.40602
EG89: ='Country information'!N71 -> Estonia | EH89: ='Country information'!C71 -> kroon | EI89: ='Country information'!D71 -> KR | EJ89: ='Country information'!E71 -> 12 | EK89: ='Country information'!F71 -> 40592.40602
EG90: ='Country information'!N72 -> Ethiopia | EH90: ='Country information'!C72 -> birr | EI90: ='Country information'!D72 -> Br | EJ90: ='Country information'!E72 -> 16.49 | EK90: ='Country information'!F72 -> 40592.40602
EG91: ='Country information'!N73 -> Faeroe Islands (Føroyar) | EH91: ='Country information'!C73 -> kroner | EI91: ='Country information'!D73 -> Dkr | EJ91: ='Country information'!E73 -> 5.72 | EK91: ='Country information'!F73 -> 40592.40605
EG92: ='Country information'!N74 -> Falkland Islands | EH92: ='Country information'!C74 -> pound | EI92: ='Country information'!D74 -> £ | EJ92: ='Country information'!E74 -> 0.64 | EK92: ='Country information'!F74 -> 40592.40605
EG93: ='Country information'!N75 -> Fiji | EH93: ='Country information'!C75 -> dollar | EI93: ='Country information'!D75 -> F$ | EJ93: ='Country information'!E75 -> 1.82 | EK93: ='Country information'!F75 -> 40592.40602
EG94: ='Country information'!N76 -> Finland | EH94: ='Country information'!C76 -> euro | EI94: ='Country information'!D76 -> € | EJ94: ='Country information'!E76 -> 0.77 | EK94: ='Country information'!F76 -> 40592.40602
EG95: ='Country information'!N77 -> France | EH95: ='Country information'!C77 -> euro | EI95: ='Country information'!D77 -> € | EJ95: ='Country information'!E77 -> 0.77 | EK95: ='Country information'!F77 -> 40592.40602
EG96: ='Country information'!N78 -> French Guiana | EH96: ='Country information'!C78 -> euro | EI96: ='Country information'!D78 -> € | EJ96: ='Country information'!E78 -> 0.77 | EK96: ='Country information'!F78 -> 40592.40605
EG97: ='Country information'!N79 -> French Polynesia | EH97: ='Country information'!C79 -> euro | EI97: ='Country information'!D79 -> € | EJ97: ='Country information'!E79 -> 0.733 | EK97: ='Country information'!F79 -> 39413
EG98: ='Country information'!N80 -> Gabon | EH98: ='Country information'!C80 -> franc | EI98: ='Country information'!D80 -> CFAF | EJ98: ='Country information'!E80 -> 503.3 | EK98: ='Country information'!F80 -> 40592.40602
EG99: ='Country information'!N81 -> Gambia | EH99: ='Country information'!C81 -> dalasi | EI99: ='Country information'!D81 -> D | EJ99: ='Country information'!E81 -> 28 | EK99: ='Country information'!F81 -> 40592.40602
EG100: ='Country information'!N82 -> Gaza | EH100: ='Country information'!C82 -> new shekel | EI100: ='Country information'!D82 -> NIS | EJ100: ='Country information'!E82 -> 3.8614 | EK100: ='Country information'!F82 -> 39413
EG101: ='Country information'!N83 -> Georgia | EH101: ='Country information'!C83 -> lari | EI101: ='Country information'!D83 -> GEL | EJ101: ='Country information'!E83 -> 1.76 | EK101: ='Country information'!F83 -> 40592.40602
EG102: ='Country information'!N84 -> Germany | EH102: ='Country information'!C84 -> euro | EI102: ='Country information'!D84 -> € | EJ102: ='Country information'!E84 -> 0.77 | EK102: ='Country information'!F84 -> 40592.40605
EG103: ='Country information'!N85 -> Ghana | EH103: ='Country information'!C85 -> new cedi | EI103: ='Country information'!D85 -> ¢ | EJ103: ='Country information'!E85 -> 1.45 | EK103: ='Country information'!F85 -> 40592.40602
EG104: ='Country information'!N86 -> Gibraltar | EH104: ='Country information'!C86 -> pound | EI104: ='Country information'!D86 -> £ | EJ104: ='Country information'!E86 -> 0.64 | EK104: ='Country information'!F86 -> 40592.40605
EG105: ='Country information'!N87 -> Great Britain | EH105: ='Country information'!C87 -> pound | EI105: ='Country information'!D87 -> £ | EJ105: ='Country information'!E87 -> 0.64 | EK105: ='Country information'!F87 -> 40592.40605
EG106: ='Country information'!N88 -> Greece | EH106: ='Country information'!C88 -> euro | EI106: ='Country information'!D88 -> € | EJ106: ='Country information'!E88 -> 0.77 | EK106: ='Country information'!F88 -> 40592.40602
EG107: ='Country information'!N89 -> Greenland | EH107: ='Country information'!C89 -> kroner | EI107: ='Country information'!D89 -> Dkr | EJ107: ='Country information'!E89 -> 5.72 | EK107: ='Country information'!F89 -> 40592.40605
EG108: ='Country information'!N90 -> Grenada | EH108: ='Country information'!C90 -> dollar | EI108: ='Country information'!D90 -> EC$ | EJ108: ='Country information'!E90 -> 2.7 | EK108: ='Country information'!F90 -> 40592.40602
EG109: ='Country information'!N91 -> Guadeloupe | EH109: ='Country information'!C91 -> euro | EI109: ='Country information'!D91 -> € | EJ109: ='Country information'!E91 -> 0.77 | EK109: ='Country information'!F91 -> 40592.40605
EG110: ='Country information'!N92 -> Guam | EH110: ='Country information'!C92 -> dollar | EI110: ='Country information'!D92 -> US$ | EJ110: ='Country information'!E92 -> 1 | EK110: ='Country information'!F92 -> 40128.58928
EG111: ='Country information'!N93 -> Guatemala | EH111: ='Country information'!C93 -> quetzal | EI111: ='Country information'!D93 -> Q | EJ111: ='Country information'!E93 -> 8 | EK111: ='Country information'!F93 -> 40592.40602
EG112: ='Country information'!N94 -> Guernsey | EH112: ='Country information'!C94 -> pound | EI112: ='Country information'!D94 -> £ | EJ112: ='Country information'!E94 -> 0.64 | EK112: ='Country information'!F94 -> 40592.40605
EG113: ='Country information'!N95 -> Guinea | EH113: ='Country information'!C95 -> franc | EI113: ='Country information'!D95 -> GNF | EJ113: ='Country information'!E95 -> 6078 | EK113: ='Country information'!F95 -> 40592.40602
EG114: ='Country information'!N96 -> Guinea-Bissau | EH114: ='Country information'!C96 -> franc | EI114: ='Country information'!D96 -> CFAF | EJ114: ='Country information'!E96 -> 503.3 | EK114: ='Country information'!F96 -> 40592.40605
EG115: ='Country information'!N97 -> Guyana | EH115: ='Country information'!C97 -> dollar | EI115: ='Country information'!D97 -> G$ | EJ115: ='Country information'!E97 -> 201 | EK115: ='Country information'!F97 -> 40592.40602
EG116: ='Country information'!N98 -> Haiti | EH116: ='Country information'!C98 -> gourde | EI116: ='Country information'!D98 -> G | EJ116: ='Country information'!E98 -> 38.5 | EK116: ='Country information'!F98 -> 40592.40602
EG117: ='Country information'!N99 -> Heard and McDonald Islands | EH117: ='Country information'!C99 -> dollar | EI117: ='Country information'!D99 -> A$ | EJ117: ='Country information'!E99 -> 1.04 | EK117: ='Country information'!F99 -> 40592.40605
EG118: ='Country information'!N100 -> Honduras | EH118: ='Country information'!C100 -> lempira | EI118: ='Country information'!D100 -> L | EJ118: ='Country information'!E100 -> 18.9 | EK118: ='Country information'!F100 -> 40592.40602
EG119: ='Country information'!N101 -> Hong Kong | EH119: ='Country information'!C101 -> dollar | EI119: ='Country information'!D101 -> HK$ | EJ119: ='Country information'!E101 -> 7.77 | EK119: ='Country information'!F101 -> 40592.40603
EG120: ='Country information'!N102 -> Hungary | EH120: ='Country information'!C102 -> forint | EI120: ='Country information'!D102 -> Ft | EJ120: ='Country information'!E102 -> 217.12 | EK120: ='Country information'!F102 -> 40592.40603
EG121: ='Country information'!N103 -> Iceland | EH121: ='Country information'!C103 -> króna | EI121: ='Country information'!D103 -> IKr | EJ121: ='Country information'!E103 -> 117.07 | EK121: ='Country information'!F103 -> 40592.40603
EG122: ='Country information'!N104 -> India | EH122: ='Country information'!C104 -> rupee | EI122: ='Country information'!D104 -> ₨ | EJ122: ='Country information'!E104 -> 45.7 | EK122: ='Country information'!F104 -> 40592.40603
EG123: ='Country information'!N105 -> Indonesia | EH123: ='Country information'!C105 -> rupiah | EI123: ='Country information'!D105 -> Rp | EJ123: ='Country information'!E105 -> 8900 | EK123: ='Country information'!F105 -> 40592.40603
EG124: ='Country information'!N106 -> Iran | EH124: ='Country information'!C106 -> rial | EI124: ='Country information'!D106 -> ﷼ | EJ124: ='Country information'!E106 -> 8229 | EK124: ='Country information'!F106 -> 40592.40603
EG125: ='Country information'!N107 -> Iraq | EH125: ='Country information'!C107 -> new dinar | EI125: ='Country information'!D107 -> ID | EJ125: ='Country information'!E107 -> 1166.5 | EK125: ='Country information'!F107 -> 40592.40603
EG126: ='Country information'!N108 -> Ireland | EH126: ='Country information'!C108 -> euro | EI126: ='Country information'!D108 -> € | EJ126: ='Country information'!E108 -> 0.77 | EK126: ='Country information'!F108 -> 40592.40603
EG127: ='Country information'!N109 -> Isle of Man | EH127: ='Country information'!C109 -> pound | EI127: ='Country information'!D109 -> £ | EJ127: ='Country information'!E109 -> 0.64 | EK127: ='Country information'!F109 -> 40592.40605
EG128: ='Country information'!N110 -> Israel | EH128: ='Country information'!C110 -> new shekel | EI128: ='Country information'!D110 -> ₪ | EJ128: ='Country information'!E110 -> 3.68 | EK128: ='Country information'!F110 -> 40592.40603
EG129: ='Country information'!N111 -> Italy | EH129: ='Country information'!C111 -> euro | EI129: ='Country information'!D111 -> € | EJ129: ='Country information'!E111 -> 0.77 | EK129: ='Country information'!F111 -> 40592.40603
EG130: ='Country information'!N112 -> Ivory Coast | EH130: ='Country information'!C112 -> franc | EI130: ='Country information'!D112 -> CFAF | EJ130: ='Country information'!E112 -> 503.3 | EK130: ='Country information'!F112 -> 40592.40605
EG131: ='Country information'!N113 -> Jamaica | EH131: ='Country information'!C113 -> dollar | EI131: ='Country information'!D113 -> J$ | EJ131: ='Country information'!E113 -> 85.8 | EK131: ='Country information'!F113 -> 40592.40603
EG132: ='Country information'!N114 -> Japan | EH132: ='Country information'!C114 -> yen | EI132: ='Country information'!D114 -> ¥ | EJ132: ='Country information'!E114 -> 83.83 | EK132: ='Country information'!F114 -> 40592.40603
EG133: ='Country information'!N115 -> Jersey | EH133: ='Country information'!C115 -> pound | EI133: ='Country information'!D115 -> £ | EJ133: ='Country information'!E115 -> 0.64 | EK133: ='Country information'!F115 -> 40592.40605
EG134: ='Country information'!N116 -> Johnston Island | EH134: ='Country information'!C116 -> dollar | EI134: ='Country information'!D116 -> US$ | EJ134: ='Country information'!E116 -> 1 | EK134: ='Country information'!F116 -> 40128.58928
EG135: ='Country information'!N117 -> Jordan | EH135: ='Country information'!C117 -> dinar | EI135: ='Country information'!D117 -> JD | EJ135: ='Country information'!E117 -> 0.71 | EK135: ='Country information'!F117 -> 40592.40603
EG136: ='Country information'!N118 -> Kampuchea | EH136: ='Country information'!C118 -> new riel | EI136: ='Country information'!D118 -> CR | EJ136: ='Country information'!E118 -> 3975.4 | EK136: ='Country information'!F118 -> 39413
EG137: ='Country information'!N119 -> Kazakhstan | EH137: ='Country information'!C119 -> tenge | EI137: ='Country information'!D119 -> лв | EJ137: ='Country information'!E119 -> 147.5 | EK137: ='Country information'!F119 -> 40592.40603
EG138: ='Country information'!N120 -> Kenya | EH138: ='Country information'!C120 -> shilling | EI138: ='Country information'!D120 -> K Sh | EJ138: ='Country information'!E120 -> 80.9 | EK138: ='Country information'!F120 -> 40592.40603
EG139: ='Country information'!N121 -> Kiribati | EH139: ='Country information'!C121 -> dollar | EI139: ='Country information'!D121 -> A$ | EJ139: ='Country information'!E121 -> 1.04 | EK139: ='Country information'!F121 -> 40592.40605
EG140: ='Country information'!N122 -> Korea, North | EH140: ='Country information'!C122 -> won | EI140: ='Country information'!D122 -> Wn | EJ140: ='Country information'!E122 -> 142.45 | EK140: ='Country information'!F122 -> 39413
EG141: ='Country information'!N123 -> Korea, South | EH141: ='Country information'!C123 -> won | EI141: ='Country information'!D123 -> W | EJ141: ='Country information'!E123 -> 929.689 | EK141: ='Country information'!F123 -> 39413
EG142: ='Country information'!N124 -> Kuwait | EH142: ='Country information'!C124 -> dinar | EI142: ='Country information'!D124 -> KD | EJ142: ='Country information'!E124 -> 0.28 | EK142: ='Country information'!F124 -> 40592.40603
EG143: ='Country information'!N125 -> Kyrgyzstan | EH143: ='Country information'!C125 -> som | EI143: ='Country information'!D125 -> KGS | EJ143: ='Country information'!E125 -> 46.8 | EK143: ='Country information'!F125 -> 40592.40603
EG144: ='Country information'!N126 -> Laos | EH144: ='Country information'!C126 -> new kip | EI144: ='Country information'!D126 -> ₭ | EJ144: ='Country information'!E126 -> 8031 | EK144: ='Country information'!F126 -> 40592.40603
EG145: ='Country information'!N127 -> Latvia | EH145: ='Country information'!C127 -> lat | EI145: ='Country information'!D127 -> Ls | EJ145: ='Country information'!E127 -> 0.54 | EK145: ='Country information'!F127 -> 40592.40603
EG146: ='Country information'!N128 -> Lebanon | EH146: ='Country information'!C128 -> pound | EI146: ='Country information'!D128 -> L.L. | EJ146: ='Country information'!E128 -> 1500 | EK146: ='Country information'!F128 -> 40592.40603
EG147: ='Country information'!N129 -> Lesotho | EH147: ='Country information'!C129 -> loti | EI147: ='Country information'!D129 -> L | EJ147: ='Country information'!E129 -> 7.07 | EK147: ='Country information'!F129 -> 40592.40603
EG148: ='Country information'!N130 -> Liberia | EH148: ='Country information'!C130 -> dollar | EI148: ='Country information'!D130 -> US$ | EJ148: ='Country information'!E130 -> 49 | EK148: ='Country information'!F130 -> 40592.40603
EG149: ='Country information'!N131 -> Libya | EH149: ='Country information'!C131 -> dinar | EI149: ='Country information'!D131 -> LD | EJ149: ='Country information'!E131 -> 1.25 | EK149: ='Country information'!F131 -> 40592.40603
EG150: ='Country information'!N132 -> Liechtenstein | EH150: ='Country information'!C132 -> franc | EI150: ='Country information'!D132 -> SwF | EJ150: ='Country information'!E132 -> 1 | EK150: ='Country information'!F132 -> 40592.40606
EG151: ='Country information'!N133 -> Lithuania | EH151: ='Country information'!C133 -> litai | EI151: ='Country information'!D133 -> Lt | EJ151: ='Country information'!E133 -> 2.65 | EK151: ='Country information'!F133 -> 40592.40603
EG152: ='Country information'!N134 -> Luxembourg | EH152: ='Country information'!C134 -> euro | EI152: ='Country information'!D134 -> € | EJ152: ='Country information'!E134 -> 0.77 | EK152: ='Country information'!F134 -> 40592.40603
EG153: ='Country information'!N135 -> Macao (Macau) | EH153: ='Country information'!C135 -> pataca | EI153: ='Country information'!D135 -> P | EJ153: ='Country information'!E135 -> 8 | EK153: ='Country information'!F135 -> 39413
EG154: ='Country information'!N136 -> Macedonia | EH154: ='Country information'!C136 -> denar | EI154: ='Country information'!D136 -> ден | EJ154: ='Country information'!E136 -> 41.4625 | EK154: ='Country information'!F136 -> 39413
EG155: ='Country information'!N137 -> Madagascar | EH155: ='Country information'!C137 -> ariayry | EI155: ='Country information'!D137 -> MGA | EJ155: ='Country information'!E137 -> 2010.61 | EK155: ='Country information'!F137 -> 40592.40603
EG156: ='Country information'!N138 -> Malawi | EH156: ='Country information'!C138 -> kwacha | EI156: ='Country information'!D138 -> MK | EJ156: ='Country information'!E138 -> 151 | EK156: ='Country information'!F138 -> 40592.40603
EG157: ='Country information'!N139 -> Malaysia | EH157: ='Country information'!C139 -> ringgit | EI157: ='Country information'!D139 -> RM | EJ157: ='Country information'!E139 -> 3.17 | EK157: ='Country information'!F139 -> 40592.40603
EG158: ='Country information'!N140 -> Maldives | EH158: ='Country information'!C140 -> rufiyaa | EI158: ='Country information'!D140 -> Rf | EJ158: ='Country information'!E140 -> 12.8 | EK158: ='Country information'!F140 -> 39413
EG159: ='Country information'!N141 -> Mali | EH159: ='Country information'!C141 -> franc | EI159: ='Country information'!D141 -> CFAF | EJ159: ='Country information'!E141 -> 503.3 | EK159: ='Country information'!F141 -> 40592.40603
EG160: ='Country information'!N142 -> Malta | EH160: ='Country information'!C142 -> lira | EI160: ='Country information'!D142 -> Lm | EJ160: ='Country information'!E142 -> 0.77 | EK160: ='Country information'!F142 -> 40592.40603
EG161: ='Country information'!N143 -> Martinique | EH161: ='Country information'!C143 -> euro | EI161: ='Country information'!D143 -> € | EJ161: ='Country information'!E143 -> 0.77 | EK161: ='Country information'!F143 -> 40592.40603
EG162: ='Country information'!N144 -> Mauritania | EH162: ='Country information'!C144 -> ouguiya | EI162: ='Country information'!D144 -> UM | EJ162: ='Country information'!E144 -> 290 | EK162: ='Country information'!F144 -> 40592.40603
EG163: ='Country information'!N145 -> Mauritius | EH163: ='Country information'!C145 -> rupee | EI163: ='Country information'!D145 -> Mau Rs | EJ163: ='Country information'!E145 -> 30.3 | EK163: ='Country information'!F145 -> 40592.40603
EG164: ='Country information'!N146 -> Mexico | EH164: ='Country information'!C146 -> peso | EI164: ='Country information'!D146 -> Mex$ | EJ164: ='Country information'!E146 -> 12.5 | EK164: ='Country information'!F146 -> 40592.40603
EG165: ='Country information'!N147 -> Micronesia | EH165: ='Country information'!C147 -> dollar | EI165: ='Country information'!D147 -> US$ | EJ165: ='Country information'!E147 -> 1 | EK165: ='Country information'!F147 -> 40592.40603
EG166: ='Country information'!N148 -> Midway Islands | EH166: ='Country information'!C148 -> dollar | EI166: ='Country information'!D148 -> US$ | EJ166: ='Country information'!E148 -> 1 | EK166: ='Country information'!F148 -> 40128.58928
EG167: ='Country information'!N149 -> Moldova | EH167: ='Country information'!C149 -> Lei | EI167: ='Country information'!D149 -> MDL | EJ167: ='Country information'!E149 -> 12.17 | EK167: ='Country information'!F149 -> 40592.40603
EG168: ='Country information'!N150 -> Monaco | EH168: ='Country information'!C150 -> euro | EI168: ='Country information'!D150 -> € | EJ168: ='Country information'!E150 -> 0.77 | EK168: ='Country information'!F150 -> 40592.40605
EG169: ='Country information'!N151 -> Mongolia | EH169: ='Country information'!C151 -> tughrik | EI169: ='Country information'!D151 -> ₮ | EJ169: ='Country information'!E151 -> 1262.45 | EK169: ='Country information'!F151 -> 40592.40603
EG170: ='Country information'!N152 -> Montserrat | EH170: ='Country information'!C152 -> dollar | EI170: ='Country information'!D152 -> EC$ | EJ170: ='Country information'!E152 -> 2.7 | EK170: ='Country information'!F152 -> 40592.40605
EG171: ='Country information'!N153 -> Morocco | EH171: ='Country information'!C153 -> dirham | EI171: ='Country information'!D153 -> DH | EJ171: ='Country information'!E153 -> 8.5 | EK171: ='Country information'!F153 -> 40592.40604
EG172: ='Country information'!N154 -> Mozambique | EH172: ='Country information'!C154 -> metical | EI172: ='Country information'!D154 -> Mt | EJ172: ='Country information'!E154 -> 35.71 | EK172: ='Country information'!F154 -> 40592.40604
EG173: ='Country information'!N155 -> Myanmar | EH173: ='Country information'!C155 -> kyat | EI173: ='Country information'!D155 -> K | EJ173: ='Country information'!E155 -> 6.42085 | EK173: ='Country information'!F155 -> 39413
EG174: ='Country information'!N156 -> Namibia | EH174: ='Country information'!C156 -> dollar | EI174: ='Country information'!D156 -> N$ | EJ174: ='Country information'!E156 -> 7.07 | EK174: ='Country information'!F156 -> 40592.40604
EG175: ='Country information'!N157 -> Nauru | EH175: ='Country information'!C157 -> dollar | EI175: ='Country information'!D157 -> A$ | EJ175: ='Country information'!E157 -> 1.04 | EK175: ='Country information'!F157 -> 40592.40605
EG176: ='Country information'!N158 -> Nepal | EH176: ='Country information'!C158 -> rupee | EI176: ='Country information'!D158 -> NRs | EJ176: ='Country information'!E158 -> 72.95 | EK176: ='Country information'!F158 -> 40592.40604
EG177: ='Country information'!N159 -> Netherlands | EH177: ='Country information'!C159 -> euro | EI177: ='Country information'!D159 -> € | EJ177: ='Country information'!E159 -> 0.77 | EK177: ='Country information'!F159 -> 40592.40604
EG178: ='Country information'!N160 -> Netherlands Antilles | EH178: ='Country information'!C160 -> guilder | EI178: ='Country information'!D160 -> NAf. | EJ178: ='Country information'!E160 -> 1.78 | EK178: ='Country information'!F160 -> 40592.40604
EG179: ='Country information'!N161 -> New Caledonia | EH179: ='Country information'!C161 -> franc | EI179: ='Country information'!D161 -> XPF | EJ179: ='Country information'!E161 -> 80.1131 | EK179: ='Country information'!F161 -> 39413
EG180: ='Country information'!N162 -> New Zealand | EH180: ='Country information'!C162 -> dollar | EI180: ='Country information'!D162 -> NZ$ | EJ180: ='Country information'!E162 -> 1.34 | EK180: ='Country information'!F162 -> 40592.40604
EG181: ='Country information'!N163 -> Nicaragua | EH181: ='Country information'!C163 -> gold cordoba | EI181: ='Country information'!D163 -> C$ | EJ181: ='Country information'!E163 -> 21.79 | EK181: ='Country information'!F163 -> 40592.40604
EG182: ='Country information'!N164 -> Niger | EH182: ='Country information'!C164 -> franc | EI182: ='Country information'!D164 -> CFAF | EJ182: ='Country information'!E164 -> 503.3 | EK182: ='Country information'!F164 -> 40592.40604
EG183: ='Country information'!N165 -> Nigeria | EH183: ='Country information'!C165 -> naira | EI183: ='Country information'!D165 -> ₦ | EJ183: ='Country information'!E165 -> 150.6 | EK183: ='Country information'!F165 -> 40592.40604
EG184: ='Country information'!N166 -> Niue | EH184: ='Country information'!C166 -> dollar | EI184: ='Country information'!D166 -> NZ$ | EJ184: ='Country information'!E166 -> 1.34 | EK184: ='Country information'!F166 -> 40592.40605
EG185: ='Country information'!N167 -> Norfolk Island | EH185: ='Country information'!C167 -> dollar | EI185: ='Country information'!D167 -> A$ | EJ185: ='Country information'!E167 -> 1.04 | EK185: ='Country information'!F167 -> 40592.40605
EG186: ='Country information'!N168 -> Norway | EH186: ='Country information'!C168 -> krone | EI186: ='Country information'!D168 -> NKr | EJ186: ='Country information'!E168 -> 6.2 | EK186: ='Country information'!F168 -> 40592.40604
EG187: ='Country information'!N169 -> Oman | EH187: ='Country information'!C169 -> rial | EI187: ='Country information'!D169 -> ﷼ | EJ187: ='Country information'!E169 -> 0.39 | EK187: ='Country information'!F169 -> 40592.40604
EG188: ='Country information'!N170 -> Pakistan | EH188: ='Country information'!C170 -> rupee | EI188: ='Country information'!D170 -> Rs | EJ188: ='Country information'!E170 -> 85.7 | EK188: ='Country information'!F170 -> 40592.40604
EG189: ='Country information'!N171 -> Palau | EH189: ='Country information'!C171 -> dollar | EI189: ='Country information'!D171 -> US$ | EJ189: ='Country information'!E171 -> 1 | EK189: ='Country information'!F171 -> 40592.40604
EG190: ='Country information'!N172 -> Panama | EH190: ='Country information'!C172 -> balboa | EI190: ='Country information'!D172 -> B/. | EJ190: ='Country information'!E172 -> 1 | EK190: ='Country information'!F172 -> 40592.40604
EG191: ='Country information'!N173 -> Papua New Guinea | EH191: ='Country information'!C173 -> kina | EI191: ='Country information'!D173 -> K | EJ191: ='Country information'!E173 -> 2.48 | EK191: ='Country information'!F173 -> 40592.40604
EG192: ='Country information'!N174 -> Paraguay | EH192: ='Country information'!C174 -> guarani | EI192: ='Country information'!D174 -> PYG | EJ192: ='Country information'!E174 -> 4700 | EK192: ='Country information'!F174 -> 40592.40604
EG193: ='Country information'!N175 -> Peru | EH193: ='Country information'!C175 -> new sol | EI193: ='Country information'!D175 -> S/. | EJ193: ='Country information'!E175 -> 3.01485 | EK193: ='Country information'!F175 -> 39413
EG194: ='Country information'!N176 -> Philippines | EH194: ='Country information'!C176 -> peso | EI194: ='Country information'!D176 -> PHP | EJ194: ='Country information'!E176 -> 44.1 | EK194: ='Country information'!F176 -> 40592.40604
EG195: ='Country information'!N177 -> Pitcairn Island | EH195: ='Country information'!C177 -> dollar | EI195: ='Country information'!D177 -> NZ$ | EJ195: ='Country information'!E177 -> 1.34 | EK195: ='Country information'!F177 -> 40592.40605
EG196: ='Country information'!N178 -> Poland | EH196: ='Country information'!C178 -> zloty | EI196: ='Country information'!D178 -> zł | EJ196: ='Country information'!E178 -> 3.11 | EK196: ='Country information'!F178 -> 40592.40604
EG197: ='Country information'!N179 -> Portugal | EH197: ='Country information'!C179 -> euro | EI197: ='Country information'!D179 -> € | EJ197: ='Country information'!E179 -> 0.77 | EK197: ='Country information'!F179 -> 40592.40604
EG198: ='Country information'!N180 -> Puerto Rico | EH198: ='Country information'!C180 -> dollar | EI198: ='Country information'!D180 -> US$ | EJ198: ='Country information'!E180 -> 1 | EK198: ='Country information'!F180 -> 40128.58928
EG199: ='Country information'!N181 -> Qatar | EH199: ='Country information'!C181 -> riyal | EI199: ='Country information'!D181 -> QAR | EJ199: ='Country information'!E181 -> 3.64 | EK199: ='Country information'!F181 -> 40592.40604
EG200: ='Country information'!N182 -> Reunion | EH200: ='Country information'!C182 -> euro | EI200: ='Country information'!D182 -> € | EJ200: ='Country information'!E182 -> 0.77 | EK200: ='Country information'!F182 -> 40592.40605
EG201: ='Country information'!N183 -> Romania | EH201: ='Country information'!C183 -> Lei | EI201: ='Country information'!D183 -> L | EJ201: ='Country information'!E183 -> 3.29 | EK201: ='Country information'!F183 -> 40592.40604
EG202: ='Country information'!N184 -> Russia | EH202: ='Country information'!C184 -> ruble | EI202: ='Country information'!D184 -> руб | EJ202: ='Country information'!E184 -> 31.4 | EK202: ='Country information'!F184 -> 40592.40604
EG203: ='Country information'!N185 -> Rwanda | EH203: ='Country information'!C185 -> franc | EI203: ='Country information'!D185 -> RF | EJ203: ='Country information'!E185 -> 592.02 | EK203: ='Country information'!F185 -> 40592.40604
EG204: ='Country information'!N186 -> Samoa (America) | EH204: ='Country information'!C186 -> dollar | EI204: ='Country information'!D186 -> US$ | EJ204: ='Country information'!E186 -> 1 | EK204: ='Country information'!F186 -> 40128.58928
... 60 more rows

Sheet Hardware
H2: =Lists!B14 -> Hardware Configuration
H3: There are several different ways to configure the hardware for Windows Server virtualization. The configuration depends on price and performance considerations.
H4: =Lists!$B$28 -> Inputs
H5: If you need to enter a custom configuration with multiple connection types or a variable number of stations per host please click here.
A6: =IF(customhardware,1,0) -> 0 | H6: You have entered some advanced inputs on the alternative configuration page. These changes will not be reflected on this sheet.
A7: =IF(customconnection,0,1) -> 1 | Z7: =Lists!$B$6 -> User Selection | AK7: =Lists!$C$6 -> Suggested Value
A8: 1 | H8: Station Connection Method | Z8: =AK8 -> LAN Connection | AK8: =IF(OR('Start Page'!BH23=Lists!B2,'Start Page'!BH25=Lists!C2),Lists!B24,IF('Start Page'!$BH$22=Lists!$B$23,Lists!$D$24,Lists!$C$24)) -> LAN Connection
A9: 1 | H9: Selection criteria for suggested value
A10: 1 | I10: =IF(havedevices=Lists!B2,Lists!B30,Lists!C30) -> Not reusing existing PCs, thin clients, etc. | AR10: =IF(havedevices=Lists!B2,Lists!B33,Lists!C33) -> Any connection method can be used | BP10: More information on Station connection methods
A11: 1 | I11: =IF(samelocation=Lists!B2,Lists!B31,Lists!C31) -> Require flexibility on station location | AR11: =IF(samelocation=Lists!B2,Lists!C33,Lists!B33) -> Requires a LAN Connection
A12: 1 | I12: =IF(usage=Lists!B23,Lists!B32,IF(usage=Lists!C23,Lists!C32,Lists!D32)) -> Running a mixed set of productivity and multimedia | AR12: =IF(usage=Lists!B23,Lists!B34,Lists!C34) -> Video Card/USB or LAN recommended
A13: 1
A14: 1 | Z14: =Lists!$B$6 -> User Selection | AK14: =Lists!$C$6 -> Suggested Value
A15: 1 | H15: # of stations per host computer | Y15: ? | AC15: 14 | AN15: =VLOOKUP(usage,'Data Tables'!$I$30:$L$32,VLOOKUP(configuration,'Data Tables'!$P$29:$Q$31,2,FALSE),FALSE) -> 15
A16: 1 | H16: This input depends on the needs of the organization, the station connection method, and the amount of video to be used.
A17: 1 | H17: The tool selects from the following table when making the selection. Other configurations are possible.
A18: 1 | AG18: =Lists!B24 -> LAN Connection | AQ18: =Lists!C24 -> Video Card/USB | BA18: =Lists!D24 -> USB Connection
A19: 1 | H19: =Lists!B23 -> Internet and productivity applications only | AG19: ='Data Tables'!J30 -> 20 | AQ19: ='Data Tables'!K30 -> 15 | BA19: ='Data Tables'!L30 -> 10
A20: 1 | H20: =Lists!C23 -> Internet, productivity and light multimedia | AG20: ='Data Tables'!J31 -> 15 | AQ20: ='Data Tables'!K31 -> 10 | BA20: ='Data Tables'!L31 -> 5
A21: 1 | H21: =Lists!D23 -> Internet, productivity and heavy multimedia | AG21: ='Data Tables'!J32 -> 10 | AQ21: ='Data Tables'!K32 -> 5 | BA21: ='Data Tables'!L32 -> 2
A22: 1
A23: =IF(customserver,0,1) -> 1 | H23: Host server configuration | Z23: =Lists!$B$6 -> User Selection | AK23: =Lists!$C$6 -> Suggested Value
A24: =IF(customserver,0,1) -> 1 | H24: Number or processor cores | Z24: Cores | AC24: =AN24 -> 6 | AK24: Cores | AN24: =VLOOKUP(usage,'Data Tables'!$I$19:$N$21,VLOOKUP($AC$15,'Data Tables'!$P$18:$Q$22,2),FALSE) -> 6
A25: =IF(customserver,0,1) -> 1 | H25: Amount of RAM | Z25: GB | AC25: 16 | AK25: GB | AN25: =VLOOKUP(usage,'Data Tables'!$I$24:$N$26,VLOOKUP($AC$15,'Data Tables'!$P$18:$Q$22,2),FALSE) -> 8
A26: =IF(customserver,0,1) -> 1 | H26: The required configuration of the host computer will depend on the applications that it will be running and the number of stations supported. The tool will vary the number of processor cores and the amount of RAM included in the server configuration to meet the minimum server specifications for the Windows Server configuration entered. Many other configuration are possible and you may want to use a server that exceeds the minimum specifications. | BP26: More information on server configuration recommendations
A27: =IF(customserver,0,1) -> 1
H28: =Lists!$C$28 -> Calculations
A29: 1 | H29: Please enter the cost for the devices below. You may also modify the number of devices if your configuration will differ from the calculated value. The cost information is used directly for the cost comparison.
A30: 1 | H30: HUB 400 zero client deployment | Y30: Actual Cost | AH30: Suggested Cost | AP30: Number required | AU30: Suggested Count | BA30: Total Cost | BK30: Traditional deployment | CB30: Actual Cost | CK30: Suggested Cost | CS30: Number required | CX30: Suggested Count | DD30: Total Cost
A31: 1 | H31: Host computer | X31: ? | Y31: =CurrencySymbol -> US$ | AB31: 1300 | AH31: =CurrencySymbol -> US$ | AK31: =(IF('Start Page'!$BH$22=Lists!$B$23,'Data Tables'!$B$16,'Data Tables'!$B$17)+$AC$24*'Data Tables'!$D$20+VLOOKUP($AC$25,'Data Tables'!$F$17:$G$20,2))*Rate*hardwaremult -> 1950 | AQ31: =AV31 -> 72 | AV31: =ROUNDUP(Users/Hardware!$AC$15,0) -> 72 | BA31: =CurrencySymbol -> US$ | BD31: =AB31*AQ31 -> 93600 | BK31: Laptop or PC (includes monitor, mouse, keyboard) Excluding the Operating System license | CA31: ? | CB31: =CurrencySymbol -> US$ | CE31: 600 | CK31: =CurrencySymbol -> US$ | CN31: =800*Rate*hardwaremult -> 800 | CT31: =CY31 -> 1000 | CY31: =Users -> 1000 | DD31: =CurrencySymbol -> US$ | DG31: =CE31*CT31 -> 600000
A32: 1 | H32: Monitor | X32: ? | Y32: US$ | AB32: 100 | AH32: US$ | AK32: 100 | AQ32: 1000 | AV32: =Users -> 1000 | BA32: US$ | BD32: 100000
A33: 1 | H33: Mouse and keyboard | X33: ? | Y33: US$ | AB33: 20 | AH33: US$ | AK33: 20 | AQ33: 1000 | AV33: =Users -> 1000 | BA33: US$ | BD33: 20000
A34: 1 | H34: USB video adaptor/thin-client | X34: ? | Y34: US$ | AH34: US$ | AK34: =80*Rate*hardwaremult -> 80 | AQ34: 0 | AV34: =Calculations!AQ8*stationsperhost -> 0 | BA34: US$ | BD34: 0
A35: 1 | H35: USB hub | X35: ? | Y35: US$ | AB35: 20 | AH35: US$ | AK35: =25*Rate*hardwaremult -> 25 | AQ35: 0 | AV35: =(Calculations!AQ8+Calculations!AQ7)*ROUNDUP(stationsperhost/10,0)+ROUNDUP(Calculations!AQ8*3*stationsperhost/10,0)+ROUNDUP(Calculations!AQ7*2*stationsperhost/10,0) -> 0 | BA35: US$ | BD35: 0
A36: 1 | H36: Video card (enter cost per port) | X36: ? | Y36: US$ | AH36: US$ | AK36: =75*Rate*hardwaremult -> 75 | AQ36: 0 | AV36: =Calculations!AQ7*stationsperhost/2 -> 0 | BA36: US$ | BD36: 0
A37: 1 | H37: Ethernet switch | X37: ? | Y37: US$ | AB37: 100 | AH37: US$ | AK37: =100*Rate*hardwaremult -> 100 | AQ37: 42 | AV37: =ROUNDUP(Calculations!AQ6*stationsperhost/24,0) -> 42 | BA37: US$ | BD37: 4200 | BK37: Ethernet switch | CA37: ? | CB37: =CurrencySymbol -> US$ | CE37: 50 | CK37: =CurrencySymbol -> US$ | CN37: =100*Rate*hardwaremult -> 100 | CT37: =CY37 -> 42 | CY37: =ROUNDUP(CT31/24,0) -> 42 | DD37: =CurrencySymbol -> US$ | DG37: =CE37*CT37 -> 2100
A38: 1 | H38: Choose the type of station you will buy for a LAN connect installation
A39: 1 | H39: RemoteFX thin client | X39: ? | Y39: =CurrencySymbol -> US$ | AH39: =CurrencySymbol -> US$ | AK39: =200*Rate*hardwaremult*IF(havedevices=Lists!$B$2,0,1) -> 200 | AQ39: =AV39 -> 0 | BA39: =CurrencySymbol -> US$ | BD39: =AB39*AQ39 -> 0
A40: 1 | H40: Thin / Zero client | X40: ? | Y40: =CurrencySymbol -> US$ | AB40: 100 | AH40: =CurrencySymbol -> US$ | AK40: =400*Rate*hardwaremult*IF(havedevices=Lists!$B$2,0,1) -> 400 | AQ40: =AV40 -> 1000 | AV40: =IF(Calculations!AQ6*stationsperhost>Users,Users,Calculations!AQ6*stationsperhost) -> 1000 | BA40: =CurrencySymbol -> US$ | BD40: =AB40*AQ40 -> 100000
A41: 1 | H41: Other hardware costs | BA41: =CurrencySymbol -> US$ | BD41: 0 | BK41: Other hardware costs | DD41: =CurrencySymbol -> US$ | DG41: 0
A42: 1 | H42: Total Cost | BA42: =CurrencySymbol -> US$ | BD42: =SUM(BD31:BH41) -> 317800 | BK42: Total Cost | DD42: =CurrencySymbol -> US$ | DG42: =SUM(DG31:DK41) -> 602100
A43: 1
A44: 1
A46: 1

Sheet Software
H2: =Lists!D14 -> Software Details
H3: There are several ways to license for Windows Server 2016. This sheet will help you choose the best method for your organization.
A4: 1 | H4: If you need to enter a custom configuration with a different number of software licenses please click here.
A5: 1 | H5: =Lists!$B$28 -> Inputs | BG5: Value for Calculations | BS5: =Lists!$C$6 -> Suggested Value
A6: =IF(Industry=Lists!C26,1,0) -> 0 | H6: Maximum number of stations per host | BG6: ? | BH6: =BS6 -> 14 | BS6: =Hardware!$AC$15 -> 14
A7: =IF(Industry=Lists!C26,1,0) -> 0 | H7: Do you want to join a domain to use Active Directory for user account management? | BG7: ? | BH7: =BS7 -> Yes | BS7: Yes
A8: =IF(Industry=Lists!C26,1,0) -> 0 | H8: Do you need the Premium or Standard License? | BG8: ? | BH8: =BS8 -> Premium | BS8: =IF(OR(BH6>10,BH7=Lists!B2,Industry=Lists!B26,Hardware!AC25>8,Hardware!AC24>2),Lists!B27,Lists!C27) -> Premium | CD8: More information on software selection criteria | DP8: =IF(A8=1,BH8,BS8) -> Premium
A9: 1 | H9: Do you want to buy a subscription or perpetual license? | BG9: ? | BH9: Perpetual | BS9: Subscription
A10: 1 | H10: Do you already own Windows Server CALs for your users/devices? | BG10: ? | BH10: =BS10 -> Yes | BS10: Yes
A11: =IF(customsoftware,1,0) -> 0 | H11: You have entered some advanced inputs on the alternative configuration page. These changes will not be reflected on this sheet.
A12: 1 | H12: Note: the cost of software varies heavily depending on whether the licensing organization is a qualifying academic institution or a corporation. The following pricing is based on rates for academic qualifying organizations.
A13: 1 | H13: Windows Server Software | BG13: Value for Calculations | BS13: =Lists!$C$6 -> Suggested Value
A14: =IF(LicenseType=Lists!$B$27,1,0) -> 1 | H14: Windows Server 2016 Standard | BG14: ? | BH14: =BS14 -> US$ | BK14: 130 | BS14: =CurrencySymbol -> US$ | BV14: 130
A15: =IF(LicenseType=Lists!$B$27,0,1) -> 0 | H15: Windows MultiPoint Server 2011 Standard | BG15: ? | BH15: =BS15 -> US$ | BK15: =BV15 -> 0 | BS15: =CurrencySymbol -> US$ | BV15: =VLOOKUP(H15,'Data Tables'!$A$35:$E$38,Licenseoffset,FALSE) -> 0
A16: =IF($BH$10=Lists!$B$2,0,1) -> 0 | H16: Windows MultiPoint Server 2011 CAL w/ Windows Server 2008 CAL | BG16: ? | BH16: =BS16 -> US$ | BK16: =BV16 -> 29 | BS16: =CurrencySymbol -> US$ | BV16: =VLOOKUP(H16,'Data Tables'!$A$35:$E$38,Licenseoffset,FALSE) -> 29
A17: =IF($BH$10=Lists!$B$2,1,0) -> 1 | H17: Windows Server CAL | BG17: ? | BH17: =BS17 -> US$ | BK17: 29 | BS17: =CurrencySymbol -> US$ | BV17: 29
A18: 1 | H18: Windows Client Software | BG18: ? | BH18: =BS18 -> US$ | BK18: =BV18 -> 115 | BS18: =CurrencySymbol -> US$ | BV18: =VLOOKUP(H18,'Data Tables'!$A$35:$E$39,Licenseoffset,FALSE) -> 115
A19: 1
A20: 1 | H20: =Lists!$C$28 -> Calculations
A21: 1 | H21: Windows MultiPoint Software | AJ21: Count | AM21: Cost | AV21: Total | BH21: Traditional Deployment | CJ21: Count | CM21: Cost | CV21: Total
A22: 1 | H22: Windows MultiPoint Server licenses | AJ22: =Hardware!AQ31 -> 72 | AM22: =CurrencySymbol -> US$ | AP22: =IF(LicenseType=Lists!$B$27,Software!$BK$14,Software!$BK$15) -> 130 | AV22: =CurrencySymbol -> US$ | AY22: =AP22*AJ22 -> 9360 | BH22: Windows Client software | CJ22: =Hardware!CT31 -> 1000 | CM22: =CurrencySymbol -> US$ | CP22: =BK18 -> 115 | CV22: =CurrencySymbol -> US$ | CY22: =CP22*CJ22 -> 115000
A23: 1 | H23: Windows MultiPoint Server CALs | AJ23: =Users -> 1000 | AM23: =CurrencySymbol -> US$ | AP23: =IF(BH10=Lists!$B$2,Software!$BK$17,Software!$BK$16) -> 29 | AV23: =CurrencySymbol -> US$ | AY23: =AP23*AJ23 -> 29000
A24: 1 | H24: Other software costs | AV24: =CurrencySymbol -> US$ | AY24: 0 | BH24: Other software costs | CV24: =CurrencySymbol -> US$ | CY24: 0
A25: 1 | H25: =IF(BH9=Lists!B35,"Total Annual Cost","Total Cost") -> Total Cost | AV25: =CurrencySymbol -> US$ | AY25: =SUM(AY22:BD24) -> 38360 | CV25: =CurrencySymbol -> US$ | CY25: =SUM(CY22:DD24) -> 115000
A26: 1
A27: 1
A28: 1
A29: 1
A34: =IF(OR(LicenseType = Lists!#REF!,LicenseType=Lists!#REF!,LicenseType=Lists!#REF!),1,0) -> 
A35: =IF(OR(LicenseType=Lists!#REF!,LicenseType=Lists!#REF!,LicenseType=Lists!#REF!,LicenseType = Lists!#REF!), 0,1) -> 
A36: 0
A37: 1
A38: =IF(OR(LicenseType = Lists!#REF!,LicenseType = Lists!#REF!),1,0) -> 
A39: =IF(OR(LicenseType = Lists!#REF!,LicenseType = Lists!#REF!),0,0) -> 
A43: 1

Sheet Deployment
H2: =Lists!E14 -> Deployment Costs
H3: Organizations selecting zero client computing can take advantage of the simple configuration options to reduce deployment costs. They are also able to deploy software once for use across many stations rather than deploying it on each computer in a traditional deployment. When planning a new building, Windows MultiPoint Server enables cost reductions by decreasing the number of Ethernet ports required, which can save on cabling costs.
H4: =Lists!$B$28 -> Inputs | BG4: Value for Calculations | BS4: =Lists!$C$6 -> Suggested Value
H5: How long will it take to deploy other software programs on each machine? | BG5: ? | BH5: hours | BK5: =BV5 -> 1 | BS5: hours | BV5: 1
H6: How much would you spend on Ethernet cabling if not deploying Windows MultiPoint? | BG6: ? | BH6: =CurrencySymbol -> US$ | BK6: 100 | BS6: =CurrencySymbol -> US$ | BV6: =Users*100*Rate -> 100000
A7: 1 | H7: How much will you spend on Ethernet cabling for Windows MultiPoint? | BG7: ? | BH7: =CurrencySymbol -> US$ | BK7: 100 | BS7: =CurrencySymbol -> US$ | BV7: =IF(configuration=Lists!B24,Users*100*Rate,0) -> 100000
A8: =IF(customdeployment,1,0) -> 0 | H8: You have entered some advanced inputs on the alternative configuration page. These changes will not be reflected on this sheet.
H9: =Lists!$C$28 -> Calculations
H10: Windows MultiPoint Server | BK10: Traditional deployment
H11: Ethernet cabling | AZ11: =CurrencySymbol -> US$ | BC11: =BK7 -> 100 | BK11: Ethernet cabling | DC11: =CurrencySymbol -> US$ | DF11: =BK6 -> 100
A13: =IF(OR(LicenseType=Lists!#REF!,LicenseType=Lists!#REF!,LicenseType=Lists!#REF!,LicenseType = Lists!#REF!), 0,1) ->  | AD13: Hours per computer | AO13: # of computers | AZ13: Total hours | CG13: Hours per computer | CR13: # of computers | DC13: Total hours
A14: 0 | H14: Software deployment | AG14: =$BK$5 -> 1 | AR14: =(Calculations!$BN$6+Calculations!$BN$8+Calculations!$BN$7) -> 72 | BC14: =AR14*AG14 -> 72 | BK14: Software deployment | CJ14: =$BK$5 -> 1 | CU14: =Calculations!$CK$9 -> 1000 | DF14: =CU14*CJ14 -> 1000
A15: 1 | H15: Total cost | AZ15: =CurrencySymbol -> US$ | BC15: =BC14*Operations!$BK$7 -> 3750 | BK15: Total cost | DC15: =CurrencySymbol -> US$ | DF15: =DF14*Operations!$BK$7 -> 52083.33333
A16: =IF(OR(LicenseType = Lists!#REF!,LicenseType = Lists!#REF!),1,0) ->  | H16: Other deployment cost | AZ16: =CurrencySymbol -> US$ | BC16: 0 | BK16: Other deployment cost | DC16: =CurrencySymbol -> US$ | DF16: 0
H17: Total deployment cost | AZ17: =CurrencySymbol -> US$ | BC17: =BC11+BC15+BC16 -> 3850 | BK17: Total deployment cost | DC17: =CurrencySymbol -> US$ | DF17: =DF11+DF15+DF16 -> 52183.33333

Sheet Operations
H2: =Lists!K14 -> Continuing Operations Costs
H3: Windows Server with zero client computing enables organizations to save on administration costs because there are fewer computers to manage. Fewer computers also results in less power consumption.
H4: =Lists!$B$28 -> Inputs | BG4: Value for Calculations | BS4: =Lists!$C$6 -> Suggested Value
H5: What is the average number of work/school days per year? | BK5: =BV5 -> 240 | BV5: 240
H6: What is the typically fully burdened salary of an IT administrator? | BG6: ? | BH6: =CurrencySymbol -> US$ | BK6: 100000 | BS6: =CurrencySymbol -> US$ | BV6: 100000
H7: Hourly rate for IT administrator | BG7: ? | BH7: =CurrencySymbol -> US$ | BK7: 52.08333333 | BS7: =CurrencySymbol -> US$ | BV7: =BK6/BK5/8 -> 52.08333333
H8: How many hours per year do you typically spend on maintenance and upgrades for each computer? | BG8: ? | BK8: 2 | BV8: 2
H9: What is the annual cost for hardware maintenance per computer? | BG9: ? | BH9: =CurrencySymbol -> US$ | BK9: 50 | BS9: =CurrencySymbol -> US$ | BV9: =50*Rate -> 50
H10: What do you typically pay per kWhr of electricity? | BG10: ? | BH10: =CurrencySymbol -> US$ | BK10: 0.112 | BS10: =CurrencySymbol -> US$ | BV10: =0.112*Rate*powermult -> 0.112
H11: How many hours per day are the computers typically in use? | BG11: ? | BH11: hours | BK11: 8 | BS11: hours | BV11: 8
H12: Power Consumption
H13: Host computer | BG13: ? | BH13: W | BK13: 100 | BS13: W | BV13: 100
H14: Monitor | BG14: ? | BH14: W | BK14: 20 | BS14: W | BV14: 0
H15: Mouse and keyboard | BG15: ? | BH15: W | BK15: =BV15 -> 0 | BS15: W | BV15: 0
H16: USB video adaptor/thin-client | BG16: ? | BH16: W | BK16: 0 | BS16: W | BV16: 0
H17: USB hub | BG17: ? | BH17: W | BK17: 0 | BS17: W | BV17: 12
H18: Video card | BG18: ? | BH18: W | BK18: 0 | BS18: W | BV18: 20
H19: Ethernet switch | BG19: ? | BH19: W | BK19: 6 | BS19: W | BV19: 6
H20: RemoteFX thin client | BG20: ? | BH20: W | BK20: 0 | BS20: W | BV20: 50
H21: Other station computer/thin-client | BG21: ? | BH21: W | BK21: 0 | BS21: W | BV21: 50
A22: 1
A23: =IF(customoperations,1,0) -> 0 | H23: You have entered some advanced inputs on the alternative configuration page. These changes will not be reflected on this sheet.
H24: =Lists!$C$28 -> Calculations
H25: Windows MultiPoint Server | AD25: Power Consumption | AO25: Actual Count | AZ25: Total Power Consumption | BK25: Traditional Deployment | CG25: Power Consumption | CR25: Actual Count | DC25: Total Power Consumption
H26: Host computer | AD26: W | AG26: =BK13 -> 100 | AR26: =Hardware!AQ31 -> 72 | AZ26: kW | BC26: =AR26*AG26/1000 -> 7.2 | BK26: Computer | CG26: W | CJ26: =BK13 -> 100 | CU26: =Calculations!$CK$9 -> 1000 | DC26: kW | DF26: =CU26*CJ26/1000 -> 100 | DP26: =AG26*(Calculations!BN6+Calculations!BN7+Calculations!BN8)/1000 -> 7.2
H27: Monitor | AD27: W | AG27: =BK14 -> 20 | AR27: =Hardware!AQ32 -> 1000 | AZ27: kW | BC27: =AR27*AG27/1000 -> 20 | BK27: Monitor | CG27: W | CJ27: =BK14 -> 20 | CU27: 0 | DC27: kW | DF27: 0 | DP27: =AG27*Calculations!BN11/1000 -> 20
H28: Mouse and keyboard | AD28: W | AG28: 0 | AR28: =Hardware!AQ33 -> 1000 | AZ28: kW | BC28: 0 | BK28: Mouse and keyboard | CG28: W | CJ28: 0 | CU28: 0 | DC28: kW | DF28: 0 | DP28: =AG28*Calculations!BN12/1000 -> 0
H29: USB video adaptor/thin-client | AD29: W | AG29: 0 | AR29: =Hardware!AQ34 -> 0 | AZ29: kW | BC29: 0 | BK29: USB video adaptor/thin-client | CG29: W | CJ29: 0 | CU29: =Calculations!CK13 -> 0 | DC29: kW | DF29: 0 | DP29: =AG29*Calculations!BN13/1000 -> 0
H30: USB hub | AD30: W | AG30: 0 | AR30: =Hardware!AQ35 -> 0 | AZ30: kW | BC30: 0 | BK30: USB hub | CG30: W | CJ30: 0 | CU30: =Calculations!CK14 -> 0 | DC30: kW | DF30: 0 | DP30: =AG30*Calculations!BN14/1000 -> 0
H31: Video card | AD31: W | AG31: 0 | AR31: =Hardware!AQ36 -> 0 | AZ31: kW | BC31: 0 | BK31: Video card | CG31: W | CJ31: 0 | CU31: =Calculations!CK15 -> 0 | DC31: kW | DF31: 0 | DP31: =AG31*Calculations!BN15/1000 -> 0
H32: Ethernet switch | AD32: W | AG32: 6 | AR32: =Hardware!AQ37 -> 42 | AZ32: kW | BC32: 0.252 | BK32: Ethernet switch | CG32: W | CJ32: 6 | CU32: =Calculations!CK16 -> 42 | DC32: kW | DF32: 0.252 | DP32: =AG32*Calculations!BN16/1000 -> 0.252
H33: RemoteFX thin client | AD33: W | AG33: 0 | AR33: =Hardware!AQ39 -> 0 | AZ33: kW | BC33: =AR33*AG33/1000 -> 0 | DP33: =AG34*Calculations!BN17/1000 -> 0
H34: Other station computer/thin-client | AD34: W | AG34: 0 | AR34: =Hardware!AQ40 -> 1000 | AZ34: kW | BC34: =AR34*AG34/1000 -> 0
H35: Total kW | AZ35: kW | BC35: =SUM(BC26:BI34) -> 27.452 | BK35: Total kW | DC35: kW | DF35: =SUM(DF26:DL32) -> 100.252 | DP35: =SUM(DP26:DP33) -> 27.452
H36: Total annual cost for power | AZ36: =CurrencySymbol -> US$ | BC36: =$BK$10*BC35*WorkDays*BK11 -> 5903.27808 | BK36: Total annual cost for power | DC36: =CurrencySymbol -> US$ | DF36: =$BK$10*DF35*WorkDays*$BK$11 -> 21558.19008 | DP36: =$BK$10*DP35*WorkDays*$BK$11 -> 5903.27808
DP37: =DP35*WorkDays*$BK$11 -> 52707.84
AD38: Cost per computer | AO38: # of computers | AZ38: Total annual cost | CG38: Cost per computer | CR38: # of computers | DC38: Total annual cost | DP38: =DF35*WorkDays*BK11 -> 192483.84
H39: Hardware maintenance | AD39: =CurrencySymbol -> US$ | AG39: =BK9 -> 50 | AR39: =(Calculations!$BN$6+Calculations!$BN$8+Calculations!$BN$7) -> 72 | AZ39: =CurrencySymbol -> US$ | BC39: =AG39*AR39 -> 3600 | BK39: Hardware maintenance | CG39: =CurrencySymbol -> US$ | CJ39: =BK9 -> 50 | CU39: =Calculations!$CK$9 -> 1000 | DC39: =CurrencySymbol -> US$ | DF39: =CJ39*CU39 -> 50000
AD41: Hours per computer | AO41: # of computers | AZ41: Total hours | CG41: Hours per computer | CR41: # of computers | DC41: Total hours
H42: System management and updates | AG42: =$BK$8 -> 2 | AR42: =(Calculations!$BN$6+Calculations!$BN$8+Calculations!$BN$7) -> 72 | BC42: =AR42*AG42 -> 144 | BK42: System management and updates | CJ42: =$BK$8 -> 2 | CU42: =Calculations!$CK$9 -> 1000 | DF42: =CU42*CJ42 -> 2000
H43: Total annual cost | AZ43: =CurrencySymbol -> US$ | BC43: =BC42*$BK$7 -> 7500 | BK43: Total annual cost | DC43: =CurrencySymbol -> US$ | DF43: =DF42*$BK$7 -> 104166.6667
H44: Other operations costs | AZ44: =CurrencySymbol -> US$ | BC44: 0 | BK44: Other operations costs | DC44: =CurrencySymbol -> US$ | DF44: 0
H45: Total operations cost | AZ45: =CurrencySymbol -> US$ | BC45: =BC36+BC39+BC43+BC44 -> 17003.27808 | BK45: Total operations cost | DC45: =CurrencySymbol -> US$ | DF45: =DF36+DF39+DF43+DF44 -> 175724.8567
A60: =IF(OR(LicenseType = Lists!#REF!,LicenseType=Lists!#REF!,LicenseType=Lists!#REF!),1,0) -> 
A61: =IF(OR(LicenseType=Lists!#REF!,LicenseType=Lists!#REF!,LicenseType=Lists!#REF!,LicenseType = Lists!#REF!), 0,1) -> 
A62: 0
A63: 1
A64: =IF(OR(LicenseType = Lists!#REF!,LicenseType = Lists!#REF!),1,0) -> 
A65: =IF(OR(LicenseType = Lists!#REF!,LicenseType = Lists!#REF!),0,0) -> 
A69: 1

Sheet Calculations
H2: =Lists!C14 -> Advanced inputs for hybrid scenario
CK3: PC Configuration
AQ4: Sample Configuration | BL4: ? | BN4: Alternative Configuration | CI4: ? | DF4: ? | DP4: =IF(OR(AND(BN6>0,BN8>0),AND(BN6>0,BN7>0),AND(BN8>0,BN7>0)),1,0) -> 0
H5: Hardware | AQ5: Count | AT5: Cost | BC5: Total | BN5: Count | BQ5: Cost | BZ5: Total | CK5: Count | CN5: Cost | CW5: Total | DP5: =IF(SUM($DP$6:$DR$39)=102,0,1) -> 0 | DQ5: =IF(SUM($DP$6:$DP$8)=3,0,1) -> 0 | DR5: =IF(SUM($DQ$6:$DQ$8)=3,0,1) -> 0 | DS5: =IF(SUM($DP$6:$DR$19)=42,0,1) -> 0 | DT5: =IF(SUM($DP$22:$DR$25)=12,0,1) -> 0 | DU5: =IF(SUM($DP$28:$DR$31)=12,0,1) -> 0 | DV5: =IF(SUM($DP$34:$DR$39)=18,0,1) -> 0
B6: 1 | H6: LAN connected or hybrid host computers | AQ6: =IF(Hardware!$Z$8=Lists!$B$24,Hardware!AQ31,0) -> 72 | AT6: =CurrencySymbol -> US$ | AW6: =Hardware!$AB$31 -> 1300 | BC6: =CurrencySymbol -> US$ | BF6: =AQ6*AW6 -> 93600 | BN6: =DU6 -> 72 | BQ6: =CurrencySymbol -> US$ | BT6: =DV6 -> 1300 | BZ6: =CurrencySymbol -> US$ | CC6: =BN6*BT6 -> 93600 | DP6: =IF($AQ6=BN6,1,0) -> 1 | DQ6: =IF($AW6=$BT6,1,0) -> 1 | DR6: =IF(BF6=CC6,1,0) -> 1 | DS6: =SUM($DP$34:$DR$39) -> 18 | DU6: =AQ6 -> 72 | DV6: =AW6 -> 1300
B7: 1 | H7: Video/USB direct connect host computers | AQ7: =IF(Hardware!$Z$8=Lists!$C$24,Hardware!AQ31,0) -> 0 | AT7: =CurrencySymbol -> US$ | AW7: =Hardware!$AB$31 -> 1300 | BC7: =CurrencySymbol -> US$ | BF7: =AQ7*AW7 -> 0 | BN7: =DU7 -> 0 | BQ7: =CurrencySymbol -> US$ | BT7: =DV7 -> 1300 | BZ7: =CurrencySymbol -> US$ | CC7: =BN7*BT7 -> 0 | DP7: =IF($AQ7=BN7,1,0) -> 1 | DQ7: =IF($AW7=$BT7,1,0) -> 1 | DR7: =IF(BF7=CC7,1,0) -> 1 | DU7: =AQ7 -> 0 | DV7: =AW7 -> 1300
B8: 1 | H8: USB direct connect host computers | AQ8: =IF(Hardware!$Z$8=Lists!$D$24,Hardware!AQ31,0) -> 0 | AT8: =CurrencySymbol -> US$ | AW8: =Hardware!$AB$31 -> 1300 | BC8: =CurrencySymbol -> US$ | BF8: =AQ8*AW8 -> 0 | BN8: =DU8 -> 0 | BQ8: =CurrencySymbol -> US$ | BT8: =DV8 -> 1300 | BZ8: =CurrencySymbol -> US$ | CC8: 0 | DP8: 1 | DQ8: 1 | DR8: 1 | DU8: =AQ8 -> 0 | DV8: =AW8 -> 1300
B9: 1 | H9: PCs (includes monitor, mouse, keyboard) | CK9: =DX9 -> 1000 | CN9: =CurrencySymbol -> US$ | CQ9: =DY9 -> 600 | CW9: =CurrencySymbol -> US$ | CZ9: =CK9*CQ9 -> 600000 | DF9: ? | DP9: 1 | DQ9: 1 | DR9: 1 | DX9: =Hardware!CT31 -> 1000 | DY9: =Hardware!CE31 -> 600
B10: 1 | DP10: 1 | DQ10: 1 | DR10: 1
B11: 1 | H11: Monitors | AQ11: =Hardware!AQ32 -> 1000 | AT11: =CurrencySymbol -> US$ | AW11: =Hardware!$AB$32 -> 100 | BC11: =CurrencySymbol -> US$ | BF11: =Hardware!BD32 -> 100000 | BN11: =DU11 -> 1000 | BQ11: =CurrencySymbol -> US$ | BT11: =DV11 -> 100 | BZ11: =CurrencySymbol -> US$ | CC11: =BN11*BT11 -> 100000 | CK11: =DX11 -> 1000 | CN11: =CurrencySymbol -> US$ | CQ11: =DY11 -> 0 | CW11: =CurrencySymbol -> US$ | CZ11: =CK11*CQ11 -> 0 | DP11: 1 | DQ11: 1 | DR11: 1 | DU11: =AQ11 -> 1000 | DV11: =AW11 -> 100 | DX11: =CK9 -> 1000 | DY11: 0
B12: 1 | H12: Mouse and keyboards | AQ12: =Hardware!AQ33 -> 1000 | AT12: US$ | AW12: =Hardware!$AB$33 -> 20 | BC12: US$ | BF12: =Hardware!BD33 -> 20000 | BN12: 1000 | BQ12: US$ | BT12: 20 | BZ12: US$ | CC12: 20000 | CK12: 1000 | CN12: US$ | CQ12: 0 | CW12: US$ | CZ12: 0 | DP12: 1 | DQ12: 1 | DR12: 1 | DU12: =AQ12 -> 1000 | DV12: 20 | DX12: =CK9 -> 1000 | DY12: 0
B13: 1 | H13: USB video adaptor/thin-client | AQ13: =Hardware!AQ34 -> 0 | AT13: US$ | AW13: =Hardware!$AB$34 -> 0 | BC13: US$ | BF13: =Hardware!BD34 -> 0 | BN13: 0 | BQ13: US$ | BT13: 0 | BZ13: US$ | CC13: 0 | CK13: 0 | CN13: US$ | CQ13: 0 | CW13: US$ | CZ13: 0 | DP13: 1 | DQ13: 1 | DR13: 1 | DU13: =IF(customconnection=1,BN8*stationsperhost,AQ13) -> 0 | DV13: 0 | DX13: 0 | DY13: =AW13 -> 0
B14: 1 | H14: USB hubs | AQ14: =Hardware!AQ35 -> 0 | AT14: US$ | AW14: =Hardware!$AB$35 -> 20 | BC14: US$ | BF14: =Hardware!BD35 -> 0 | BN14: 0 | BQ14: US$ | BT14: 20 | BZ14: US$ | CC14: 0 | CK14: 0 | CN14: US$ | CQ14: 20 | CW14: US$ | CZ14: 0 | DP14: 1 | DQ14: 1 | DR14: 1 | DU14: =IF(customconnection=1,(BN8+BN7)*ROUNDUP(stationsperhost/10,0)+ROUNDUP(BN8*3*stationsperhost/10,0)+ROUNDUP(BN7*2*stationsperhost/10,0),AQ14) -> 0 | DV14: 20 | DX14: 0 | DY14: =AW14 -> 20
B15: 1 | H15: Video cards | AQ15: =Hardware!AQ36 -> 0 | AT15: US$ | AW15: =Hardware!$AB$36 -> 0 | BC15: US$ | BF15: =Hardware!BD36 -> 0 | BN15: 0 | BQ15: US$ | BT15: 0 | BZ15: US$ | CC15: 0 | CK15: 0 | CN15: US$ | CQ15: 0 | CW15: US$ | CZ15: 0 | DP15: 1 | DQ15: 1 | DR15: 1 | DU15: =IF(customconnection=1,BN7*stationsperhost/2,AQ15) -> 0 | DV15: 0 | DX15: 0 | DY15: =AW15 -> 0
B16: 1 | H16: Ethernet switches | AQ16: =Hardware!AQ37 -> 42 | AT16: US$ | AW16: =Hardware!$AB$37 -> 100 | BC16: US$ | BF16: =Hardware!BD37 -> 4200 | BN16: 42 | BQ16: US$ | BT16: 100 | BZ16: US$ | CC16: 4200 | CK16: 42 | CN16: US$ | CQ16: 50 | CW16: US$ | CZ16: 2100 | DP16: 1 | DQ16: 1 | DR16: 1 | DU16: =IF(customconnection=1,ROUNDUP(BN6*stationsperhost/24,0),AQ16) -> 42 | DV16: 100 | DX16: =ROUNDUP(CK9/24,0) -> 42 | DY16: =Hardware!CE37 -> 50
B17: 1 | H17: LAN connected stations (desktop, laptop, RemoteFX, etc) | AQ17: =Hardware!AQ39+Hardware!AQ40 -> 1000 | AT17: US$ | AW17: =IF((Hardware!AQ39+Hardware!AQ40)>0,(Hardware!AB39*Hardware!AQ39+Hardware!AB40*Hardware!AQ40)/(Hardware!AQ39+Hardware!AQ40),0) -> 100 | BC17: US$ | BF17: =AQ17*AW17 -> 100000 | BN17: 1000 | BQ17: US$ | BT17: 100 | BZ17: US$ | CC17: 100000 | DP17: 1 | DQ17: 1 | DR17: 1 | DU17: =IF(customconnection=1,IF(Calculations!AQ6*stationsperhost*IF(AV9=Lists!C29,0,1)>Users,Users,Calculations!AQ6*stationsperhost*IF(AV9=Lists!C29,0,1)),AQ17) -> 1000 | DV17: 100
H18: Other hardware cost | BC18: US$ | BF18: =Hardware!BD41 -> 0 | BZ18: US$ | CC18: =DW18 -> 0 | CW18: =CurrencySymbol -> US$ | CZ18: =DZ18 -> 0 | DP18: 1 | DQ18: 1 | DR18: 1 | DW18: =BF18 -> 0 | DZ18: =Hardware!DG41 -> 0
B19: 1 | H19: Total Cost | BC19: US$ | BF19: =Hardware!BD42 -> 317800 | BZ19: US$ | CC19: =SUM(CC6:CC18) -> 317800 | CW19: =CurrencySymbol -> US$ | CZ19: =SUM(CZ9:CZ18) -> 602100 | DP19: 1 | DQ19: 1 | DR19: 1
B20: 1 | H20: Software | AQ20: Count | AT20: Cost | BC20: Total | BN20: Count | BQ20: Cost | BZ20: Total | CK20: Count | CN20: Cost | CW20: Total | DP20: 1 | DQ20: 1 | DR20: 1
B21: 1 | H21: Windows Client software | AA21: =Software!$BH$9 -> Perpetual | CK21: =DX21 -> 1000 | CN21: =CurrencySymbol -> US$ | CQ21: =DY21 -> 115 | CW21: =CurrencySymbol -> US$ | CZ21: =CK21*CQ21 -> 115000 | DP21: 1 | DQ21: 1 | DR21: 1 | DX21: =Hardware!CT31 -> 1000 | DY21: =Software!BK18 -> 115
B22: 1 | H22: Windows MultiPoint Server licenses | AA22: =Software!$BH$9 -> Perpetual | AQ22: =Software!AJ22 -> 72 | AT22: =CurrencySymbol -> US$ | AW22: =Software!AP22 -> 130 | BC22: =CurrencySymbol -> US$ | BF22: =Software!AY22 -> 9360 | BN22: =DU22 -> 72 | BQ22: =CurrencySymbol -> US$ | BT22: =DV22 -> 130 | BZ22: =CurrencySymbol -> US$ | CC22: =BN22*BT22 -> 9360 | DP22: 1 | DQ22: 1 | DR22: 1 | DU22: =IF(customconnection=1,BN7+BN8+BN6,AQ22) -> 72 | DV22: =AW22 -> 130
B23: 1 | H23: Windows MultiPoint Server CALs | AA23: =Software!$BH$9 -> Perpetual | AQ23: =Software!AJ23 -> 1000 | AT23: =CurrencySymbol -> US$ | AW23: =Software!AP23 -> 29 | BC23: =CurrencySymbol -> US$ | BF23: =Software!AY23 -> 29000 | BN23: =DU23 -> 1000 | BQ23: =CurrencySymbol -> US$ | BT23: =DV23 -> 29 | BZ23: =CurrencySymbol -> US$ | CC23: =BN23*BT23 -> 29000 | DP23: 1 | DQ23: 1 | DR23: 1 | DU23: =AQ23 -> 1000 | DV23: =AW23 -> 29
H24: Other software cost | BC24: =CurrencySymbol -> US$ | BF24: =Software!AY24 -> 0 | BZ24: =CurrencySymbol -> US$ | CC24: =DW24 -> 0 | CW24: =CurrencySymbol -> US$ | CZ24: =DZ24 -> 0 | DP24: 1 | DQ24: 1 | DR24: 1 | DW24: =BF24 -> 0 | DZ24: =Software!CY24 -> 0
B25: 1 | H25: =IF(Software!BH9=Lists!B35,"Total Annual Cost","Total Cost") -> Total Cost | BC25: =CurrencySymbol -> US$ | BF25: =Software!AY25 -> 38360 | BZ25: =CurrencySymbol -> US$ | CC25: =SUM(CC22:CH24) -> 38360 | CW25: =CurrencySymbol -> US$ | CZ25: =SUM(CZ21:CZ24) -> 115000 | DP25: 1 | DQ25: 1 | DR25: 1
B26: 1 | DP26: 1 | DQ26: 1 | DR26: 1
B27: 1 | H27: Deployment and Configuration | AQ27: Hours | AT27: Cost per hour | BC27: Total | BN27: Hours | BQ27: Cost per hour | BZ27: Total | CK27: Hours | CN27: Cost per hour | CW27: Total | DP27: 1 | DQ27: 1 | DR27: 1
B28: 1 | H28: Ethernet cabling (if new building) | BC28: =CurrencySymbol -> US$ | BF28: =Deployment!$BK$7 -> 100 | BZ28: =CurrencySymbol -> US$ | CC28: =DW28 -> 100 | CW28: =CurrencySymbol -> US$ | CZ28: =DZ28 -> 100 | DP28: 1 | DQ28: 1 | DR28: 1 | DW28: =BF28 -> 100 | DZ28: =Deployment!$BK$6 -> 100
B29: 1 | H29: Software deployment | AQ29: =Deployment!$BK$5*(Calculations!$AQ$7+Calculations!$AQ$8+Calculations!$AQ$6) -> 72 | AT29: =CurrencySymbol -> US$ | AW29: =costperhour -> 52.08333333 | BC29: =CurrencySymbol -> US$ | BF29: =AQ29*AW29 -> 3750 | BN29: =DU29 -> 72 | BQ29: =CurrencySymbol -> US$ | BT29: =DV29 -> 52.08333333 | BZ29: =CurrencySymbol -> US$ | CC29: =BN29*BT29 -> 3750 | CK29: =DX29 -> 1000 | CN29: =CurrencySymbol -> US$ | CQ29: =DY29 -> 52.08333333 | CW29: =CurrencySymbol -> US$ | CZ29: =CK29*CQ29 -> 52083.33333 | DP29: 1 | DQ29: 1 | DR29: 1 | DU29: =Deployment!BK5*(Calculations!BN7+Calculations!BN8+Calculations!BN6) -> 72 | DV29: =AW29 -> 52.08333333 | DX29: =Deployment!$BK$5*Calculations!$CK$9 -> 1000 | DY29: =costperhour -> 52.08333333
H30: Other deployment cost | BC30: =CurrencySymbol -> US$ | BF30: =Deployment!BC16 -> 0 | BZ30: =CurrencySymbol -> US$ | CC30: =DW30 -> 0 | CW30: =CurrencySymbol -> US$ | CZ30: =DZ30 -> 0 | DP30: 1 | DQ30: 1 | DR30: 1 | DW30: =BF30 -> 0 | DZ30: =Deployment!DF16 -> 0
B31: 1 | H31: Total Cost | BC31: =CurrencySymbol -> US$ | BF31: =Deployment!BC17 -> 3850 | BZ31: =CurrencySymbol -> US$ | CC31: =SUM(CC28:CH30) -> 3850 | CW31: =CurrencySymbol -> US$ | CZ31: =SUM(CZ28:DE30) -> 52183.33333 | DP31: 1 | DQ31: 1 | DR31: 1
B32: 1 | DP32: 1 | DQ32: 1 | DR32: 1
B33: 1 | H33: Operations | AT33: Cost | BC33: Total | BQ33: Cost | BZ33: Total | CN33: Cost | CW33: Total | DP33: 1 | DQ33: 1 | DR33: 1
B34: 1 | H34: Power consumption | AT34: =CurrencySymbol -> US$ | AW34: =Operations!BC36 -> 5903.27808 | BC34: =CurrencySymbol -> US$ | BF34: =AW34 -> 5903.27808 | BQ34: =CurrencySymbol -> US$ | BT34: =DV34 -> 5903.27808 | BZ34: =CurrencySymbol -> US$ | CC34: =BT34 -> 5903.27808 | CN34: =CurrencySymbol -> US$ | CQ34: =DY34 -> 21558.19008 | CW34: =CurrencySymbol -> US$ | CZ34: =CQ34 -> 21558.19008 | DP34: 1 | DQ34: 1 | DR34: 1 | DV34: =MPpowercost -> 5903.27808 | DY34: =TDpowercost -> 21558.19008
B35: 1 | H35: Hardware maintenance | AT35: =CurrencySymbol -> US$ | AW35: =Operations!BC39 -> 3600 | BC35: =CurrencySymbol -> US$ | BF35: =AW35 -> 3600 | BQ35: =CurrencySymbol -> US$ | BT35: =DV35 -> 3600 | BZ35: =CurrencySymbol -> US$ | CC35: =BT35 -> 3600 | CN35: =CurrencySymbol -> US$ | CQ35: =DY35 -> 50000 | CW35: =CurrencySymbol -> US$ | CZ35: =CQ35 -> 50000 | DP35: 1 | DQ35: 1 | DR35: 1 | DV35: =AW35 -> 3600 | DY35: =Operations!$BK$9*(Calculations!CK9) -> 50000
B36: 1 | AQ36: Hours | AT36: Cost per hour | BC36: Total | BN36: Hours | BQ36: Cost per hour | BZ36: Total | CK36: Hours | CN36: Cost per hour | CW36: Total | DP36: 1 | DQ36: 1 | DR36: 1
B37: 1 | H37: System management and updates | AQ37: =Operations!BK8*(AQ6+AQ8+AQ7) -> 144 | AT37: =CurrencySymbol -> US$ | AW37: =costperhour -> 52.08333333 | BC37: =CurrencySymbol -> US$ | BF37: =AW37*AQ37 -> 7500 | BN37: =DU37 -> 144 | BQ37: =CurrencySymbol -> US$ | BT37: =DV37 -> 52.08333333 | BZ37: =CurrencySymbol -> US$ | CC37: =BN37*BT37 -> 7500 | CK37: =DX37 -> 2000 | CN37: =CurrencySymbol -> US$ | CQ37: =DY37 -> 52.08333333 | CW37: =CurrencySymbol -> US$ | CZ37: =CK37*CQ37 -> 104166.6667 | DP37: 1 | DQ37: 1 | DR37: 1 | DU37: =Operations!BK8*(BN6+BN8+BN7) -> 144 | DV37: =AW37 -> 52.08333333 | DX37: =Operations!BK8*CK9 -> 2000 | DY37: =Operations!$BK$7 -> 52.08333333
H38: Other operations cost | BC38: =CurrencySymbol -> US$ | BF38: =Operations!BC44 -> 0 | BZ38: =CurrencySymbol -> US$ | CC38: =DW38 -> 0 | CW38: =CurrencySymbol -> US$ | CZ38: =DZ38 -> 0 | DP38: 1 | DQ38: 1 | DR38: 1 | DW38: =BF38 -> 0 | DZ38: =Operations!DF44 -> 0
A39: =IF(OR(LicenseType = Lists!#REF!,LicenseType=Lists!#REF!,LicenseType=Lists!#REF!),1,0) ->  | B39: 1 | H39: Total Annual Cost | BC39: =CurrencySymbol -> US$ | BF39: =Operations!BC45 -> 17003.27808 | BZ39: =CurrencySymbol -> US$ | CC39: =SUM(CC34:CC38) -> 17003.27808 | CW39: =CurrencySymbol -> US$ | CZ39: =SUM(CZ34:CZ38) -> 175724.8567 | DP39: 1 | DQ39: 1 | DR39: 1
A40: =IF(OR(LicenseType=Lists!#REF!,LicenseType=Lists!#REF!,LicenseType=Lists!#REF!,LicenseType = Lists!#REF!), 0,1) ->  | DP40: =SUM(DP6:DP39) -> 34 | DQ40: =SUM(DQ6:DQ39) -> 34 | DR40: 34 | DS40: =SUM(DP40:DR40) -> 102
A41: 0
A42: 1
A43: =IF(OR(LicenseType = Lists!#REF!,LicenseType = Lists!#REF!),1,0) -> 
A44: =IF(OR(LicenseType = Lists!#REF!,LicenseType = Lists!#REF!),0,0) -> 
A47: 1

Sheet Account Team Inputs
H2: =Lists!F14 -> Software Pricing
H3: Academic | AR3: =Text!B47 -> License Only | BA3: Subscription - Annual price
H4: Windows MultiPoint Server 2011 Premium | AR4: =115*rate1 -> 115 | BA4: =43*rate1 -> 43
H5: Windows MultiPoint Server 2011 CAL w/ Windows Server 2008 CAL | AR5: =29*rate1 -> 29 | BA5: =11*rate1 -> 11
H6: Windows MultiPoint Server 2011 CAL | AR6: =22*rate1 -> 22 | BA6: =8*rate1 -> 8
H7: Windows Client | AR7: =115*rate1 -> 115 | BA7: =30*rate1 -> 30
H8: Business
H9: Windows MultiPoint Server 2011 Premium | AR9: =817*rate1 -> 817 | BA9: =323*rate1 -> 323
H10: Windows MultiPoint Server 2011 Standard | AR10: =330*rate1 -> 330 | BA10: =131*rate1 -> 131
H11: Windows MultiPoint Server 2011 CAL w/ Windows Server 2008 CAL | AR11: =139*rate1 -> 139 | BA11: =55*rate1 -> 55
H12: Windows MultiPoint Server 2011 CAL | AR12: =110*rate1 -> 110 | BA12: =44*rate1 -> 44
H13: Windows Client | AR13: =199*rate1 -> 199 | BA13: =50*rate1 -> 50

Sheet Hardware Info
H2: =Lists!H14 -> Hardware Configuration Information
H4: Hardware
H5: There are several different ways to configure the hardware for Windows MultiPoint Server. The configuration depends on price and performance considerations.
H26: Use USB device to connect the monitor, keyboard and mouse | AM26: Use Video cards for video connection | BR26: Connect stations through the network
AM27: Connect keyboard and mouse though USB hubs
H28: Advantages | AM28: Advantages | BR28: Advantages
H29: Easy to scale though a USB hub | AM29: Good for video-based applications | BR29: Repurpose existing hardware
H30: Can use low-cost computer for server | AM30: Good cost/performance | BR30: Best performance (with RemoteFX devices)
BR31: No distance limitations
BR32: Can be deployed as hybrid with directly connected devices
A33: =IF(OR(LicenseType = Lists!#REF!,LicenseType=Lists!#REF!,LicenseType=Lists!#REF!),1,0) ->  | H33: Disadvantages | AM33: Disadvantages | BR33: Disadvantages
A34: =IF(OR(LicenseType=Lists!#REF!,LicenseType=Lists!#REF!,LicenseType=Lists!#REF!,LicenseType = Lists!#REF!), 0,1) ->  | H34: Video performance is limited | AM34: Host computer must be able to handle multiple video cards | BR34: Requires network cables and switches
A35: 0 | H35: Must buy USB device for each user | AM35: Two cables for each station | BR35: Station hardware may be more expensive
A36: 1 | H36: Deploment limited by length of USB cable (up to 5 meters) | AM36: Deploment limited by length of cables (up to 5 meters)
FD40: ='Country information'!N39 -> Cape Verde Island | FE40: ='Country information'!C39 -> escudo | FF40: ='Country information'!D39 -> C.V.Esc. | FG40: ='Country information'!E39 -> 74.31 | FH40: ='Country information'!F39 -> 39413
FD41: ='Country information'!N40 -> Cayman Islands | FE41: ='Country information'!C40 -> dollar | FF41: ='Country information'!D40 -> CI$ | FG41: ='Country information'!E40 -> 0.82 | FH41: ='Country information'!F40 -> 40592.40601
FD42: ='Country information'!N41 -> Central African Republic | FE42: ='Country information'!C41 -> franc | FF42: ='Country information'!D41 -> CFAF | FG42: ='Country information'!E41 -> 503.3 | FH42: ='Country information'!F41 -> 40592.40601
FD43: ='Country information'!N42 -> Chad | FE43: ='Country information'!C42 -> franc | FF43: ='Country information'!D42 -> CFAF | FG43: ='Country information'!E42 -> 503.3 | FH43: ='Country information'!F42 -> 40592.40601
FD45: ='Country information'!N44 -> China | FE45: ='Country information'!C44 -> yuan renminbi | FF45: ='Country information'!D44 -> ¥ | FG45: ='Country information'!E44 -> 6.67 | FH45: ='Country information'!F44 -> 40592.40601
FD46: ='Country information'!N45 -> Christmas Island | FE46: ='Country information'!C45 -> dollar | FF46: ='Country information'!D45 -> A$ | FG46: ='Country information'!E45 -> 1.04 | FH46: ='Country information'!F45 -> 40592.40605
FD47: ='Country information'!N46 -> Cocos (Keeling) Islands | FE47: ='Country information'!C46 -> dollar | FF47: ='Country information'!D46 -> A$ | FG47: ='Country information'!E46 -> 1.04 | FH47: ='Country information'!F46 -> 40592.40605
FD48: ='Country information'!N47 -> Colombia | FE48: ='Country information'!C47 -> peso | FF48: ='Country information'!D47 -> Col$ | FG48: ='Country information'!E47 -> 1920 | FH48: ='Country information'!F47 -> 40592.40601
FD49: ='Country information'!N48 -> Comoros | FE49: ='Country information'!C48 -> franc | FF49: ='Country information'!D48 -> KMF | FG49: ='Country information'!E48 -> 361.35 | FH49: ='Country information'!F48 -> 40592.40601
FD50: ='Country information'!N49 -> Congo | FE50: ='Country information'!C49 -> franc | FF50: ='Country information'!D49 -> CFAF | FG50: ='Country information'!E49 -> 503.3 | FH50: ='Country information'!F49 -> 40592.40601
FD51: ='Country information'!N50 -> Congo, Dem. Rep. | FE51: ='Country information'!C50 -> franc | FF51: ='Country information'!D50 -> CDF | FG51: ='Country information'!E50 -> 560 | FH51: ='Country information'!F50 -> 39413
FD52: ='Country information'!N51 -> Cook Islands | FE52: ='Country information'!C51 -> dollar | FF52: ='Country information'!D51 -> NZ$ | FG52: ='Country information'!E51 -> 1.34 | FH52: ='Country information'!F51 -> 40592.40605
FD53: ='Country information'!N52 -> Costa Rica | FE53: ='Country information'!C52 -> colon | FF53: ='Country information'!D52 -> ₡ | FG53: ='Country information'!E52 -> 501.95 | FH53: ='Country information'!F52 -> 40592.40602
FD54: ='Country information'!N53 -> Côte d'Ivoire | FE54: ='Country information'!C53 -> franc | FF54: ='Country information'!D53 -> CFAF | FG54: ='Country information'!E53 -> 503.3 | FH54: ='Country information'!F53 -> 40592.40605
FD55: ='Country information'!N54 -> Croatia | FE55: ='Country information'!C54 -> kuna | FF55: ='Country information'!D54 -> kn | FG55: ='Country information'!E54 -> 5.59 | FH55: ='Country information'!F54 -> 40592.40602
FD56: ='Country information'!N55 -> Cuba (external) | FE56: ='Country information'!C55 -> convertible peso | FF56: ='Country information'!D55 -> Cuc$ | FG56: ='Country information'!E55 -> 0.9259 | FH56: ='Country information'!F55 -> 39413
FD57: ='Country information'!N56 -> Cuba (internal) | FE57: ='Country information'!C56 -> peso | FF57: ='Country information'!D56 -> ₱ | FG57: ='Country information'!E56 -> 26.49708532 | FH57: ='Country information'!F56 -> 39413

Sheet Server Info
H2: =Lists!I14 -> Server Configuration Information
A4: =IF(OR(LicenseType = Lists!#REF!,LicenseType = Lists!#REF!),0,0) -> 
A6: 1
A7: =IF(configuration=Lists!B24,1,0) -> 1
A8: 1
A9: 1
A10: 1
A11: 1
A12: 1
A14: 1
A15: 1
A16: 1
A17: 1
A18: 1
A19: 1
A20: 1
A21: 1
A22: 1
A23: 1
A24: 1
FD40: ='Country information'!N48 -> Comoros | FE40: ='Country information'!C48 -> franc | FF40: ='Country information'!D48 -> KMF | FG40: ='Country information'!E48 -> 361.35 | FH40: ='Country information'!F48 -> 40592.40601
FD41: ='Country information'!N49 -> Congo | FE41: ='Country information'!C49 -> franc | FF41: ='Country information'!D49 -> CFAF | FG41: ='Country information'!E49 -> 503.3 | FH41: ='Country information'!F49 -> 40592.40601
FD42: ='Country information'!N50 -> Congo, Dem. Rep. | FE42: ='Country information'!C50 -> franc | FF42: ='Country information'!D50 -> CDF | FG42: ='Country information'!E50 -> 560 | FH42: ='Country information'!F50 -> 39413
FD43: ='Country information'!N51 -> Cook Islands | FE43: ='Country information'!C51 -> dollar | FF43: ='Country information'!D51 -> NZ$ | FG43: ='Country information'!E51 -> 1.34 | FH43: ='Country information'!F51 -> 40592.40605
FD44: ='Country information'!N52 -> Costa Rica | FE44: ='Country information'!C52 -> colon | FF44: ='Country information'!D52 -> ₡ | FG44: ='Country information'!E52 -> 501.95 | FH44: ='Country information'!F52 -> 40592.40602
FD45: ='Country information'!N53 -> Côte d'Ivoire | FE45: ='Country information'!C53 -> franc | FF45: ='Country information'!D53 -> CFAF | FG45: ='Country information'!E53 -> 503.3 | FH45: ='Country information'!F53 -> 40592.40605
FD46: ='Country information'!N54 -> Croatia | FE46: ='Country information'!C54 -> kuna | FF46: ='Country information'!D54 -> kn | FG46: ='Country information'!E54 -> 5.59 | FH46: ='Country information'!F54 -> 40592.40602
FD47: ='Country information'!N55 -> Cuba (external) | FE47: ='Country information'!C55 -> convertible peso | FF47: ='Country information'!D55 -> Cuc$ | FG47: ='Country information'!E55 -> 0.9259 | FH47: ='Country information'!F55 -> 39413
FD48: ='Country information'!N56 -> Cuba (internal) | FE48: ='Country information'!C56 -> peso | FF48: ='Country information'!D56 -> ₱ | FG48: ='Country information'!E56 -> 26.49708532 | FH48: ='Country information'!F56 -> 39413
FD49: ='Country information'!N57 -> Cyprus | FE49: ='Country information'!C57 -> poundC | FF49: ='Country information'!D57 -> £C | FG49: ='Country information'!E57 -> 0.77 | FH49: ='Country information'!F57 -> 40592.40602
FD50: ='Country information'!N58 -> Cyprus (Northern) | FE50: ='Country information'!C58 -> new lira | FF50: ='Country information'!D58 -> YTL | FG50: ='Country information'!E58 -> 1.344989913 | FH50: ='Country information'!F58 -> 38817
FD51: ='Country information'!N59 -> Czech | FE51: ='Country information'!C59 -> koruna | FF51: ='Country information'!D59 -> Kč | FG51: ='Country information'!E59 -> 17 | FH51: ='Country information'!F59 -> 40599.40435
FD52: ='Country information'!N60 -> Denmark | FE52: ='Country information'!C60 -> kroner | FF52: ='Country information'!D60 -> Dkr | FG52: ='Country information'!E60 -> 5.72 | FH52: ='Country information'!F60 -> 40592.40602
FD53: ='Country information'!N61 -> Djibouti | FE53: ='Country information'!C61 -> franc | FF53: ='Country information'!D61 -> DF | FG53: ='Country information'!E61 -> 177 | FH53: ='Country information'!F61 -> 40592.40602
FD54: ='Country information'!N62 -> Dominica | FE54: ='Country information'!C62 -> dollar | FF54: ='Country information'!D62 -> EC$ | FG54: ='Country information'!E62 -> 2.7 | FH54: ='Country information'!F62 -> 40592.40605
FD55: ='Country information'!N63 -> Dominican Rep. | FE55: ='Country information'!C63 -> peso | FF55: ='Country information'!D63 -> RD$ | FG55: ='Country information'!E63 -> 33.4835 | FH55: ='Country information'!F63 -> 39413
FD56: ='Country information'!N64 -> Dronning Maud Land | FE56: ='Country information'!C64 -> krone | FF56: ='Country information'!D64 -> NKr | FG56: ='Country information'!E64 -> 6.2 | FH56: ='Country information'!F64 -> 40592.40605
FD57: ='Country information'!N65 -> East Timor | FE57: ='Country information'!C65 -> dollar | FF57: ='Country information'!D65 -> US$ | FG57: ='Country information'!E65 -> 1 | FH57: ='Country information'!F65 -> 40592.40602

Sheet Software Info
H2: =Lists!J14 -> Software Selection Information
H3: This table shows the requirements for choosing between Standard and Premium licenses for business customers.
A23: =IF(OR(LicenseType = Lists!#REF!,LicenseType=Lists!#REF!,LicenseType=Lists!#REF!),1,0) -> 
A24: =IF(OR(LicenseType=Lists!#REF!,LicenseType=Lists!#REF!,LicenseType=Lists!#REF!,LicenseType = Lists!#REF!), 0,1) -> 
A25: 0
A26: 1
A27: =IF(OR(LicenseType = Lists!#REF!,LicenseType = Lists!#REF!),1,0) -> 
A28: =IF(OR(LicenseType = Lists!#REF!,LicenseType = Lists!#REF!),0,0) -> 
A32: 1

Sheet Data Tables (hidden)
J1: ready to start | K1: =IF(OR(Name="",Industry="",Users<1,'Start Page'!BH20="",usage="",havedevices="",haveperipherals="",samelocation=""),0,1) -> 0
A2: Salary Information | J2: hardwaremult | K2: =VLOOKUP(Country,'Country information'!B2:M247,10,FALSE) -> 1
E3: Country | F3: =VLOOKUP('Start Page'!BH20,'Country information'!N2:O247,2,FALSE) -> United States | J3: powermult | K3: =VLOOKUP(Country,'Country information'!B2:M247,12,FALSE) -> 1
E4: Burden rate | F4: =VLOOKUP(Country,'Country information'!B2:J247,9,FALSE) -> 0.4
A6: Function | B6: Hours/year | C6: $/hour | D6: Salary | E6: FB Salary | F6: Local FB Salary
A7: IT | B7: =WorkDays*8 -> 1920 | C7: =D7/B7 -> 29.40260417 | D7: ='Country information'!G233 -> 56453 | E7: =D7*(1+$F$4) -> 79034.2 | F7: =E7*VLOOKUP(Country,'Country information'!$B$2:$I$247,8,FALSE)*Rate -> 79034.2
A14: Server Cost information
A16: Low-end | B16: =500 -> 500 | C16: Cost per core | F16: Cost of RAM
A17: High-end | B17: =1000 -> 1000 | C17: 2 | D17: 0 | F17: 2 | G17: 125 | J17: Cores required | P17: Stations | Q17: Column
C18: 2.4 | D18: 25 | F18: 4 | G18: 375 | J18: 1-4 | K18: 5-6 | L18: 7-10 | M18: 11-14 | N18: 15-20 | P18: 0 | Q18: 2
C19: 2.6 | D19: 50 | F19: 6 | G19: 450 | I19: =Lists!$B$23 -> Internet and productivity applications only | J19: 2 | K19: 2 | L19: 4 | M19: 4 | N19: 6 | P19: 5 | Q19: 3
A20: Cores | C20: 2.8 | D20: 75 | F20: 8 | G20: 500 | I20: =Lists!$C$23 -> Internet, productivity and light multimedia | J20: 2 | K20: 2 | L20: 4 | M20: 6 | N20: 6 | P20: 7 | Q20: 4
A21: 1 | C21: 3 | D21: 100 | F21: 16 | G21: 1000 | I21: =Lists!$D$23 -> Internet, productivity and heavy multimedia | J21: 2 | K21: 4 | L21: 6 | M21: 6 | N21: 8 | P21: 11 | Q21: 5
A22: 2 | C22: 3.2 | D22: 200 | F22: 32 | G22: 2000 | J22: RAM required | P22: 15 | Q22: 6
A23: 4 | C23: 3.4 | D23: 300 | F23: 64 | G23: 4000 | J23: 1-4 | K23: 5-6 | L23: 7-10 | M23: 11-14 | N23: 15-20
A24: 6 | C24: 3.6 | D24: 500 | F24: 128 | G24: 10000 | I24: =Lists!$B$23 -> Internet and productivity applications only | J24: 2 | K24: 4 | L24: 6 | M24: 8 | N24: 8
A25: 8 | C25: 3.8 | D25: 1000 | I25: =Lists!$C$23 -> Internet, productivity and light multimedia | J25: 2 | K25: 4 | L25: 6 | M25: 8 | N25: 8
A26: 12 | I26: =Lists!$D$23 -> Internet, productivity and heavy multimedia | J26: 2 | K26: 4 | L26: 6 | M26: 8 | N26: 8
A27: 16
A28: 20
A29: 24 | J29: =Lists!B24 -> LAN Connection | K29: =Lists!C24 -> Video Card/USB | L29: =Lists!D24 -> USB Connection | P29: =Lists!$B$24 -> LAN Connection | Q29: 2
A30: 32 | I30: =Lists!$B$23 -> Internet and productivity applications only | J30: 20 | K30: 15 | L30: 10 | P30: =Lists!$C$24 -> Video Card/USB | Q30: 3
I31: =Lists!$C$23 -> Internet, productivity and light multimedia | J31: 15 | K31: 10 | L31: 5 | P31: =Lists!$D$24 -> USB Connection | Q31: 4
I32: =Lists!$D$23 -> Internet, productivity and heavy multimedia | J32: 10 | K32: 5 | L32: 2
B33: Academic | D33: Business
B34: Perp | C34: Sub | D34: Perp | E34: Sub
A35: =Software!H14 -> Windows Server 2016 Standard | B35: ='Account Team Inputs'!AR4 -> 115 | C35: ='Account Team Inputs'!BA4 -> 43 | D35: ='Account Team Inputs'!AR9 -> 817 | E35: ='Account Team Inputs'!BA9 -> 323
A36: =Software!H15 -> Windows MultiPoint Server 2011 Standard | D36: ='Account Team Inputs'!AR10 -> 330 | E36: ='Account Team Inputs'!BA10 -> 131
A37: =Software!H16 -> Windows MultiPoint Server 2011 CAL w/ Windows Server 2008 CAL | B37: ='Account Team Inputs'!AR5 -> 29 | C37: ='Account Team Inputs'!BA5 -> 11 | D37: ='Account Team Inputs'!AR11 -> 139 | E37: ='Account Team Inputs'!BA11 -> 55
A38: =Software!H17 -> Windows Server CAL | B38: ='Account Team Inputs'!AR6 -> 22 | C38: ='Account Team Inputs'!BA6 -> 8 | D38: ='Account Team Inputs'!AR12 -> 110 | E38: ='Account Team Inputs'!BA12 -> 44
A39: =Software!H18 -> Windows Client Software | B39: ='Account Team Inputs'!AR7 -> 115 | C39: ='Account Team Inputs'!BA7 -> 30 | D39: ='Account Team Inputs'!AR13 -> 199 | E39: ='Account Team Inputs'!BA13 -> 50
B40: =IF(Industry=Lists!B26,IF(Software!BH9=Lists!B35,3,2),IF(Software!BH9=Lists!B35,5,4)) -> 2
B125: 0-100 | C125: .1-.2
B126: 100-250 | C126: .2-.3
B127: 250-500 | C127: .3-.5
B128: 500-1000 | C128: .5-.75
B129: 1000-2000 | C129: .75-2
B130: 2000-5000 | C130: 2-3
B131: 5000-10000 | C131: 3-6
B132: 10000-50000 | C132: 6-11
B133: 50000-100000 | C133: 11-15

Sheet Charts (hidden)
B1: =Lists!$B$36 -> Windows MultiPoint Server
B2: =Results!S10 -> Year 1 | C2: =Results!Z10 -> Year 2 | D2: =Results!AG10 -> Year 3 | E2: =Results!AN10 -> Year 4 | F2: =Results!AU10 -> Year 5 | G2: =Results!BB10 -> Average
A3: =Results!H11 -> Hardware | B3: =Results!DP11 -> 317800 | C3: =Results!DQ11 -> 0 | D3: =Results!DR11 -> 0 | E3: =Results!DS11 -> 0 | F3: =Results!DT11 -> 0 | G3: =Results!BB11 -> 63560
A4: =Results!H12 -> Software | B4: =Results!DP12 -> 38360 | C4: =Results!DQ12 -> 0 | D4: =Results!DR12 -> 0 | E4: =Results!DS12 -> 0 | F4: =Results!DT12 -> 0 | G4: =Results!BB12 -> 7672
A5: =Results!H13 -> Deployment | B5: =Results!DP13 -> 3850 | C5: =Results!DQ13 -> 0 | D5: =Results!DR13 -> 0 | E5: =Results!DS13 -> 0 | F5: =Results!DT13 -> 0 | G5: =Results!BB13 -> 770
A6: =Results!H14 -> Operations | B6: =Results!DP14 -> 17003.27808 | C6: =Results!DQ14 -> 17003.27808 | D6: =Results!DR14 -> 17003.27808 | E6: =Results!DS14 -> 17003.27808 | F6: =Results!DT14 -> 17003.27808 | G6: =Results!BB14 -> 17003.27808
A7: =Results!H15 -> Total | B7: =Results!S15 -> 377013.2781 | C7: =Results!Z15 -> 17003.27808 | D7: =Results!AG15 -> 17003.27808 | E7: =Results!AN15 -> 17003.27808 | F7: =Results!AU15 -> 17003.27808 | G7: =Results!BB15 -> 89005.27808
B9: =Lists!$C$36 -> Traditional deployment
B10: =Results!S18 -> Year 1 | C10: =Results!Z18 -> Year 2 | D10: =Results!AG18 -> Year 3 | E10: =Results!AN18 -> Year 4 | F10: =Results!AU18 -> Year 5 | G10: =Results!BB18 -> Average
A11: =Results!H19 -> Hardware | B11: =Results!DP19 -> 602100 | C11: =Results!DQ19 -> 0 | D11: =Results!DR19 -> 0 | E11: =Results!DS19 -> 0 | F11: =Results!DT19 -> 0 | G11: =Results!BB19 -> 120420
A12: =Results!H20 -> Software | B12: =Results!DP20 -> 115000 | C12: =Results!DQ20 -> 0 | D12: =Results!DR20 -> 0 | E12: =Results!DS20 -> 0 | F12: =Results!DT20 -> 0 | G12: =Results!BB20 -> 23000
A13: =Results!H21 -> Deployment | B13: =Results!DP21 -> 52183.33333 | C13: =Results!DQ21 -> 0 | D13: =Results!DR21 -> 0 | E13: =Results!DS21 -> 0 | F13: =Results!DT21 -> 0 | G13: =Results!BB21 -> 10436.66667
A14: =Results!H22 -> Operations | B14: =Results!DP22 -> 175724.8567 | C14: =Results!DQ22 -> 175724.8567 | D14: =Results!DR22 -> 175724.8567 | E14: =Results!DS22 -> 175724.8567 | F14: =Results!DT22 -> 175724.8567 | G14: =Results!BB22 -> 175724.8567
A15: =Results!H23 -> Total | B15: =Results!S23 -> 945008.1901 | C15: =Results!Z23 -> 175724.8567 | D15: =Results!AG23 -> 175724.8567 | E15: =Results!AN23 -> 175724.8567 | F15: =Results!AU23 -> 175724.8567 | G15: =Results!BB23 -> 329581.5234
C17: =B1 -> Windows MultiPoint Server | D17: =B9 -> Traditional deployment
B18: =A3 -> Hardware | C18: =G3 -> 63560 | D18: =G11 -> 120420
B19: =A4 -> Software | C19: =G4 -> 7672 | D19: =G12 -> 23000
B20: =A5 -> Deployment | C20: =G5 -> 770 | D20: =G13 -> 10436.66667
B21: =A6 -> Operations | C21: =G6 -> 17003.27808 | D21: =G14 -> 175724.8567
C38: =B1 -> Windows MultiPoint Server | D38: =B9 -> Traditional deployment
B39: =A3 -> Hardware | C39: =B3 -> 317800 | D39: =B11 -> 602100
B40: =A4 -> Software | C40: 38360 | D40: =B12 -> 115000
B41: Deployment | C41: 3850 | D41: 52183.33333

Sheet Default values and inputs (hidden)
A1: Sheet | B1: Cell | C1: Value | E1: Total User Inputs | F1: =COUNTA(B:B) -> 173
A2: Start Page | B2: BH17
A3: Start Page | B3: BH18
A4: Start Page | B4: BH19
A5: Start Page
A6: Start Page
A7: Start Page | B7: BH22
A8: Start Page | B8: BH23
A9: Start Page | B9: BH24
A10: Start Page | B10: BH25
A12: Results | B12: S11 | C12: =DP11
A13: Results | B13: S12 | C13: =DP12
A14: Results | B14: S13 | C14: =DP13
A15: Results | B15: S14 | C15: =DP14
A16: Results
A17: Results | B17: S19 | C17: =DP19
A18: Results | B18: S20 | C18: =DP20
A19: Results | B19: S21 | C19: =DP21
A20: Results | B20: S22 | C20: =DP22
A21: Results
A22: Results | B22: Z11 | C22: =DQ11
A23: Results | B23: Z12 | C23: =DQ12
A24: Results | B24: Z13 | C24: =DQ13
A25: Results | B25: Z14 | C25: =DQ14
A26: Results
A27: Results | B27: Z19 | C27: =DQ19
A28: Results | B28: Z20 | C28: =DQ20
A29: Results | B29: Z21 | C29: =DQ21
A30: Results | B30: Z22 | C30: =DQ22
A31: Results
A32: Results | B32: AG11 | C32: =DR11
A33: Results | B33: AG12 | C33: =DR12
A34: Results | B34: AG13 | C34: =DR13
A35: Results | B35: AG14 | C35: =DR14
A36: Results
A37: Results | B37: AG19 | C37: =DR19
A38: Results | B38: AG20 | C38: =DR20
A39: Results | B39: AG21 | C39: =DR21
A40: Results | B40: AG22 | C40: =DR22
A41: Results
A42: Results | B42: AN11 | C42: =DS11
A43: Results | B43: AN12 | C43: =DS12
A44: Results | B44: AN13 | C44: =DS13
A45: Results | B45: AN14 | C45: =DS14
A46: Results
A47: Results | B47: AN19 | C47: =DS19
A48: Results | B48: AN20 | C48: =DS20
A49: Results | B49: AN21 | C49: =DS21
A50: Results | B50: AN22 | C50: =DS22
A51: Results
A52: Results | B52: AU11 | C52: =DT11
A53: Results | B53: AU12 | C53: =DT12
A54: Results | B54: AU13 | C54: =DT13
A55: Results | B55: AU14 | C55: =DT14
A56: Results
A57: Results | B57: AU19 | C57: =DT19
A58: Results | B58: AU20 | C58: =DT20
A59: Results | B59: AU21 | C59: =DT21
A60: Results | B60: AU22 | C60: =DT22
A62: Hardware | B62: Z8 | C62: =AK8
A63: Hardware | B63: AC15 | C63: =AN15
A64: Hardware | B64: AC24 | C64: =AN24
A65: Hardware | B65: AC25 | C65: =AN25
A66: Hardware
A67: Hardware | B67: AB31 | C67: =AK31
A68: Hardware | B68: AB32 | C68: =AK32
A69: Hardware | B69: AB33 | C69: =AK33
A70: Hardware | B70: AB34 | C70: =AK34
A71: Hardware | B71: AB35 | C71: =AK35
A72: Hardware | B72: AB36 | C72: =AK36
A73: Hardware | B73: AB37 | C73: =AK37
A74: Hardware
A75: Hardware | B75: AB39 | C75: =AK39
A76: Hardware | B76: AB40 | C76: =AK40
A77: Hardware
A78: Hardware | B78: AQ31 | C78: =AV31
A79: Hardware | B79: AQ32 | C79: =AV32
A80: Hardware | B80: AQ33 | C80: =AV33
A81: Hardware | B81: AQ34 | C81: =AV34
A82: Hardware | B82: AQ35 | C82: =AV35
A83: Hardware | B83: AQ36 | C83: =AV36
A84: Hardware | B84: AQ37 | C84: =AV37
A85: Hardware
A86: Hardware | B86: AQ39 | C86: =AV39
A87: Hardware | B87: AQ40 | C87: =AV40
A88: Hardware
A89: Hardware | B89: BD41 | C89: 0
A90: Hardware
A91: Hardware | B91: CE31 | C91: =CN31
A92: Hardware | B92: CE37 | C92: =CN37
A93: Hardware | B93: CT31 | C93: =CY31
A94: Hardware | B94: CT37 | C94: =CY37
A95: Hardware
A96: Hardware | B96: DG41 | C96: 0
A98: Software | B98: BH6 | C98: =BS6
A99: Software | B99: BH7 | C99: =BS7
A100: Software | B100: BH8 | C100: =BS8
A101: Software | B101: BH9 | C101: =BS9
A102: Software | B102: BH10 | C102: =BS10
A103: Software
A104: Software
A105: Software
A106: Software | B106: BK14 | C106: =BV14
A107: Software | B107: BK15 | C107: =BV15
A108: Software | B108: BK16 | C108: =BV16
A109: Software | B109: BK17 | C109: =BV17
A110: Software | B110: BK18 | C110: =BV18
A111: Software
A112: Software | B112: AY24 | C112: 0
A113: Software | B113: CY24 | C113: 0
A115: Deployment | B115: BK5 | C115: =BV5
A116: Deployment | B116: BK6 | C116: =BV6
A117: Deployment | B117: BK7 | C117: =BV7
A118: Deployment
A119: Deployment | B119: BC16 | C119: 0
A120: Deployment | B120: DF16 | C120: 0
A122: Operations | B122: BK5 | C122: =BV5
A123: Operations | B123: BK6 | C123: =BV6
A124: Operations | B124: BK7 | C124: =BV7
A125: Operations | B125: BK8 | C125: =BV8
A126: Operations | B126: BK9 | C126: =BV9
A127: Operations | B127: BK10 | C127: =BV10
A128: Operations | B128: BK11 | C128: =BV11
A129: Operations
A130: Operations | B130: BK13 | C130: =BV13
A131: Operations | B131: BK14 | C131: =BV14
A132: Operations | B132: BK15 | C132: =BV15
A133: Operations | B133: BK16 | C133: =BV16
A134: Operations | B134: BK17 | C134: =BV17
A135: Operations | B135: BK18 | C135: =BV18
A136: Operations | B136: BK19 | C136: =BV19
A137: Operations | B137: BK20 | C137: =BV20
A138: Operations | B138: BK21 | C138: =BV21
A139: Operations
A140: Operations | B140: BC44 | C140: 0
A141: Operations | B141: DF44 | C141: 0
A143: Calculations | B143: BN6 | C143: =DU6
A144: Calculations | B144: BN7 | C144: =DU7
A145: Calculations | B145: BN8 | C145: =DU8
A146: Calculations
A147: Calculations
A148: Calculations | B148: BN11 | C148: =DU11
A149: Calculations | B149: BN12 | C149: =DU12
A150: Calculations | B150: BN13 | C150: =DU13
A151: Calculations | B151: BN14 | C151: =DU14
A152: Calculations | B152: BN15 | C152: =DU15
A153: Calculations | B153: BN16 | C153: =DU16
A154: Calculations | B154: BN17 | C154: =DU17
A155: Calculations
A156: Calculations | B156: BN22 | C156: =DU22
A157: Calculations | B157: BN23 | C157: =DU23
A158: Calculations
A159: Calculations
A160: Calculations | B160: BN29 | C160: =DU29
A161: Calculations
A162: Calculations | B162: BN37 | C162: =DU37
A163: Calculations
A164: Calculations | B164: BT6 | C164: =DV6
A165: Calculations | B165: BT7 | C165: =DV7
A166: Calculations | B166: BT8 | C166: =DV8
A167: Calculations
A168: Calculations
A169: Calculations | B169: BT11 | C169: =DV11
A170: Calculations | B170: BT12 | C170: =DV12
A171: Calculations | B171: BT13 | C171: =DV13
A172: Calculations | B172: BT14 | C172: =DV14
A173: Calculations | B173: BT15 | C173: =DV15
A174: Calculations | B174: BT16 | C174: =DV16
A175: Calculations | B175: BT17 | C175: =DV17
A176: Calculations
A177: Calculations | B177: BT22 | C177: =DV22
A178: Calculations | B178: BT23 | C178: =DV23
A179: Calculations
A180: Calculations
A181: Calculations | B181: BT29 | C181: =DV29
A182: Calculations
A183: Calculations | B183: BT34 | C183: =DV34
A184: Calculations | B184: BT35 | C184: =DV35
A185: Calculations
A186: Calculations | B186: BT37 | C186: =DV37
A187: Calculations
A188: Calculations | B188: CC18 | C188: =DW18
A189: Calculations | B189: CC24 | C189: =DW24
A190: Calculations | B190: CC28 | C190: =DW28
A191: Calculations | B191: CC30 | C191: =DW30
A192: Calculations | B192: CC38 | C192: =DW38
A193: Calculations
A194: Calculations | B194: CK9 | C194: =DX9
A195: Calculations
A196: Calculations | B196: CK11 | C196: =DX11
A197: Calculations | B197: CK12 | C197: =DX12
A198: Calculations | B198: CK13 | C198: =DX13
A199: Calculations | B199: CK14 | C199: =DX14
A200: Calculations | B200: CK15 | C200: =DX15
A201: Calculations | B201: CK16 | C201: =DX16
A202: Calculations
A203: Calculations | B203: CK21 | C203: =DX21
A204: Calculations | B204: CK29 | C204: =DX29
A205: Calculations | B205: CK37 | C205: =DX37
A206: Calculations
... 21 more rows

Sheet Report Info (hidden)
A1: <Organization Name> | B1: =Name -> 0 | F1: <custom> | G1: =custom -> 0 | J1: <CostComparisonTable> | K1: Results | L1: G8:BI24 | N1: <CostBar> | O1: Results | P1: 1
A2: <Industry> | B2: =Industry -> Academic | F2: <havedevices> | G2: =IF(havedevices=Lists!$B$2,1,0) -> 0 | J2: <cost%difftable> | K2: Results | L2: BY8:DE23
A3: <stations> | B3: =IF(Users>=1000,TEXT(Users,IF(Thousands=".","0.000",IF(Thousands=",","0,000","0 000"))),Users) -> 1,000 | F3: <haveperipherals> | G3: =IF(haveperipherals=Lists!$B$2,1,0) -> 0 | J3: <HardwareCalcs> | K3: CalculationsDisp | L3: hardwarecosts
A4: <country> | B4: =Country -> United States | F4: <samelocation> | G4: =IF(samelocation=Lists!$B$2,1,0) -> 0 | J4: <SoftwareCalcs> | K4: CalculationsDisp | L4: softwarecosts
A5: <hosts> | B5: =Calculations!BN6+Calculations!BN7+Calculations!BN8 -> 72 | F5: <directusb> | G5: =IF(Calculations!BN8>0,1,0) -> 0 | J5: <DeploymentCalcs> | K5: CalculationsDisp | L5: deploymentcosts
A6: <avgstationsperhost> | B6: =TEXT(B3/B5,IF(Decimal=".","0.00","0,00")) -> 13.89 | F6: <directvideo> | G6: =IF(Calculations!BN7>0,1,0) -> 0 | J6: <OperationsCalcs> | K6: CalculationsDisp | L6: operationscosts
A7: <TCOChange> | B7: =CurrencySymbol& " " & IF(ABS(Results!BB15-Results!BB23)>=1000,TEXT(ABS(Results!BB15-Results!BB23),IF(Thousands=".","0.000",IF(Thousands=",","0,000","0 000"))),TEXT(ABS(Results!BB15-Results!BB23),"000")) -> US$ 240,576 | F7: <LAN> | G7: =IF(Calculations!BN6>0,1,0) -> 1
A8: <MPHardware> | B8: =CurrencySymbol& " " & IF(Results!BB11*5>=1000,TEXT(Results!BB11*5,IF(Thousands=".","0.000",IF(Thousands=",","0,000","0 000"))),TEXT(Results!BB11*5,"000")) -> US$ 317,800 | F8: <Mixed> | G8: =mixedconfiguration -> 0
A9: <MPSoftware> | B9: =CurrencySymbol& " " & IF(Results!BB12*5>=1000,TEXT(Results!BB12*5,IF(Thousands=".","0.000",IF(Thousands=",","0,000","0 000"))),TEXT(Results!BB12*5,"000")) -> US$ 38,360 | C9: <Sample> | D9: =CurrencySymbol& " " & TEXT(Results!AJ50,IF(Decimal=".","0.00","0,00")) -> US$ 0.00 | F9: <costreduction> | G9: =IF(B7<0,1,0) -> 0
A10: <MPDepoyment> | B10: =CurrencySymbol& " " & IF(Results!BB13*5>=1000,TEXT(Results!BB13*5,IF(Thousands=".","0.000",IF(Thousands=",","0,000","0 000"))),TEXT(Results!BB13*5,"000")) -> US$ 3,850 | C10: <Sample> | D10: =TEXT(Results!I16,"0%") -> 0% | F10: <subscription> | G10: =IF(Software!BH9=Lists!B35,1,0) -> 0
A11: <MPOperations> | B11: =CurrencySymbol& " " & IF(Results!BB14*5>=1000,TEXT(Results!BB14*5,IF(Thousands=".","0.000",IF(Thousands=",","0,000","0 000"))),TEXT(Results!BB14*5,"000")) -> US$ 85,016 | F11: <Academic> | G11: =IF(Industry=Lists!B26,1,0) -> 1
A12: <MPTotal> | B12: =CurrencySymbol& " " & IF(Results!BB15*5>=1000,TEXT(Results!BB15*5,IF(Thousands=".","0.000",IF(Thousands=",","0,000","0 000"))),TEXT(Results!BB15*5,"000")) -> US$ 445,026 | F12: <Business> | G12: =IF(Industry=Lists!C26,1,0) -> 0
A13: <TDHardware> | B13: =CurrencySymbol& " " & IF(Results!BB19*5>=1000,TEXT(Results!BB19*5,IF(Thousands=".","0.000",IF(Thousands=",","0,000","0 000"))),TEXT(Results!BB19*5,"000")) -> US$ 602,100 | F13: <savings> | G13: =IF(B12<B17,1,0) -> 0
A14: <TDSoftware> | B14: =CurrencySymbol& " " & IF(Results!BB20*5>=1000,TEXT(Results!BB20*5,IF(Thousands=".","0.000",IF(Thousands=",","0,000","0 000"))),TEXT(Results!BB20*5,"000")) -> US$ 115,000 | F14: <hardwaresavings> | G14: =IF(B8<B13,1,0) -> 1
A15: <TDDepoyment> | B15: =CurrencySymbol& " " & IF(Results!BB21*5>=1000,TEXT(Results!BB21*5,IF(Thousands=".","0.000",IF(Thousands=",","0,000","0 000"))),TEXT(Results!BB21*5,"000")) -> US$ 52,183 | F15: <Powersavings> | G15: =IF(Calculations!$DY$34>Calculations!$DV$34,1,0) -> 1
A16: <TDOperations> | B16: =CurrencySymbol& " " & IF(Results!BB22*5>=1000,TEXT(Results!BB22*5,IF(Thousands=".","0.000",IF(Thousands=",","0,000","0 000"))),TEXT(Results!BB22*5,"000")) -> US$ 878,624 | F16: <Operationssavings> | G16: =IF(Results!CQ14>Results!CJ14,1,0) -> 1
A17: <TDTotal> | B17: =CurrencySymbol& " " & IF(Results!BB23*5>=1000,TEXT(Results!BB23*5,IF(Thousands=".","0.000",IF(Thousands=",","0,000","0 000"))),TEXT(Results!BB23*5,"000")) -> US$ 1,647,908
A18: <%change> | B18: =TEXT(Results!CX15,"0%") -> 73%
A19: <deploymentmethod> | B19: =IF(G8=1,"a mixed environment",IF(G5=1,"Direct Connect through USB ports",IF(G6=1,"Direct Connect through Video cards and USB ports",IF(G7=1,"LAN connections")))) -> LAN connections
A20: <costperstation> | B20: =CurrencySymbol& " " & IF(Results!CJ15/Users>=1000,TEXT(Results!CJ15/Users,IF(Thousands=".","0.000",IF(Thousands=",","0,000","0 000"))),TEXT(Results!CJ15/Users,"000")) -> US$ 445
A21: <hardwarechange> | B21: =CurrencySymbol& " " & IF(ABS(Results!CQ11-Results!CJ11)>=1000,TEXT(ABS(Results!CQ11-Results!CJ11),IF(Thousands=".","0.000",IF(Thousands=",","0,000","0 000"))),TEXT(ABS(Results!CQ11-Results!CJ11),"000")) -> US$ 284,300
A22: <MPhardwarecostperstation> | B22: =CurrencySymbol& " " & IF(Results!CJ11/Users>=1000,TEXT(ABS(Results!CJ11/Users),IF(Thousands=".","0.000",IF(Thousands=",","0,000","0 000"))),TEXT(ABS(Results!CJ11/Users),"000")) -> US$ 318
A23: <TDhardwarecostperstation> | B23: =CurrencySymbol& " " & IF(Results!CQ11/Users>=1000,TEXT(ABS(Results!CQ11/Users),IF(Thousands=".","0.000",IF(Thousands=",","0,000","0 000"))),TEXT(ABS(Results!CQ11/Users),"000")) -> US$ 602
A24: <powerchange> | B24: =CurrencySymbol& " " & IF(ABS(Calculations!$DY$34-Calculations!$DV$34)>=1000,TEXT(ABS(Calculations!$DY$34-Calculations!$DV$34),IF(Thousands=".","0.000",IF(Thousands=",","0,000","0 000"))),TEXT(ABS(Calculations!$DY$34-Calculations!$DV$34),"000")) -> US$ 15,655
A25: <operationschange> | B25: =CurrencySymbol& " " & IF(ABS(Results!S22-Results!S14)>=1000,TEXT(ABS(Results!S22-Results!S14),IF(Thousands=".","0.000",IF(Thousands=",","0,000","0 000"))),TEXT(ABS(Results!S22-Results!S14),"000")) -> US$ 158,722
A26: <kWhrchange> | B26: =IF(ABS(TDkWhr-MPkWhr)>=1000,TEXT(ABS(TDkWhr-MPkWhr),IF(Thousands=".","0.000",IF(Thousands=",","0,000","0 000"))),TEXT(ABS(TDkWhr-MPkWhr),"000")) -> 139,776

Sheet Lists (hidden)
B2: Yes | C2: No
B3: 0 | C3: 1 | D3: 2 | E3: 3 | F3: 4 | G3: 5 | H3: 6 | I3: 7 | J3: 8 | K3: 9 | L3: 10
B4: Agriculture | C4: Education | D4: Financial Services | E4: Government | F4: Healthcare | G4: Life Sciences | H4: Manufacturing | I4: Media | J4: Nonprofit | K4: Professional Services | L4: Retail | M4: Telecommunications | N4: Transportation | O4: Utilities | P4: Other
B5: Year 0 | C5: Year 1 | D5: Year 2 | E5: Year 3 | F5: SA-Only | G5: Year 4 | H5: Year 5 | I5: Year 6
B6: User Selection | C6: Suggested Value
B7: Users | C7: Current | D7: Future | E7: Total | F7: Cost per User
B8: Details
B9: minutes | C9: hours | D9: hours per server | E9: hours per load balancer | F9: hours per gateway | G9: months | H9: month | I9: weeks | J9: day | K9: minute | L9: hour | M9: week
B10: Organization Name | C10: Location
B11: Start | C11: Inputs | D11: Results | E11: Advanced
B12: Update Costs | C12: Messaging | D12: IM/Presence | E12: Conferencing | F12: Voice
B13: Save File | C13: Print Sheet | D13: User Guide | E13: Create Report | F13: Import Data From Questionnaire | G13: Reset Sheet | H13: Reset Entry
B14: Hardware Configuration | C14: Advanced inputs for hybrid scenario | D14: Software Details | E14: Deployment Costs | F14: Software Pricing | G14: Results | H14: Hardware Configuration Information | I14: Server Configuration Information | J14: Software Selection Information | K14: Continuing Operations Costs
B15: Verify Licensing | C15: Download Exchange Rates | D15: Reset Entries and Start New Analysis | E15: Next | F15: Welcome to the Windows MultiPoint Server 2011 TCO tool! | G15: Localization Settings | H15: Language Selection
B16: Inputs for Basic Analysis | C16: Requires Input | D16: Hide/Show | E16: TCO analysis report for
B17: Summary | C17: TCO | D17: Compare online vs. on-premises
B18: Reset All Entries in Tool | C18: Return to Start Page | D18: Return to Results | E18: Return to Hardware Configuration | F18: Return to Software Configuration
B19: MB | C19: GB | D19: MB/sec | E19: GHz
B20: Exchange Online | C20: Exchange Server and Online | D20: Exchange Server
B21: , | C21: .
B22: Server Specifications | C22: Storage Specifications | D22: Cores | E22: Speed | F22: RAM | G22: Actual Cost | H22: Estimated Cost | I22: Actual | J22: Estimated | K22: Cost per server | L22: Servers required
B23: Internet and productivity applications only | C23: Internet, productivity and light multimedia | D23: Internet, productivity and heavy multimedia
B24: LAN Connection | C24: Video Card/USB | D24: USB Connection | F24: USB Connection
B25: Yes | C25: No, help me decide
B26: Academic | C26: Business
B27: Premium | C27: Standard
B28: Inputs | C28: Calculations
B29: Buy new RemoteFX | C29: Use existing hardware | D29: Buy other hardware
B30: Use existing hardware for stations | C30: Not reusing existing PCs, thin clients, etc.
B31: Locate stations close to host | C31: Require flexibility on station location
B32: Running mostly productivity applications with no or light video | C32: Running a mixed set of productivity and multimedia | D32: Running heavy multimedia applications
B33: Requires a LAN Connection | C33: Any connection method can be used
B34: Any connection method can be used | C34: Video Card/USB or LAN recommended
B35: Subscription | C35: Perpetual
B36: Windows MultiPoint Server | C36: Traditional deployment

Sheet Text (hidden)
B1: Selected | G1: English
A2: Account Team Inputs | B2: =OFFSET(G2,,LanguageOffset) -> You may use this section to edit the software cost for Microsoft software licenses. If there are any promotions you want to include you can make the adjustments here. Microsoft licensing prices may not be based on the exchange rate above as Microsoft adjusts their exchange rates on a standard schedule. Please do not set the license prices to zero for items that are not used. The tool will select the cheapest licensing option so setting prices to zero can cause unwanted results. | G2: You may use this section to edit the software cost for Microsoft software licenses. If there are any promotions you want to include you can make the adjustments here. Microsoft licensing prices may not be based on the exchange rate above as Microsoft adjusts their exchange rates on a standard schedule. Please do not set the license prices to zero for items that are not used. The tool will select the cheapest licensing option so setting prices to zero can cause unwanted results.
A3: Account Team Inputs | B3: Which Microsoft licensing contract should be used? | G3: Which Microsoft licensing contract should be used?
A4: Account Team Inputs | B4: What is the customer's pricing level? | G4: What is the customer's pricing level?
A5: Account Team Inputs | B5: Should Software Assurance be included? | G5: Should Software Assurance be included?
A6: Account Team Inputs | B6: Do you use Single/Listed Languages or All Languages? | G6: Do you use Single/Listed Languages or All Languages?
A7: Account Team Inputs | B7: Is the EA Platform or Component? | G7: Is the EA Platform or Component?
A8: Account Team Inputs | B8: Is the Open Value program Standard or Enterprise? | G8: Is the Open Value program Standard or Enterprise?
A9: Account Team Inputs | B9: Do you want to specify a CAL Suite or let the tool choose the least expensive option? | G9: Do you want to specify a CAL Suite or let the tool choose the least expensive option?
A10: Account Team Inputs | B10: Discount from standard rate to be applied | G10: Discount from standard rate to be applied
A11: Account Team Inputs | B11: Software Licenses | G11: Software Licenses
A12: Account Team Inputs | B12: Exchange Server Standard Edition | G12: Exchange Server Standard Edition
A13: Account Team Inputs | B13: Exchange Server Enterprise Edition | G13: Exchange Server Enterprise Edition
A14: Account Team Inputs | B14: Exchange Server Standard CAL | G14: Exchange Server Standard CAL
A15: Account Team Inputs | B15: Exchange Server Enterprise CAL | G15: Exchange Server Enterprise CAL
A16: Account Team Inputs | B16: Lync Server Standard Edition | G16: Lync Server Standard Edition
A17: Account Team Inputs | B17: Lync Server Enterprise Edition | G17: Lync Server Enterprise Edition
A18: Account Team Inputs | B18: Lync Server Standard CAL | G18: Lync Server Standard CAL
A19: Account Team Inputs | B19: Lync Server Enterprise CAL | G19: Lync Server Enterprise CAL
A20: Account Team Inputs | B20: Windows Server Standard Edition | G20: Windows Server Standard Edition
A21: Account Team Inputs | B21: Windows Server Enterprise Edition | G21: Windows Server Enterprise Edition
A22: Account Team Inputs | B22: Windows Server CAL | G22: Windows Server CAL
A23: Account Team Inputs | B23: Rights Management Services CAL | G23: Rights Management Services CAL
A24: Account Team Inputs | B24: SQL Server Standard Edition | G24: SQL Server Standard Edition
A25: Account Team Inputs | B25: SQL Server Enterprise Edition | G25: SQL Server Enterprise Edition
A26: Account Team Inputs | B26: SQL Server CAL | G26: SQL Server CAL
A27: Account Team Inputs | B27: ISA Server | G27: ISA Server
A28: Account Team Inputs | B28: Core CAL Suite | G28: Core CAL Suite
A29: Account Team Inputs | B29: Enterprise CAL Suite | G29: Enterprise CAL Suite
A30: Account Team Inputs | B30: Office Professional Plus | G30: Office Professional Plus
A31: Account Team Inputs | B31: Office Outlook | G31: Office Outlook
A32: Account Team Inputs | B32: Office Communicator | G32: Office Communicator
A33: Account Team Inputs | B33: Services | G33: Services
A34: Account Team Inputs | B34: BPO Standard Suite | G34: BPO Standard Suite
A35: Account Team Inputs | B35: Exchange Online | G35: Exchange Online
A36: Account Team Inputs | B36: Exchange Deskless Online | G36: Exchange Deskless Online
A37: Account Team Inputs | B37: Office Communications Online | G37: Office Communications Online
A38: Account Team Inputs | B38: Live Meeting Standard | G38: Live Meeting Standard
A39: Account Team Inputs | B39: Live Meeting Professional | G39: Live Meeting Professional
A40: Account Team Inputs | B40: Public IM Access | G40: Public IM Access
A41: Account Team Inputs | B41: Exchange Hosted Filtering | G41: Exchange Hosted Filtering
A42: Account Team Inputs | B42: Exchange Hosted Archiving | G42: Exchange Hosted Archiving
A43: Account Team Inputs | B43: Exchange Hosted Continuity | G43: Exchange Hosted Continuity
A44: Account Team Inputs | B44: Exchange Hosted Encryption | G44: Exchange Hosted Encryption
A45: Account Team Inputs | B45: Forefront for Exchange | G45: Forefront for Exchange
A46: Account Team Inputs | B46: Forefront for OCS | G46: Forefront for OCS
A47: Account Team Inputs | B47: License Only | G47: License Only
A48: Account Team Inputs | B48: License + SA - annual price for 3 years | G48: License + SA - annual price for 3 years
A49: Account Team Inputs | B49: SA Only - annual price for 3 years | G49: SA Only - annual price for 3 years
A50: Account Team Inputs | B50: # of licenses currently covered by Software Assurance (used for Exchange or LCS/OCS) | G50: # of licenses currently covered by Software Assurance (used for Exchange or LCS/OCS)
A51: Account Team Inputs | B51: Monthly Cost per User | G51: Monthly Cost per User
A52: Account Team Inputs | B52: Enterprise CAL Suite Step-up | G52: Enterprise CAL Suite Step-up
B53: 0
A54: Start Page | B54: This tool has been set up to help produce a business case for deploying a Microsoft Unified Communications solution. Before starting, please view the user guide by clicking here. | G54: This tool has been set up to help produce a business case for deploying a Microsoft Unified Communications solution. Before starting, please view the user guide by clicking here.
A55: Start Page | B55: What is the organization's name? | G55: What is the organization's name?
A56: Start Page | B56: How many users does the organization have? | G56: How many users does the organization have?
A57: Start Page | B57: Where is the organization located? | G57: Where is the organization located?
A58: Start Page | B58: Which Unified Communications workloads would you like to analyze? | G58: Which Unified Communications workloads would you like to analyze?
A59: Start Page | B59: Although great care has been taken to ensure the accuracy and completeness of results derived from this tool, this tool should be used for informational purposes only, and Microsoft makes no warranties, express, implied or statutory, as to the information generated by the tool or any organization's achievement of the potential benefits estimated by using Microsoft solutions or products. Use, disclosure or reproduction of this tool is prohibited without the prior written permission of Microsoft Corporation. | G59: Although great care has been taken to ensure the accuracy and completeness of results derived from this tool, this tool should be used for informational purposes only, and Microsoft makes no warranties, express, implied or statutory, as to the information generated by the tool or any organization's achievement of the potential benefits estimated by using Microsoft solutions or products. Use, disclosure or reproduction of this tool is prohibited without the prior written permission of Microsoft Corporation.
B60: 0
A61: Basic | B61: General Information | G61: General Information
A62: Basic | B62: Company Information | G62: Company Information
A63: Basic | B63: What is your organization's revenue? | G63: What is your organization's revenue?
A64: Basic | B64: What is your organization's gross profit margin? | G64: What is your organization's gross profit margin?
A65: Basic | B65: How does your organization typically adopt technology? | G65: How does your organization typically adopt technology?
A66: Basic | B66: =OFFSET(G66,,LanguageOffset) -> Cost Information | G66: Cost Information
A67: Basic | B67: What do you typically pay for hardware maintenance as a percent of hardware cost? | G67: What do you typically pay for hardware maintenance as a percent of hardware cost?
A68: Basic | B68: Over how many years does the organization typically depreciate hardware? | G68: Over how many years does the organization typically depreciate hardware?
A69: Basic | B69: What do you typically pay for datacenter costs for each server? | G69: What do you typically pay for datacenter costs for each server?
A70: Basic | B70: What is the average fully burdened salary of IT administrators? | G70: What is the average fully burdened salary of IT administrators?
A71: Basic | B71: What is the weighted average fully burdened salary of computer users? | G71: What is the weighted average fully burdened salary of computer users?
A72: Basic | B72: Deployment Information | G72: Deployment Information
A73: Basic | B73: Enter the number of users with access to the solution. | G73: Enter the number of users with access to the solution.
A74: Basic | B74: Will you choose an on-premises or online solution? | G74: Will you choose an on-premises or online solution?
A75: Basic | B75: Product Information | G75: Product Information
A76: Basic | B76: Exchange Inputs | G76: Exchange Inputs
A77: Basic | B77: What is the current monthly cost per mailbox for your messaging environment? | G77: What is the current monthly cost per mailbox for your messaging environment?
A78: Basic | B78: What is the current e-mail usage profile of employees with mailboxes? | G78: What is the current e-mail usage profile of employees with mailboxes?
A79: Basic | B79: Light - Average of 5 messages sent and 20 received per day | G79: Light - Average of 5 messages sent and 20 received per day
A80: Basic | B80: Average - Average of 10 messages sent and 40 received per day | G80: Average - Average of 10 messages sent and 40 received per day
A81: Basic | B81: Heavy - Average of 20 messages sent and 80 received per day | G81: Heavy - Average of 20 messages sent and 80 received per day
A82: Basic | B82: Very Heavy - Average of 30 messages sent and 120 received per day | G82: Very Heavy - Average of 30 messages sent and 120 received per day
A83: Basic | B83: Extra Heavy - Average of 40 messages sent and 160 received per day | G83: Extra Heavy - Average of 40 messages sent and 160 received per day
A84: Basic | B84: What percentage of users currently access e-mail remotely through: | G84: What percentage of users currently access e-mail remotely through:
A85: Basic | B85: ActiveSync mobile device (e.g. Windows Mobile) | G85: ActiveSync mobile device (e.g. Windows Mobile)
A86: Basic | B86: Non-ActiveSync mobile device (e.g. RIM Blackberry) | G86: Non-ActiveSync mobile device (e.g. RIM Blackberry)
A87: Basic | B87: Will you deploy Exchange 2007 or Exchange 2010? | G87: Will you deploy Exchange 2007 or Exchange 2010?
A88: Basic | B88: What will you use as your primary e-mail client? | G88: What will you use as your primary e-mail client?
A89: Basic | B89: What mailbox size (in MB) will you provide? | G89: What mailbox size (in MB) will you provide?
A90: Basic | B90: What type of storage will you use? | G90: What type of storage will you use?
A91: Basic | B91: How many voice mail systems do you have? | G91: How many voice mail systems do you have?
A92: Basic | B92: Lync Server Inputs | G92: Lync Server Inputs
A93: Basic | B93: What is the current monthly cost per user for your IM/Presence environment? | G93: What is the current monthly cost per user for your IM/Presence environment?
A94: Basic | B94: How many central or headquarters locations does your organization have? | G94: How many central or headquarters locations does your organization have?
A95: Basic | B95: How many branch office locations does you organization have? | G95: How many branch office locations does you organization have?
A96: Basic | B96: What percent of total users are at branch office locations? | G96: What percent of total users are at branch office locations?
A97: Basic | B97: What percent of total users are teleworkers? | G97: What percent of total users are teleworkers?
A98: Basic | B98: How many locations have a PBX or key system (branch office PBX)? | G98: How many locations have a PBX or key system (branch office PBX)?
A99: Basic | B99: Will you deploy Lync Server using SIP Trunking? | G99: Will you deploy Lync Server using SIP Trunking?
A100: Basic | B100: What phone options will you provide to users? | G100: What phone options will you provide to users?
A101: Basic | B101: IP-enabled phones (e.g. Tanjay) | G101: IP-enabled phones (e.g. Tanjay)
A102: Basic | B102: USB handset (e.g. Catalina) | G102: USB handset (e.g. Catalina)
A103: Basic | B103: USB Headset (e.g. GN Netcom) | G103: USB Headset (e.g. GN Netcom)
A104: Basic | B104: Benefit Information - Decreasing Costs | G104: Benefit Information - Decreasing Costs
A105: Basic | B105: Reduce Travel Cost for Meetings and Training | G105: Reduce Travel Cost for Meetings and Training
A106: Basic | B106: What % of your employees travel for meetings or training? | G106: What % of your employees travel for meetings or training?
A107: Basic | B107: How many trips per year do your employees take on average? | G107: How many trips per year do your employees take on average?
A108: Basic | B108: What is the average cost per trip? | G108: What is the average cost per trip?
A109: Basic | B109: What are your total annual travel costs? | G109: What are your total annual travel costs?
A110: Basic | B110: What % of trips could be avoided with a UC Conferencing solution? | G110: What % of trips could be avoided with a UC Conferencing solution?
A111: Basic | B111: Cut Audio/Video/Web Conferencing Costs | G111: Cut Audio/Video/Web Conferencing Costs
A112: Basic | B112: Reduce Audio Conferencing Cost | G112: Reduce Audio Conferencing Cost
A113: Basic | B113: How many audio conferencing minutes do you pay for annually? | G113: How many audio conferencing minutes do you pay for annually?
A114: Basic | B114: What is the cost per minute paid to your service provider? | G114: What is the cost per minute paid to your service provider?
A115: Basic | B115: What is the current total annual cost for audio conferencing services (including service provider costs)? | G115: What is the current total annual cost for audio conferencing services (including service provider costs)?
A116: Basic | B116: What % of audio conferencing can be replaced with OCS VoIP or the OCS conferencing bridge? | G116: What % of audio conferencing can be replaced with OCS VoIP or the OCS conferencing bridge?
A117: Basic | B117: What rate will you pay for PSTN toll free access numbers? | G117: What rate will you pay for PSTN toll free access numbers?
A118: Basic | B118: Reduce Video Conferencing Cost | G118: Reduce Video Conferencing Cost
A119: Basic | B119: What is the current total annual cost for video conferencing services (including service provider costs)? | G119: What is the current total annual cost for video conferencing services (including service provider costs)?
A120: Basic | B120: What % of video conferences can be replaced with OCS VoIP and OCS Web conferencing or Live Meeting? | G120: What % of video conferences can be replaced with OCS VoIP and OCS Web conferencing or Live Meeting?
A121: Basic | B121: Reduce Web conferencing costs | G121: Reduce Web conferencing costs
A122: Basic | B122: What is the current total annual cost for Web conferencing services (including service provider costs)? | G122: What is the current total annual cost for Web conferencing services (including service provider costs)?
A123: Basic | B123: What % of Web conferences can be replaced with OCS VoIP and OCS Web conferencing or Live Meeting? | G123: What % of Web conferences can be replaced with OCS VoIP and OCS Web conferencing or Live Meeting?
A124: Basic | B124: Cut Telephony Costs | G124: Cut Telephony Costs
A125: Basic | B125: Reduce PBX Management costs | G125: Reduce PBX Management costs
A126: Basic | B126: What is the current annual cost for PBX management? | G126: What is the current annual cost for PBX management?
A127: Basic | B127: Is PBX Management outsourced? If so, when does the contract expire | G127: Is PBX Management outsourced? If so, when does the contract expire
A128: Basic | B128: What is cost of annual PBX maintenance? | G128: What is cost of annual PBX maintenance?
A129: Basic | B129: If you have a maintenance contract, when does it expire? | G129: If you have a maintenance contract, when does it expire?
A130: Basic | B130: =OFFSET(G130,,LanguageOffset) -> Reduce telephony service provider costs | G130: Reduce telephony service provider costs
A131: Basic | B131: What is total annual cost for long distance, toll charges, and trunking charges (e.g. T1, PRI)? | G131: What is total annual cost for long distance, toll charges, and trunking charges (e.g. T1, PRI)?
A132: Basic | B132: What is % reduction in office telephone costs (toll charges and trunking costs)? | G132: What is % reduction in office telephone costs (toll charges and trunking costs)?
A133: Basic | B133: What is the total annual cost of telephony charges for mobile employees (e.g. calling card, cell phone)? | G133: What is the total annual cost of telephony charges for mobile employees (e.g. calling card, cell phone)?
A134: Basic | B134: What is % of mobile calls that can be replaced using Microsoft soft client? | G134: What is % of mobile calls that can be replaced using Microsoft soft client?
A135: Basic | B135: Savings from office moves | G135: Savings from office moves
A136: Basic | B136: What was the cost per move prior to implementing solution? | G136: What was the cost per move prior to implementing solution?
A137: Basic | B137: How many people move offices annually? | G137: How many people move offices annually?
A138: Basic | B138: What is the cost per move with OCS VoIP? | G138: What is the cost per move with OCS VoIP?
A139: Basic | B139: Lower Real-Estate Costs | G139: Lower Real-Estate Costs
A140: Basic | B140: What is your current sq. ft/sq. m per employee? | G140: What is your current sq. ft/sq. m per employee?
A141: Basic | B141: What % of employees could go mobile with alternative work strategies (i.e. hot-desking or telework) | G141: What % of employees could go mobile with alternative work strategies (i.e. hot-desking or telework)
A142: Basic | B142: What is the average annual facilities cost per sq. ft./sq. m? | G142: What is the average annual facilities cost per sq. ft./sq. m?
A143: Basic | B143: Reduce Messaging and Voice Mail Costs | G143: Reduce Messaging and Voice Mail Costs
A144: Basic | B144: Reduce the cost of messaging administration and support | G144: Reduce the cost of messaging administration and support
A145: Basic | B145: What is the current annual cost of messaging help desk support? | G145: What is the current annual cost of messaging help desk support?
A146: Basic | B146: What is the current annual cost of messaging administration? | G146: What is the current annual cost of messaging administration?
A147: Basic | B147: Reduce the cost of third party products | G147: Reduce the cost of third party products
A148: Basic | B148: What is the annual cost of third party products that can be retired? | G148: What is the annual cost of third party products that can be retired?
A149: Basic | B149: Mobile e-mail hardware and software | G149: Mobile e-mail hardware and software
A150: Basic | B150: Archiving | G150: Archiving
A151: Basic | B151: High Availability/Clustering | G151: High Availability/Clustering
A152: Basic | B152: Anti-virus/Anti-SPAM | G152: Anti-virus/Anti-SPAM
A153: Basic | B153: Backup | G153: Backup
A154: Basic | B154: Reporting and Monitoring | G154: Reporting and Monitoring
A155: Basic | B155: Compliance | G155: Compliance
A156: Basic | B156: Other | G156: Other
A157: Basic | B157: Reduce the cost of backups | G157: Reduce the cost of backups
A158: Basic | B158: Current annual cost of backups? | G158: Current annual cost of backups?
A159: Basic | B159: % of backups that can be reduced? | G159: % of backups that can be reduced?
A160: Basic | B160: Reduce the Cost for Voicemail | G160: Reduce the Cost for Voicemail
A161: Basic | B161: Is your voice mail system consolidated or distributed? | G161: Is your voice mail system consolidated or distributed?
A162: Basic | B162: What is the current annual cost for Voice Mail management? | G162: What is the current annual cost for Voice Mail management?
A163: Basic | B163: If voice mail management is outsourced, when does contract expire? | G163: If voice mail management is outsourced, when does contract expire?
A164: Basic | B164: What is cost of annual voicemail maintenance? | G164: What is cost of annual voicemail maintenance?
A165: Basic | B165: If you have maintenance contract, when does it expire? | G165: If you have maintenance contract, when does it expire?
A166: Basic | B166: Benefit Information - Improving Business Outcomes | G166: Benefit Information - Improving Business Outcomes
A167: Basic | B167: Increase End-User Productivity | G167: Increase End-User Productivity
A168: Basic | B168: How many minutes per day can you save: | G168: How many minutes per day can you save:
A169: Basic | B169: Improving the efficiency of messaging | G169: Improving the efficiency of messaging
A170: Basic | B170: Managing e-mails with a larger mailbox? | G170: Managing e-mails with a larger mailbox?
A171: Basic | B171: Using UC solutions to find people or information? | G171: Using UC solutions to find people or information?
A172: Basic | B172: Turning downtime into uptime through mobile access? | G172: Turning downtime into uptime through mobile access?
A173: Basic | B173: How many hours per month can you save: | G173: How many hours per month can you save:
A174: Basic | B174: Avoiding travel to meetings or other locations? | G174: Avoiding travel to meetings or other locations?
A175: Basic | B175: What % of time savings can be used for other productive activities? | G175: What % of time savings can be used for other productive activities?
A176: Basic | B176: Reduce the cost of e-mail downtime | G176: Reduce the cost of e-mail downtime
A177: Basic | B177: What is your current availability for e-mail? | G177: What is your current availability for e-mail?
A178: Basic | B178: What is your expected availability after deployment? | G178: What is your expected availability after deployment?
A179: Basic | B179: How much does e-mail downtime cost your organization per hour? | G179: How much does e-mail downtime cost your organization per hour?
A180: Basic | B180: What % of downtime results in lost productivity or revenues? | G180: What % of downtime results in lost productivity or revenues?
A181: Basic | B181: Faster Project Completion | G181: Faster Project Completion
A182: Basic | B182: How many projects does your organization complete annually? | G182: How many projects does your organization complete annually?
A183: Basic | B183: How much revenue is typically associated with each project? | G183: How much revenue is typically associated with each project?
A184: Basic | B184: What is the reduction in project time due to improved collaboration? | G184: What is the reduction in project time due to improved collaboration?
A185: Basic | B185: What % of the time savings could be applied to new projects? | G185: What % of the time savings could be applied to new projects?
A186: Basic | B186: Shorten Sales Cycle Times | G186: Shorten Sales Cycle Times
A187: Basic | B187: How long is the average sales cycle in days? | G187: How long is the average sales cycle in days?
A188: Basic | B188: How much revenue does a typical sale generate? | G188: How much revenue does a typical sale generate?
A189: Basic | B189: What is the average close rate (% of successful proposals)? | G189: What is the average close rate (% of successful proposals)?
A190: Basic | B190: How many proposals are completed each year? | G190: How many proposals are completed each year?
A191: Basic | B191: How much time can be saved through more effective communications? | G191: How much time can be saved through more effective communications?
A192: Basic | B192: Retain and Attract Employees | G192: Retain and Attract Employees
A193: Basic | B193: What is your average annual employee turnover? | G193: What is your average annual employee turnover?
A194: Basic | B194: =OFFSET(G194,,LanguageOffset) -> What is the average cost to replace an employee? (recruiting, training)? | G194: What is the average cost to replace an employee? (recruiting, training)?
A195: Basic | B195: How much could a more flexible work environment reduce turnover? | G195: How much could a more flexible work environment reduce turnover?
A196: Basic | B196: Faster Resolution of Customer Issues | G196: Faster Resolution of Customer Issues
A197: Basic | B197: How many contact center calls are received annually? | G197: How many contact center calls are received annually?
A198: Basic | B198: What is the cost per contact center call? | G198: What is the cost per contact center call?
A199: Basic | B199: What % of issues are solved on the first call? | G199: What % of issues are solved on the first call?
A200: Basic | B200: What % of issues could be solved on the first call with UC? | G200: What % of issues could be solved on the first call with UC?
... 556 more rows

Sheet Licensing Tables (hidden)
C1: VL Rate
B2: Rate | C2: =IFERROR(VLOOKUP(International!BT5,C6:E18,3,FALSE),Rate) -> 1
E4: VL
E5: FX Rate
B6: ='Country information'!B13 -> Australia | C6: ='Country information'!A13 -> dollarA$ | D6: 1 | E6: 1.447115385
B7: ='Country information'!B38 -> Canada | C7: ='Country information'!A38 -> dollarCan$ | D7: 2 | E7: 1.336538462
B8: ='Country information'!B60 -> Denmark | C8: ='Country information'!A61 -> francDF | D8: 3 | E8: 8.019230769
B9: Euro | C9: ='Country information'!A6 -> euro€ | D9: 4 | E9: 1.076923077
B10: ='Country information'!B215 -> Taiwan | C10: ='Country information'!A215 -> new dollarNT$ | D10: 5 | E10: 34.39903846
B11: ='Country information'!B162 -> New Zealand | C11: ='Country information'!A162 -> dollarNZ$ | D11: 6 | E11: 1.725961538
B12: ='Country information'!B168 -> Norway | C12: ='Country information'!A168 -> kroneNKr | D12: 7 | E12: 8.278846154
B13: ='Country information'!B232 -> United Kingdom | C13: ='Country information'!A232 -> pound£ | D13: 8 | E13: 0.7211538462
B14: ='Country information'!B211 -> Sweden | C14: ='Country information'!A211 -> kronorSEK | D14: 9 | E14: 10.48076923
B15: ='Country information'!B212 -> Switzerland | C15: ='Country information'!A212 -> francCHF | D15: 10 | E15: 1.677884615
B16: ='Country information'!B123 -> Korea, South | C16: ='Country information'!A124 -> dinarKD | D16: 11 | E16: 1075.480769
B17: ='Country information'!B114 -> Japan | C17: ='Country information'!A115 -> pound£ | D17: 12 | E17: 119.2307692
B18: ='Country information'!B44 -> China | C18: ='Country information'!A44 -> yuan renminbi¥ | D18: 13 | E18: 8.298076923

Sheet ImportInfo (hidden)
A1: AFGHANISTAN - AFGHANI | B1: 44.5 | C1: AFGHANISTAN | D1: =(TRIM(PROPER(C1))) -> Afghanistan | E1: =B1 -> 44.5
A2: ALBANIA - LEK | B2: 106.36 | C2: ALBANIA | D2: =(TRIM(PROPER(C2))) -> Albania | E2: =B2 -> 106.36
A3: ALGERIA - DINAR | B3: 73.15 | C3: ALGERIA | D3: Algeria | E3: 73.15
A4: ANGOLA - KWANZA | B4: 90 | C4: ANGOLA | D4: Angola | E4: 90
A5: ANTIGUA - BARBUDA - E. CARIBBEAN DOLLAR | B5: 2.7 | C5: ANTIGUA | D5: Antigua | E5: 2.7
A6: ARGENTINA-PESO | B6: 3.98 | C6: ARGENTINA | D6: Argentina | E6: 3.98
A7: ARMENIA - DRAM | B7: 360 | C7: ARMENIA | D7: Armenia | E7: 360
A8: AUSTRALIA - DOLLAR | B8: 1.04 | C8: AUSTRALIA | D8: Australia | E8: 1.04
A9: AUSTRIA - EURO | B9: 0.77 | C9: AUSTRIA | D9: Austria | E9: 0.77
A10: AZERBAIJAN - MANAT | B10: 0.82 | C10: AZERBAIJAN | D10: Azerbaijan | E10: 0.82
A11: BAHAMAS - DOLLAR | B11: 1 | C11: BAHAMAS | D11: Bahamas | E11: 1
A12: BAHRAIN - DINAR | B12: 0.38 | C12: BAHRAIN | D12: Bahrain | E12: 0.38
A13: BANGLADESH - TAKA | B13: 69 | C13: BANGLADESH | D13: Bangladesh | E13: 69
A14: BARBADOS - DOLLAR | B14: 2.02 | C14: BARBADOS | D14: Barbados | E14: 2.02
A15: BELARUS - RUBLE | B15: 3010 | C15: BELARUS | D15: Belarus | E15: 3010
A16: BELGIUM-EURO | B16: 0.77 | C16: BELGIUM | D16: Belgium | E16: 0.77
A17: BELIZE - DOLLAR | B17: 2 | C17: BELIZE | D17: Belize | E17: 2
A18: BENIN - CFA FRANC | B18: 503.3 | C18: BENIN | D18: Benin | E18: 503.3
A19: BERMUDA - DOLLAR | B19: 1 | C19: BERMUDA | D19: Bermuda | E19: 1
A20: BOLIVIA - BOLIVIANO | B20: 6.96 | C20: BOLIVIA | D20: Bolivia | E20: 6.96
A21: BOSNIA-HERCEGOVINA MARKA | B21: 1.5 | C21: BOSNIA | D21: Bosnia | E21: 1.5
A22: BOTSWANA - PULA | B22: 6.75 | C22: BOTSWANA | D22: Botswana | E22: 6.75
A23: BRAZIL - REAL | B23: 1.72 | C23: BRAZIL | D23: Brazil | E23: 1.72
A24: BRUNEI - DOLLAR | B24: 1.32 | C24: BRUNEI | D24: Brunei | E24: 1.32
A25: BULGARIA - LEV | B25: 1.5 | C25: BULGARIA | D25: Bulgaria | E25: 1.5
A26: BURKINA FASO - CFA FRANC | B26: 503.3 | C26: BURKINA FASO | D26: Burkina Faso | E26: 503.3
A27: BURMA - KYAT | B27: 450 | C27: BURMA | D27: Burma | E27: 450
A28: BURUNDI - FRANC | B28: 1243 | C28: BURUNDI | D28: Burundi | E28: 1243
A29: CAMBODIA (KHMER) - RIEL | B29: 4239 | C29: CAMBODIA (KHMER) | D29: Cambodia (Khmer) | E29: 4239
A30: CAMEROON - CFA FRANC | B30: 503.3 | C30: CAMEROON | D30: Cameroon | E30: 503.3
A31: CANADA - DOLLAR | B31: 1.02 | C31: CANADA | D31: Canada | E31: 1.02
A32: CAPE VERDE - ESCUDO | B32: 81.67 | C32: CAPE VERDE | D32: Cape Verde | E32: 81.67
A33: CAYMAN ISLANDS - DOLLAR | B33: 0.82 | C33: CAYMAN ISLANDS | D33: Cayman Islands | E33: 0.82
A34: CENTRAL AFRICAN REPUBLIC - CFA FRANC | B34: 503.3 | C34: CENTRAL AFRICAN REPUBLIC | D34: Central African Republic | E34: 503.3
A35: CHAD - CFA FRANC | B35: 503.3 | C35: CHAD | D35: Chad | E35: 503.3
A36: CHILE - PESO | B36: 486.7 | C36: CHILE | D36: Chile | E36: 486.7
A37: CHINA - RENMINBI | B37: 6.67 | C37: CHINA | D37: China | E37: 6.67
A38: COLOMBIA - PESO | B38: 1920 | C38: COLOMBIA | D38: Colombia | E38: 1920
A39: COMOROS - FRANC | B39: 361.35 | C39: COMOROS | D39: Comoros | E39: 361.35
A40: CONGO - CFA FRANC | B40: 503.3 | C40: CONGO | D40: Congo | E40: 503.3
A41: COSTA RICA - COLON | B41: 501.95 | C41: COSTA RICA | D41: Costa Rica | E41: 501.95
A42: COTE D'IVOIRE - CFA FRANC | B42: 503.3 | C42: COTE D'IVOIRE | D42: Cote D'Ivoire | E42: 503.3
A43: CROATIA - KUNA | B43: 5.59 | C43: CROATIA | D43: Croatia | E43: 5.59
A44: CUBA-PESO | B44: 0.93 | C44: CUBA | D44: Cuba | E44: 0.93
A45: CYPRUS-EURO | B45: 0.77 | C45: CYPRUS | D45: Cyprus | E45: 0.77
A46: CZECH - KORUNA | B46: 18.64 | C46: CZECH | D46: Czech | E46: 18.64
A47: DEM REP OF CONGO-CONGOLESE FRANC | B47: 900 | C47: DEM REP OF CONGO | D47: Dem Rep Of Congo | E47: 900
A48: DENMARK - KRONE | B48: 5.72 | C48: DENMARK | D48: Denmark | E48: 5.72
A49: DJIBOUTI - FRANC | B49: 177 | C49: DJIBOUTI | D49: Djibouti | E49: 177
A50: DOMINICAN REPUBLIC - PESO | B50: 37.05 | C50: DOMINICAN REPUBLIC | D50: Dominican Republic | E50: 37.05
A51: EAST TIMOR-DILI | B51: 1 | C51: EAST TIMOR | D51: East Timor | E51: 1
A52: ECAUDOR-DOLARES | B52: 1 | C52: ECAUDOR | D52: Ecaudor | E52: 1
A53: EGYPT - POUND | B53: 5.79 | C53: EGYPT | D53: Egypt | E53: 5.79
A54: EL SALVADOR-DOLARES | B54: 1 | C54: EL SALVADOR | D54: El Salvador | E54: 1
A55: EQUATORIAL GUINEA - CFA FRANC | B55: 503.3 | C55: EQUATORIAL GUINEA | D55: Equatorial Guinea | E55: 503.3
A56: ERITREA - NAKFA | B56: 15 | C56: ERITREA | D56: Eritrea | E56: 15
A57: ESTONIA - KROON | B57: 12 | C57: ESTONIA | D57: Estonia | E57: 12
A58: ETHIOPIA - BIRR | B58: 16.49 | C58: ETHIOPIA | D58: Ethiopia | E58: 16.49
A59: EURO ZONE - EURO | B59: 0.77 | C59: EURO ZONE | D59: Euro Zone | E59: 0.77
A60: FIJI - DOLLAR | B60: 1.82 | C60: FIJI | D60: Fiji | E60: 1.82
A61: FINLAND-EURO | B61: 0.77 | C61: FINLAND | D61: Finland | E61: 0.77
A62: FRANCE-EURO | B62: 0.77 | C62: FRANCE | D62: France | E62: 0.77
A63: GABON - CFA FRANC | B63: 503.3 | C63: GABON | D63: Gabon | E63: 503.3
A64: GAMBIA - DALASI | B64: 28 | C64: GAMBIA | D64: Gambia | E64: 28
A65: GEORGIA-LARI | B65: 1.76 | C65: GEORGIA | D65: Georgia | E65: 1.76
A66: GERMANY FRG-EURO | B66: 0.77 | C66: GERMANY FRG | D66: =(TRIM(PROPER(C66))) -> Germany Frg | E66: =B66 -> 0.77
A67: GHANA - CEDI | B67: 1.45 | C67: GHANA | D67: Ghana | E67: 1.45
A68: GREECE-EURO | B68: 0.77 | C68: GREECE | D68: Greece | E68: 0.77
A69: GRENADA - EAST CARIBBEAN DOLLAR | B69: 2.7 | C69: GRENADA | D69: Grenada | E69: 2.7
A70: GUATEMALA-QUENTZEL | B70: 8 | C70: GUATEMALA | D70: Guatemala | E70: 8
A71: GUINEA - FRANC | B71: 6078 | C71: GUINEA | D71: Guinea | E71: 6078
A72: GUINEA BISSAU - CFA FRANC | B72: 503.3 | C72: GUINEA BISSAU | D72: Guinea Bissau | E72: 503.3
A73: GUYANA - DOLLAR | B73: 201 | C73: GUYANA | D73: Guyana | E73: 201
A74: HAITI - GOURDE | B74: 38.5 | C74: HAITI | D74: Haiti | E74: 38.5
A75: HONDURAS - LEMPIRA | B75: 18.9 | C75: HONDURAS | D75: Honduras | E75: 18.9
A76: HONG KONG - DOLLAR | B76: 7.77 | C76: HONG KONG | D76: Hong Kong | E76: 7.77
A77: HUNGARY - FORINT | B77: 217.12 | C77: HUNGARY | D77: Hungary | E77: 217.12
A78: ICELAND - KRONA | B78: 117.07 | C78: ICELAND | D78: Iceland | E78: 117.07
A79: INDIA - RUPEE | B79: 45.7 | C79: INDIA | D79: India | E79: 45.7
A80: INDONESIA - RUPIAH | B80: 8900 | C80: INDONESIA | D80: Indonesia | E80: 8900
A81: IRAN - RIAL | B81: 8229 | C81: IRAN | D81: Iran | E81: 8229
A82: IRAQ - DINAR | B82: 1166.5 | C82: IRAQ | D82: Iraq | E82: 1166.5
A83: IRELAND-EURO | B83: 0.77 | C83: IRELAND | D83: Ireland | E83: 0.77
A84: ISRAEL-SHEKEL | B84: 3.68 | C84: ISRAEL | D84: Israel | E84: 3.68
A85: ITALY-EURO | B85: 0.77 | C85: ITALY | D85: Italy | E85: 0.77
A86: JAMAICA - DOLLAR | B86: 85.8 | C86: JAMAICA | D86: Jamaica | E86: 85.8
A87: JAPAN - YEN | B87: 83.83 | C87: JAPAN | D87: Japan | E87: 83.83
A88: JORDAN - DINAR | B88: 0.71 | C88: JORDAN | D88: Jordan | E88: 0.71
A89: KAZAKHSTAN - TENGE | B89: 147.5 | C89: KAZAKHSTAN | D89: Kazakhstan | E89: 147.5
A90: KENYA - SHILLING | B90: 80.9 | C90: KENYA | D90: Kenya | E90: 80.9
A91: KOREA - WON | B91: 1160.15 | C91: KOREA | D91: Korea | E91: 1160.15
A92: KUWAIT - DINAR | B92: 0.28 | C92: KUWAIT | D92: Kuwait | E92: 0.28
A93: KYRGYZSTAN - SOM | B93: 46.8 | C93: KYRGYZSTAN | D93: Kyrgyzstan | E93: 46.8
A94: LAOS - KIP | B94: 8031 | C94: LAOS | D94: Laos | E94: 8031
A95: LATVIA - LATS | B95: 0.54 | C95: LATVIA | D95: Latvia | E95: 0.54
A96: LEBANON - POUND | B96: 1500 | C96: LEBANON | D96: Lebanon | E96: 1500
A97: LESOTHO - SOUTH AFRICAN RAND | B97: 7.07 | C97: LESOTHO | D97: Lesotho | E97: 7.07
A98: LIBERIA - U.S. DOLLAR | B98: 49 | C98: LIBERIA | D98: Liberia | E98: 49
A99: LIBYA-DINAR | B99: 1.25 | C99: LIBYA | D99: Libya | E99: 1.25
A100: LITHUANIA - LITAS | B100: 2.65 | C100: LITHUANIA | D100: Lithuania | E100: 2.65
A101: LUXEMBOURG-EURO | B101: 0.77 | C101: LUXEMBOURG | D101: Luxembourg | E101: 0.77
A102: MACAO - MOP | B102: 8 | C102: MACAO | D102: Macao | E102: 8
A103: MACEDONIA FYROM - DENAR | B103: 45.8 | C103: MACEDONIA FYROM | D103: Macedonia Fyrom | E103: 45.8
A104: MADAGASCAR-ARIA | B104: 2010.61 | C104: MADAGASCAR | D104: Madagascar | E104: 2010.61
A105: MALAWI - KWACHA | B105: 151 | C105: MALAWI | D105: Malawi | E105: 151
A106: MALAYSIA - RINGGIT | B106: 3.17 | C106: MALAYSIA | D106: Malaysia | E106: 3.17
A107: MALI - CFA FRANC | B107: 503.3 | C107: MALI | D107: Mali | E107: 503.3
A108: MALTA-EURO | B108: 0.77 | C108: MALTA | D108: Malta | E108: 0.77
A109: MARSHALLS ISLANDS - DOLLAR | B109: 1 | C109: MARSHALLS ISLANDS | D109: Marshalls Islands | E109: 1
A110: MARTINIQUE-EURO | B110: 0.77 | C110: MARTINIQUE | D110: Martinique | E110: 0.77
A111: MAURITANIA - OUGUIYA | B111: 290 | C111: MAURITANIA | D111: Mauritania | E111: 290
A112: MAURITIUS - RUPEE | B112: 30.3 | C112: MAURITIUS | D112: Mauritius | E112: 30.3
A113: MEXICO - NEW PESO | B113: 12.5 | C113: MEXICO | D113: Mexico | E113: 12.5
A114: MICRONESIA - DOLLAR | B114: 1 | C114: MICRONESIA | D114: Micronesia | E114: 1
A115: MOLDOVA - LEU | B115: 12.17 | C115: MOLDOVA | D115: Moldova | E115: 12.17
A116: MONGOLIA - TUGRIK | B116: 1262.45 | C116: MONGOLIA | D116: Mongolia | E116: 1262.45
A117: MONTENEGRO-EURO | B117: 0.77 | C117: MONTENEGRO | D117: Montenegro | E117: 0.77
A118: MOROCCO - DIRHAM | B118: 8.5 | C118: MOROCCO | D118: Morocco | E118: 8.5
A119: MOZAMBIQUE - METICAL | B119: 35.71 | C119: MOZAMBIQUE | D119: Mozambique | E119: 35.71
A120: NAMIBIA-DOLLAR | B120: 7.07 | C120: NAMIBIA | D120: Namibia | E120: 7.07
A121: NEPAL - RUPEE | B121: 72.95 | C121: NEPAL | D121: Nepal | E121: 72.95
A122: NETHERLANDS-EURO | B122: 0.77 | C122: NETHERLANDS | D122: Netherlands | E122: 0.77
A123: NETHERLANDS ANTILLES - GUILDER | B123: 1.78 | C123: NETHERLANDS ANTILLES | D123: Netherlands Antilles | E123: 1.78
A124: NEW ZEALAND - DOLLAR | B124: 1.34 | C124: NEW ZEALAND | D124: New Zealand | E124: 1.34
A125: NICARAGUA - CORDOBA | B125: 21.79 | C125: NICARAGUA | D125: Nicaragua | E125: 21.79
A126: NIGER - CFA FRANC | B126: 503.3 | C126: NIGER | D126: Niger | E126: 503.3
A127: NIGERIA - NAIRA | B127: 150.6 | C127: NIGERIA | D127: Nigeria | E127: 150.6
A128: NORWAY - KRONE | B128: 6.2 | C128: NORWAY | D128: Norway | E128: 6.2
A129: OMAN - RIAL | B129: 0.39 | C129: OMAN | D129: Oman | E129: 0.39
A130: PAKISTAN - RUPEE | B130: 85.7 | C130: PAKISTAN | D130: =(TRIM(PROPER(C130))) -> Pakistan | E130: =B130 -> 85.7
A131: PALAU-DOLLAR | B131: 1 | C131: PALAU | D131: Palau | E131: 1
A132: PANAMA - BALBOA | B132: 1 | C132: PANAMA | D132: Panama | E132: 1
A133: PAPUA NEW GUINEA - KINA | B133: 2.48 | C133: PAPUA NEW GUINEA | D133: Papua New Guinea | E133: 2.48
A134: PARAGUAY - GUARANI | B134: 4700 | C134: PARAGUAY | D134: Paraguay | E134: 4700
A135: PHILIPPINES - PESO | B135: 44.1 | C135: PHILIPPINES | D135: Philippines | E135: 44.1
A136: POLAND - ZLOTY | B136: 3.11 | C136: POLAND | D136: Poland | E136: 3.11
A137: PORTUGAL-EURO | B137: 0.77 | C137: PORTUGAL | D137: Portugal | E137: 0.77
A138: QATAR - RIYAL | B138: 3.64 | C138: QATAR | D138: Qatar | E138: 3.64
A139: ROMANIA - LEU | B139: 3.29 | C139: ROMANIA | D139: Romania | E139: 3.29
A140: RUSSIA-RUBLE | B140: 31.4 | C140: RUSSIA | D140: Russia | E140: 31.4
A141: RWANDA - FRANC | B141: 592.02 | C141: RWANDA | D141: Rwanda | E141: 592.02
A142: SAO TOME & PRINCIPE - DOBRAS | B142: 18526.1191 | C142: SAO TOME & PRINCIPE | D142: Sao Tome & Principe | E142: 18526.1191
A143: SAUDI ARABIA - RIYAL | B143: 3.75 | C143: SAUDI ARABIA | D143: Saudi Arabia | E143: 3.75
A144: SENEGAL - CFA FRANC | B144: 503.3 | C144: SENEGAL | D144: Senegal | E144: 503.3
A145: SERBIA-DINAR | B145: 0.77 | C145: SERBIA | D145: Serbia | E145: 0.77
A146: SEYCHELLES - RUPEE | B146: 12.1 | C146: SEYCHELLES | D146: Seychelles | E146: 12.1
A147: SIERRA LEONE - LEONE | B147: 4146 | C147: SIERRA LEONE | D147: Sierra Leone | E147: 4146
A148: SINGAPORE - DOLLAR | B148: 1.32 | C148: SINGAPORE | D148: Singapore | E148: 1.32
A149: SLOVAK-EURO | B149: 0.77 | C149: SLOVAK | D149: Slovak | E149: 0.77
A150: SLOVENIA-EURO | B150: 0.77 | C150: SLOVENIA | D150: Slovenia | E150: 0.77
A151: SOLOMON ISLANDS - DOLLAR | B151: 7.4 | C151: SOLOMON ISLANDS | D151: Solomon Islands | E151: 7.4
A152: SOUTH AFRICA - RAND | B152: 7.07 | C152: SOUTH AFRICA | D152: South Africa | E152: 7.07
A153: SPAIN-EURO | B153: 0.77 | C153: SPAIN | D153: Spain | E153: 0.77
A154: SRI LANKA - RUPEE | B154: 111.35 | C154: SRI LANKA | D154: Sri Lanka | E154: 111.35
A155: ST LUCIA - EC DOLLAR | B155: 2.7 | C155: ST LUCIA | D155: St Lucia | E155: 2.7
A156: SUDAN-POUND | B156: 2.37 | C156: SUDAN | D156: Sudan | E156: 2.37
A157: SURINAME - GUILDER | B157: 2.8 | C157: SURINAME | D157: Suriname | E157: 2.8
A158: SWAZILAND - LILANGENI | B158: 7.07 | C158: SWAZILAND | D158: Swaziland | E158: 7.07
A159: SWEDEN - KRONA | B159: 7.04 | C159: SWEDEN | D159: Sweden | E159: 7.04
A160: SWITZERLAND - FRANC | B160: 1 | C160: SWITZERLAND | D160: Switzerland | E160: 1
A161: SYRIA - POUND | B161: 46.45 | C161: SYRIA | D161: Syria | E161: 46.45
A162: TAIWAN - DOLLAR | B162: 30.5 | C162: TAIWAN | D162: Taiwan | E162: 30.5
A163: TAJIKISTAN-SOMONI | B163: 4.4 | C163: TAJIKISTAN | D163: Tajikistan | E163: 4.4
A164: TANZANIA - SHILLING | B164: 1483 | C164: TANZANIA | D164: Tanzania | E164: 1483
A165: THAILAND - BAHT | B165: 30.18 | C165: THAILAND | D165: Thailand | E165: 30.18
A166: TOGO - CFA FRANC | B166: 503.3 | C166: TOGO | D166: Togo | E166: 503.3
A167: TONGA - PA'ANGA | B167: 1.77 | C167: TONGA | D167: Tonga | E167: 1.77
A168: TRINIDAD & TOBAGO - DOLLAR | B168: 6.32 | C168: TRINIDAD & TOBAGO | D168: Trinidad & Tobago | E168: 6.32
A169: TUNISIA - DINAR | B169: 1.45 | C169: TUNISIA | D169: Tunisia | E169: 1.45
A170: TURKEY-LIRA | B170: 1.51 | C170: TURKEY | D170: Turkey | E170: 1.51
A171: TURKMENISTAN - MANAT | B171: 2.84 | C171: TURKMENISTAN | D171: Turkmenistan | E171: 2.84
A172: UGANDA - SHILLING | B172: 2313 | C172: UGANDA | D172: Uganda | E172: 2313
A173: UKRAINE - HRYVNIA | B173: 7.89 | C173: UKRAINE | D173: Ukraine | E173: 7.89
A174: UNITED ARAB EMIRATES - DIRHAM | B174: 3.67 | C174: UNITED ARAB EMIRATES | D174: United Arab Emirates | E174: 3.67
A175: UNITED KINGDOM - POUND STERLING | B175: 0.64 | C175: UNITED KINGDOM | D175: United Kingdom | E175: 0.64
A176: URUGUAY - NEW PESO | B176: 19.9 | C176: URUGUAY | D176: Uruguay | E176: 19.9
A177: UZBEKISTAN - SOM | B177: 1645 | C177: UZBEKISTAN | D177: Uzbekistan | E177: 1645
A178: VANUATU - VATU | B178: 92.59 | C178: VANUATU | D178: Vanuatu | E178: 92.59
A179: VENZEULA - NEW BOLIVAR | B179: 2.6 | C179: VENeZueLA | D179: Venezuela | E179: 2.6
A180: VIETNAM - DONG | B180: 19500 | C180: VIETNAM | D180: Vietnam | E180: 19500
A181: WESTERN SAMOA - TALA | B181: 2.23 | C181: WESTERN SAMOA | D181: Western Samoa | E181: 2.23
A182: YEMEN - RIAL | B182: 214 | C182: YEMEN | D182: Yemen | E182: 214
A183: YUGOSLAVIA - DINAR | B183: 0.77 | C183: YUGOSLAVIA | D183: Yugoslavia | E183: 0.77
A184: ZAMBIA-KWACHA | B184: 4925 | C184: ZAMBIA | D184: Zambia | E184: 4925
A185: ZIMBABWE - DOLLAR | B185: 1 | C185: ZIMBABWE | D185: Zimbabwe | E185: 1
E186: 0
E187: 0
D188: =(TRIM(PROPER(C188))) ->  | E188: =B188 -> 0
D189: =(TRIM(PROPER(C189))) ->  | E189: =B189 -> 0

Sheet Country information (hidden)
A1: CurrencyCode | B1: Country | C1: Currency | D1: Symbol | E1: Exchange Rate | F1: Date updated | G1: IT Salary in Local Currency | H1: In Dollar terms | I1: % of US Wage | J1: Default Burden Rate | K1: Hardware Multiplier | L1: cost/kW | M1: Power Multiplier | N1: Localized name | O1: http://fx.sauder.ubc.ca/currency_table.html | U1: English | V1: Brazilian | W1: Simplified Chinese | X1: Traditional Chinese | Y1: Dutch | Z1: French | AA1: German | AB1: Italian | AC1: Japanese | AD1: Korean | AE1: Polish | AF1: Portuguese | AG1: Russian | AH1: Spanish | AI1: Swedish | AM1: English | AN1: Brazilian | AO1: Simplified Chinese | AP1: Traditional Chinese | AQ1: Dutch | AR1: French | AS1: German | AT1: Italian | AU1: Japanese | AV1: Korean | AW1: Polish | AX1: Portuguese | AY1: Russian | AZ1: Spanish | BA1: Swedish
A2: =C2&D2 -> afghani؋ | B2: Afghanistan | C2: =OFFSET(AM2,,LanguageOffset) -> afghani | D2: ؋ | E2: =VLOOKUP(B2,ImportInfo!$D$1:$E$188,2,FALSE) -> 44.5 | F2: 2011-02-18T09:44:38 | G2: 900000 | H2: =G2/E2 -> 20224.7191 | I2: =H2/$G$233 -> 0.3582576497 | J2: 0 | K2: 1 | L2: 0.15 | M2: 1.5 | N2: =OFFSET(U2,,LanguageOffset) -> Afghanistan | O2: Afghanistan | U2: Afghanistan | V2: Afeganistão | W2: 阿富汗 | X2: 阿富汗 | Y2: Afghanistan | Z2: Afghanistan | AA2: Afghanistan | AB2: Afghanistan | AC2: アフガニスタン | AD2: 아프가니스탄 | AE2: Afganistan | AF2: Afeganistão | AG2: Афганистан | AH2: Afganistán | AI2: Afghanistan | AM2: afghani | AN2: afghani | AO2: 阿富汗尼 | AP2: 阿富汗尼 | AQ2: afghani | AR2: afghani | AS2: Afghani | AT2: Afghani | AU2: アフガニー | AV2: 아프가니 | AW2: afgani | AX2: afghani | AY2: афгани | AZ2: afgani | BA2: afghani
A3: =C3&D3 -> lekLek | B3: Albania | C3: lek | D3: Lek | E3: =VLOOKUP(B3,ImportInfo!$D$1:$E$188,2,FALSE) -> 106.36 | F3: 2011-02-18T09:44:38 | G3: 6027975 | H3: =G3/E3 -> 56675.20684 | I3: =H3/$G$233 -> 1.003936139 | J3: 0 | K3: 1 | L3: 0.15 | M3: 1.5 | N3: Albania | O3: Albania | U3: Albania | V3: Albânia | W3: 阿尔巴尼亚 | X3: 阿爾巴尼亞 | Y3: Albanië | Z3: Albanie | AA3: Albanien | AB3: Albania | AC3: アルバニア | AD3: 알바니아 | AE3: Albania | AF3: Albânia | AG3: Албания | AH3: Albania | AI3: Albanien | AM3: lek | AN3: lek | AO3: 列克 | AP3: 列克 | AQ3: lek | AR3: lek | AS3: Lek | AT3: Lek | AU3: レク | AV3: 레크 | AW3: lek | AX3: lek | AY3: лек | AZ3: lek | BA3: lek
A4: dinarDA | B4: Algeria | C4: dinar | D4: DA | E4: =VLOOKUP(B4,ImportInfo!$D$1:$E$188,2,FALSE) -> 73.15 | F4: 2011-02-18T09:44:38 | G4: 2710833 | H4: 37058.55092 | I4: 0.6564496293 | J4: 0 | K4: 1 | L4: 0.15 | M4: 1.5 | N4: Algeria | O4: Algeria | U4: Algeria | V4: Argélia | W4: 阿尔及利亚 | X4: 阿爾及利亞 | Y4: Algerije | Z4: Algérie | AA4: Algerien | AB4: Algeria | AC4: アルジェリア | AD4: 알제리 | AE4: Algieria | AF4: Argélia | AG4: Алжир | AH4: Argelia | AI4: Algeriet | AM4: dinar | AN4: dinar | AO4: 第纳尔 | AP4: 第納爾 | AQ4: dinar | AR4: dinar | AS4: Dinar | AT4: Dinaro | AU4: ディナール | AV4: 디나르 | AW4: dinar | AX4: dinar | AY4: динар | AZ4: dinar | BA4: dinar
A5: dollarUS$ | B5: American Samoa | C5: dollar | D5: =D233 -> US$ | E5: 1 | F5: 2009-11-11T14:08:34 | G5: 46041.1985 | H5: 46041.1985 | I5: 0.8155669052 | J5: 0.2 | K5: 1 | L5: 0.15 | M5: 1.5 | N5: American Samoa | O5: American Samoa | U5: American Samoa | V5: Samoa Americana | W5: 美属萨摩亚 | X5: 美屬薩摩亞 | Y5: Amerikaans-Samoa | Z5: Samoa américaines | AA5: Amerikanisch-Samoa | AB5: Samoa Americane | AC5: 米領サモア | AD5: 미국령 사모아 | AE5: Samoa Amerykańskie | AF5: Samoa Americana | AG5: Американское Самоа | AH5: Samoa Americana | AI5: Amerikanska Samoa | AM5: =AM233 -> dollar | AN5: dólar | AO5: 津巴布韦元 | AP5: 美元 | AQ5: =AQ233 -> dollar | AR5: dollar | AS5: Dollar | AT5: Dollaro | AU5: ドル | AV5: 달러 | AW5: dolar | AX5: dólar | AY5: доллар | AZ5: dólar | BA5: dollar
A6: euro€ | B6: Andorra | C6: euro | D6: =D14 -> € | E6: 0.77 | F6: 2011-02-18T09:44:43 | G6: 25244 | H6: 32784.41558 | I6: 0.5807382351 | J6: 0.6 | K6: 1 | L6: 0.15 | M6: 1.5 | N6: Andorra | O6: Andorra | U6: Andorra | V6: Andorra | W6: 安道尔 | X6: 安道爾 | Y6: Andorra | Z6: Andorre | AA6: Andorra | AB6: Andorra | AC6: アンドラ | AD6: 안도라 | AE6: Andora | AF6: Andorra | AG6: Андорра | AH6: Andorra | AI6: Andorra | AM6: =AM14 -> euro | AN6: euro | AO6: 欧元 | AP6: 歐元 | AQ6: =AQ14 -> euro | AR6: euro | AS6: Euro | AT6: Euro | AU6: ユーロ | AV6: 유로 | AW6: euro | AX6: euro | AY6: евро | AZ6: euro | BA6: euro
A7: kwanzaKz | B7: Angola | C7: kwanza | D7: Kz | E7: =VLOOKUP(B7,ImportInfo!$D$1:$E$188,2,FALSE) -> 90 | F7: 2011-02-18T09:44:38 | G7: 1089193 | H7: 12102.14444 | I7: 0.2143755769 | J7: 0 | K7: 1 | L7: 0.15 | M7: 1.5 | N7: Angola | O7: Angola | U7: Angola | V7: Angola | W7: 安哥拉 | X7: 安哥拉 | Y7: Angola | Z7: Angola | AA7: Angola | AB7: Angola | AC7: アンゴラ | AD7: 앙골라 | AE7: Angola | AF7: Angola | AG7: Ангола | AH7: Angola | AI7: Angola | AM7: kwanza | AN7: kwanza | AO7: 宽扎 | AP7: 寬扎 | AQ7: kwanza | AR7: kwanza | AS7: Kwanza | AT7: Kwanza | AU7: クワンザ | AV7: 콴자 | AW7: kwanza | AX7: kwanza | AY7: кванза | AZ7: kwanza | BA7: kwanza
A8: dollarEC$ | B8: Anguilla | C8: dollar | D8: EC$ | E8: 2.7 | F8: 2011-02-18T09:44:43 | G8: 122930 | H8: 45529.62963 | I8: 0.8065050507 | J8: 0.2 | K8: 1 | L8: 0.15 | M8: 1.5 | N8: Anguilla | O8: Anguilla | U8: Anguilla | V8: Anguila | W8: 安圭拉 | X8: 安圭拉 | Y8: Anguilla | Z8: Anguilla | AA8: Anguilla | AB8: Anguilla | AC8: アンギラ | AD8: 앵귈라 | AE8: Anguilla | AF8: Anguila | AG8: Ангилья | AH8: Anguila | AI8: Anguilla | AM8: dollar | AN8: dólar | AO8: 津巴布韦元 | AP8: 美元 | AQ8: dollar | AR8: dollar | AS8: Dollar | AT8: Dollaro | AU8: ドル | AV8: 달러 | AW8: dolar | AX8: dólar | AY8: доллар | AZ8: dólar | BA8: dollar
A9: dollarEC$ | B9: Antigua and Barbuda | C9: dollar | D9: EC$ | E9: 2.7 | F9: 2011-02-18T09:44:43 | G9: 122930 | H9: 45529.62963 | I9: 0.8065050507 | J9: 0.2 | K9: 1 | L9: 0.15 | M9: 1.5 | N9: Antigua and Barbuda | O9: Antigua and Barbuda | U9: Antigua and Barbuda | V9: Antígua e Barbuda | W9: 安提瓜和巴布达 | X9: 安地卡及巴布達 | Y9: Antigua en Barbuda | Z9: Antigua-et-Barbuda | AA9: Antigua und Barbuda | AB9: Antigua e Barbuda | AC9: アンティグア・バーブーダ | AD9: 앤티가 바부다 | AE9: Antigua i Barbuda | AF9: Antígua e Barbuda | AG9: Антигуа и Барбуда | AH9: Antigua y Barbuda | AI9: Antigua och Barbuda | AM9: dollar | AN9: dólar | AO9: 津巴布韦元 | AP9: 美元 | AQ9: dollar | AR9: dollar | AS9: Dollar | AT9: Dollaro | AU9: ドル | AV9: 달러 | AW9: dolar | AX9: dólar | AY9: доллар | AZ9: dólar | BA9: dollar
A10: peso$AR | B10: Argentina | C10: peso | D10: $AR | E10: =VLOOKUP(B10,ImportInfo!$D$1:$E$188,2,FALSE) -> 3.98 | F10: 2011-02-18T09:44:38 | G10: 80799 | H10: 20301.25628 | I10: 0.3596134179 | J10: 0.5 | K10: 1 | L10: 0.15 | M10: 1.5 | N10: Argentina | O10: Argentina | U10: Argentina | V10: Argentina | W10: 阿根廷 | X10: 阿根廷 | Y10: Argentinië | Z10: Argentine | AA10: Argentinien | AB10: Argentina | AC10: アルゼンチン | AD10: 아르헨티나 | AE10: Argentyna | AF10: Argentina | AG10: Аргентина | AH10: Argentina | AI10: Argentina | AM10: peso | AN10: peso | AO10: 比索 | AP10: 披索 | AQ10: peso | AR10: peso | AS10: Peso | AT10: Peso | AU10: ペソ | AV10: 페소 | AW10: peso | AX10: peso | AY10: песо | AZ10: peso | BA10: peso
A11: dramAMD | B11: Armenia | C11: dram | D11: AMD | E11: =VLOOKUP(B11,ImportInfo!$D$1:$E$188,2,FALSE) -> 360 | F11: 2011-02-18T09:44:38 | G11: 18608589 | H11: 51690.525 | I11: 0.91563823 | J11: 0.2 | K11: 1 | L11: 0.15 | M11: 1.5 | N11: Armenia | O11: Armenia | U11: Armenia | V11: Armênia | W11: 亚美尼亚 | X11: 亞美尼亞 | Y11: Armenië | Z11: Arménie | AA11: Armenien | AB11: Armenia | AC11: アルメニア | AD11: 아르메니아 | AE11: Armenia | AF11: Arménia | AG11: Армения | AH11: Armenia | AI11: Armenien | AM11: dram | AN11: dram | AO11: 德拉姆 | AP11: 銖連 | AQ11: dram | AR11: dram | AS11: Dram | AT11: Dram | AU11: ドラム | AV11: 드람 | AW11: dram | AX11: dram | AY11: драм | AZ11: dram | BA11: dram
A12: guilderAfl. | B12: Aruba | C12: guilder | D12: Afl. | E12: 1.79 | F12: 2007-11-27 | G12: 82407.72955 | H12: 46037.83774 | I12: 0.8155073732 | J12: 0.1 | K12: 1 | L12: 0.15 | M12: 1.5 | N12: Aruba | O12: Aruba | U12: Aruba | V12: Aruba | W12: 阿鲁巴 | X12: 阿路巴 | Y12: Aruba | Z12: Aruba | AA12: Aruba | AB12: Aruba | AC12: アルバ | AD12: 아루바 | AE12: Aruba | AF12: Aruba | AG12: Аруба | AH12: Aruba | AI12: Aruba | AM12: guilder | AN12: florim | AO12: 盾 | AP12: 盾 | AQ12: guilder | AR12: florin | AS12: Gulden | AT12: Fiorino | AU12: ギルダー | AV12: 길더 | AW12: gulden | AX12: florim | AY12: гульден | AZ12: florín | BA12: gulden
A13: dollarA$ | B13: Australia | C13: dollar | D13: A$ | E13: =VLOOKUP(B13,ImportInfo!$D$1:$E$188,2,FALSE) -> 1.04 | F13: 2011-02-18T09:44:38 | G13: 57630 | H13: 55413.46154 | I13: 0.9815857711 | J13: 0.6 | K13: 1 | L13: 0.098 | M13: 0.98 | N13: Australia | O13: Australia | U13: Australia | V13: Austrália | W13: 澳大利亚 | X13: 澳大利亞 | Y13: Australië | Z13: Australie | AA13: Australien | AB13: Australia | AC13: オーストラリア | AD13: 오스트레일리아 | AE13: Australia | AF13: Austrália | AG13: Австралия | AH13: Australia | AI13: Australien | AM13: dollar | AN13: dólar | AO13: 津巴布韦元 | AP13: 澳幣 | AQ13: dollar | AR13: dollar | AS13: Dollar | AT13: Dollaro | AU13: ドル | AV13: 달러 | AW13: dolar | AX13: dólar | AY13: доллар | AZ13: dólar | BA13: dollar
A14: euro€ | B14: Austria | C14: euro | D14: € | E14: =VLOOKUP(B14,ImportInfo!$D$1:$E$188,2,FALSE) -> 0.77 | F14: 2011-02-18T09:44:38 | G14: 26418 | H14: 34309.09091 | I14: 0.6077461058 | J14: 0.75 | K14: 1 | L14: 0.23 | M14: 2.3 | N14: Austria | O14: Austria | U14: Austria | V14: Áustria | W14: 奥地利 | X14: 奧地利 | Y14: Oostenrijk | Z14: Autriche | AA14: Österreich | AB14: Austria | AC14: オーストリア | AD14: 오스트리아 | AE14: Austria | AF14: Áustria | AG14: Австрия | AH14: Austria | AI14: Österrike | AM14: euro | AN14: euro | AO14: 欧元 | AP14: 歐元 | AQ14: euro | AR14: euro | AS14: Euro | AT14: Euro | AU14: ユーロ | AV14: 유로 | AW14: euro | AX14: euro | AY14: евро | AZ14: euro | BA14: euro
A15: manatAZN | B15: Azerbaijan | C15: manat | D15: AZN | E15: =VLOOKUP(B15,ImportInfo!$D$1:$E$188,2,FALSE) -> 0.82 | F15: 2011-02-18T09:44:38 | G15: 3020.02496 | H15: 3682.957268 | I15: 0.0652393543 | J15: 0 | K15: 1 | L15: 0.15 | M15: 1.5 | N15: Azerbaijan | O15: Azerbaijan | U15: Azerbaijan | V15: Azerbaijão | W15: 阿塞拜疆 | X15: 亞塞拜然 | Y15: Azerbeidzjan | Z15: Azerbaïdjan | AA15: Aserbaidschan | AB15: Azerbaigian | AC15: アゼルバイジャン | AD15: 아제르바이잔 | AE15: Azerbejdżan | AF15: Azerbaijão | AG15: Азербайджан | AH15: Azerbaiyán | AI15: Azerbajdzjan | AM15: manat | AN15: manat | AO15: 马纳特 | AP15: 蒙納特 | AQ15: manat | AR15: manat | AS15: Manat | AT15: Manat | AU15: マナト | AV15: 마나트 | AW15: manat | AX15: manat | AY15: манат | AZ15: manat | BA15: manat
A16: dollarB$ | B16: Bahamas | C16: dollar | D16: B$ | E16: =VLOOKUP(B16,ImportInfo!$D$1:$E$188,2,FALSE) -> 1 | F16: 2011-02-18T09:44:38 | G16: 66543 | H16: 66543 | I16: 1.178732751 | J16: 0.2 | K16: 1 | L16: 0.15 | M16: 1.5 | N16: Bahamas | O16: Bahamas | U16: Bahamas | V16: Bahamas | W16: 巴哈马 | X16: 巴哈馬 | Y16: Bahama's | Z16: Bahamas | AA16: Bahamas | AB16: Bahamas | AC16: バハマ | AD16: 바하마 | AE16: Bahamy | AF16: Baamas | AG16: Багамы | AH16: Bahamas | AI16: Bahamas | AM16: dollar | AN16: dólar | AO16: 津巴布韦元 | AP16: 巴哈馬幣 | AQ16: dollar | AR16: dollar | AS16: Dollar | AT16: Dollaro | AU16: ドル | AV16: 달러 | AW16: dolar | AX16: dólar | AY16: доллар | AZ16: dólar | BA16: dollar
A17: dinarBD | B17: Bahrain | C17: dinar | D17: BD | E17: =VLOOKUP(B17,ImportInfo!$D$1:$E$188,2,FALSE) -> 0.38 | F17: 2011-02-18T09:44:38 | G17: 28155 | H17: 74092.10526 | I17: 1.312456473 | J17: 0.2 | K17: 1 | L17: 0.15 | M17: 1.5 | N17: Bahrain | O17: Bahrain | U17: Bahrain | V17: Barein | W17: 巴林 | X17: 巴林 | Y17: Bahrein | Z17: Bahreïn | AA17: Bahrain | AB17: Bahrein | AC17: バーレーン | AD17: 바레인 | AE17: Bahrajn | AF17: Barém | AG17: Бахрейн | AH17: Bahréin | AI17: Bahrain | AM17: dinar | AN17: dinar | AO17: 第纳尔 | AP17: 第納爾 | AQ17: dinar | AR17: dinar | AS17: Dinar | AT17: Dinaro | AU17: ディナール | AV17: 디나르 | AW17: dinar | AX17: dinar | AY17: динар | AZ17: dinar | BA17: dinar
A18: takaTk | B18: Bangladesh | C18: taka | D18: Tk | E18: =VLOOKUP(B18,ImportInfo!$D$1:$E$188,2,FALSE) -> 69 | F18: 2011-02-18T09:44:38 | G18: 1784785 | H18: 25866.44928 | I18: 0.4581944144 | J18: 0 | K18: 1 | L18: 0.15 | M18: 1.5 | N18: Bangladesh | O18: Bangladesh | U18: Bangladesh | V18: Bangladesh | W18: 孟加拉国 | X18: 孟加拉 | Y18: Bangladesh | Z18: Bangladesh | AA18: Bangladesh | AB18: Bangladesh | AC18: バングラデシュ | AD18: 방글라데시 | AE18: Bangladesz | AF18: Bangladeche | AG18: Бангладеш | AH18: Bangladesh | AI18: Bangladesh | AM18: taka | AN18: taca | AO18: 塔卡 | AP18: 塔卡 | AQ18: taka | AR18: taka | AS18: Taka | AT18: Taka | AU18: タカ | AV18: 타카 | AW18: taka | AX18: taka | AY18: така | AZ18: taka | BA18: taka
A19: dollarBds$ | B19: Barbados | C19: dollar | D19: Bds$ | E19: =VLOOKUP(B19,ImportInfo!$D$1:$E$188,2,FALSE) -> 2.02 | F19: 2011-02-18T09:44:38 | G19: 97143 | H19: 48090.59406 | I19: 0.8518695917 | J19: 0 | K19: 1 | L19: 0.15 | M19: 1.5 | N19: Barbados | O19: Barbados | U19: Barbados | V19: Barbados | W19: 巴巴多斯 | X19: 巴貝多 | Y19: Barbados | Z19: Barbade | AA19: Barbados | AB19: Barbados | AC19: バルバドス | AD19: 바베이도스 | AE19: Barbados | AF19: Barbados | AG19: Барбадос | AH19: Barbados | AI19: Barbados | AM19: dollar | AN19: dólar | AO19: 津巴布韦元 | AP19: 巴貝多幣 | AQ19: dollar | AR19: dollar | AS19: Dollar | AT19: Dollaro | AU19: ドル | AV19: 달러 | AW19: dolar | AX19: dólar | AY19: доллар | AZ19: dólar | BA19: dollar
A20: rubleBYR | B20: Belarus | C20: ruble | D20: BYR | E20: =VLOOKUP(B20,ImportInfo!$D$1:$E$188,2,FALSE) -> 3010 | F20: 2011-02-18T09:44:38 | G20: 65585560 | H20: 21789.22259 | I20: 0.3859710306 | J20: 0 | K20: 1 | L20: 0.15 | M20: 1.5 | N20: Belarus | O20: Belarus | U20: Belarus | V20: Bielo-Rússia | W20: 白俄罗斯 | X20: 白俄羅斯 | Y20: Wit-Rusland | Z20: Biélorussie | AA20: Weißrussland | AB20: Belarus | AC20: ベラルーシ | AD20: 벨로루시 | AE20: Białoruś | AF20: Bielorrússia | AG20: Беларусь | AH20: Belarús | AI20: Vitryssland | AM20: ruble | AN20: rublo | AO20: 卢布 | AP20: 盧布 | AQ20: ruble | AR20: rouble | AS20: Rubel | AT20: Rublo | AU20: ルーブル | AV20: 루블 | AW20: rubel | AX20: rublo | AY20: рубль | AZ20: rublo | BA20: rubel
A21: euro€ | B21: Belgium | C21: euro | D21: € | E21: =VLOOKUP(B21,ImportInfo!$D$1:$E$188,2,FALSE) -> 0.77 | F21: 2011-02-18T09:44:38 | G21: 27088 | H21: 35179.22078 | I21: 0.6231594562 | J21: 0.75 | K21: 1 | L21: 0.22 | M21: 2.2 | N21: Belgium | O21: Belgium | U21: Belgium | V21: Bélgica | W21: 比利时 | X21: 比利時 | Y21: België | Z21: Belgique | AA21: Belgien | AB21: Belgio | AC21: ベルギー | AD21: 벨기에 | AE21: Belgia | AF21: Bélgica | AG21: Бельгия | AH21: Bélgica | AI21: Belgien | AM21: euro | AN21: euro | AO21: 欧元 | AP21: 歐元 | AQ21: euro | AR21: euro | AS21: Euro | AT21: Euro | AU21: ユーロ | AV21: 유로 | AW21: euro | AX21: euro | AY21: евро | AZ21: euro | BA21: euro
A22: dollarBZ$ | B22: Belize | C22: dollar | D22: BZ$ | E22: =VLOOKUP(B22,ImportInfo!$D$1:$E$188,2,FALSE) -> 2 | F22: 2011-02-18T09:44:39 | G22: 75881 | H22: 37940.5 | I22: 0.6720723434 | J22: 0.2 | K22: 1 | L22: 0.15 | M22: 1.5 | N22: Belize | O22: Belize | U22: Belize | V22: Belize | W22: 伯利兹 | X22: 貝里斯 | Y22: Belize | Z22: Bélize | AA22: Belize | AB22: Belize | AC22: ベリーズ | AD22: 벨리즈 | AE22: Belize | AF22: Belize | AG22: Белиз | AH22: Belice | AI22: Belize | AM22: dollar | AN22: dólar | AO22: 津巴布韦元 | AP22: 貝里斯幣 | AQ22: dollar | AR22: dollar | AS22: Dollar | AT22: Dollaro | AU22: ドル | AV22: 달러 | AW22: dolar | AX22: dólar | AY22: доллар | AZ22: dólar | BA22: dollar
A23: francCFAF | B23: Benin | C23: franc | D23: CFAF | E23: =VLOOKUP(B23,ImportInfo!$D$1:$E$188,2,FALSE) -> 503.3 | F23: 2011-02-18T09:44:39 | G23: 26104258 | H23: 51866.19909 | I23: 0.9187500945 | J23: 0.2 | K23: 1 | L23: 0.15 | M23: 1.5 | N23: Benin | O23: Benin | U23: Benin | V23: Benin | W23: 贝宁 | X23: 貝南 | Y23: Benin | Z23: Bénin | AA23: Benin | AB23: Benin | AC23: ベナン | AD23: 베냉 | AE23: Benin | AF23: Benim | AG23: Бенин | AH23: Benín | AI23: Benin | AM23: franc | AN23: franco | AO23: 法郎 | AP23: 法郎 | AQ23: franc | AR23: franc CFP | AS23: Franc | AT23: Franco | AU23: フラン | AV23: 프랑 | AW23: frank | AX23: franco | AY23: франк | AZ23: franco | BA23: franc
A24: dollarBd$ | B24: Bermuda | C24: dollar | D24: Bd$ | E24: =VLOOKUP(B24,ImportInfo!$D$1:$E$188,2,FALSE) -> 1 | F24: 2011-02-18T09:44:39 | G24: 92408 | H24: 92408 | I24: 1.636901493 | J24: 0.2 | K24: 1 | L24: 0.15 | M24: 1.5 | N24: Bermuda | O24: Bermuda | U24: Bermuda | V24: Bermuda | W24: 百慕大 | X24: 百慕達 | Y24: Bermuda | Z24: Bermudes | AA24: Bermuda | AB24: Bermuda | AC24: バミューダ諸島 | AD24: 버뮤다 | AE24: Bermudy | AF24: Bermudas | AG24: Бермуды | AH24: Bermudas | AI24: Bermuda | AM24: dollar | AN24: dólar | AO24: 津巴布韦元 | AP24: 百慕達幣 | AQ24: dollar | AR24: dollar | AS24: Dollar | AT24: Dollaro | AU24: ドル | AV24: 달러 | AW24: dolar | AX24: dólar | AY24: доллар | AZ24: dólar | BA24: dollar
A25: ngultrumNu | B25: Bhutan | C25: ngultrum | D25: Nu | E25: 39.78 | F25: 2007-11-27 | G25: 1438810 | H25: 36169.18049 | I25: 0.6406954545 | J25: 0 | K25: 1 | L25: 0.15 | M25: 1.5 | N25: Bhutan | O25: Bhutan | U25: Bhutan | V25: Butão | W25: 不丹 | X25: 不丹 | Y25: Bhutan | Z25: Bhoutan | AA25: Bhutan | AB25: Bhutan | AC25: ブータン | AD25: 부탄 | AE25: Bhutan | AF25: Butão | AG25: Бутан | AH25: Bután | AI25: Bhutan | AM25: ngultrum | AN25: ngultrum | AO25: 努尔特鲁姆 | AP25: 努爾特魯姆 | AQ25: ngultrum | AR25: ngultrum | AS25: Ngultrum | AT25: Ngultrum | AU25: ニュルタム | AV25: 앵귈트럼 | AW25: ngultrum | AX25: ngultrum | AY25: нгултрум | AZ25: ngultrum | BA25: ngultrum
A26: boliviano$b | B26: Bolivia | C26: boliviano | D26: $b | E26: =VLOOKUP(B26,ImportInfo!$D$1:$E$188,2,FALSE) -> 6.96 | F26: 2011-02-18T09:44:39 | G26: 251016 | H26: 36065.51724 | I26: 0.6388591792 | J26: 0 | K26: 1 | L26: 0.15 | M26: 1.5 | N26: Bolivia | O26: Bolivia | U26: Bolivia | V26: Bolívia | W26: 玻利维亚 | X26: 玻利維亞 | Y26: Bolivia | Z26: Bolivie | AA26: Bolivien | AB26: Bolivia | AC26: ボリビア | AD26: 볼리비아 | AE26: Boliwia | AF26: Bolívia | AG26: Боливия | AH26: Bolivia | AI26: Bolivia | AM26: boliviano | AN26: boliviano | AO26: 玻利维亚诺 | AP26: 玻利維亞幣 | AQ26: boliviano | AR26: boliviano | AS26: Boliviano | AT26: Boliviano | AU26: ボリビアーノ | AV26: 볼리비아노 | AW26: boliwiano | AX26: boliviano | AY26: боливиано | AZ26: boliviano | BA26: boliviano
A27: convertible markaKM | B27: Bosnia-Herzegovina | C27: convertible marka | D27: KM | E27: 1.31612 | F27: 2007-11-27 | G27: 70000 | H27: 53186.63952 | I27: 0.9421401788 | J27: 0 | K27: 1 | L27: 0.15 | M27: 1.5 | N27: Bosnia-Herzegovina | O27: Bosnia-Herzegovina | U27: Bosnia-Herzegovina | V27: Bósnia e Herzegovina | W27: 波斯尼亚和黑塞哥维那 | X27: 波士尼亞赫塞哥維納 | Y27: Bosnië en Herzegovina | Z27: Bosnie-Herzégovine | AA27: Bosnien und Herzegovina | AB27: Bosnia ed Erzegovina | AC27: ボスニア・ヘルツェゴビナ | AD27: 보스니아 헤르체고비나 | AE27: Bośnia-Hercegowina | AF27: Bósnia-Herzegovina | AG27: Босния и Герцеговина | AH27: Bosnia-Herzegovina | AI27: Bosnien och Herzegovina | AM27: convertible marka | AN27: marco conversível | AO27: 可兑换马卡 | AP27: 可兌換的馬克 | AQ27: convertible marka | AR27: mark convertible | AS27: Mark | AT27: Marco convertibile | AU27: コンヴェルティビルナ マルカ | AV27: 가변 마르카 | AW27: marka wymienialna | AX27: marco conversível | AY27: конвертируемая марка | AZ27: marka convertible | BA27: konvertibla mark
A28: pulaP | B28: Botswana | C28: pula | D28: P | E28: =VLOOKUP(B28,ImportInfo!$D$1:$E$188,2,FALSE) -> 6.75 | F28: 2011-02-18T09:44:39 | G28: 370161 | H28: 54838.66667 | I28: 0.9714039407 | J28: 0 | K28: 1 | L28: 0.15 | M28: 1.5 | N28: Botswana | O28: Botswana | U28: Botswana | V28: Botsuana | W28: 博茨瓦纳 | X28: 波札那 | Y28: Botswana | Z28: Botswana | AA28: Botswana | AB28: Botswana | AC28: ボツワナ | AD28: 보츠와나 | AE28: Botswana | AF28: Botsuana | AG28: Ботсвана | AH28: Botsuana | AI28: Botswana | AM28: pula | AN28: pula | AO28: 普拉 | AP28: 普拉 | AQ28: pula | AR28: pula | AS28: Pula | AT28: Pula | AU28: プラ | AV28: 퓰라 | AW28: pula | AX28: pula | AY28: пула | AZ28: pula | BA28: pula
A29: realR$ | B29: Brazil | C29: real | D29: R$ | E29: =VLOOKUP(B29,ImportInfo!$D$1:$E$188,2,FALSE) -> 1.72 | F29: 2011-02-18T09:44:39 | G29: 97965 | H29: 56956.39535 | I29: 1.00891707 | J29: 0 | K29: 1 | L29: 0.171 | M29: 1.71 | N29: Brazil | O29: Brazil | U29: Brazil | V29: Brasil | W29: 巴西 | X29: 巴西 | Y29: Brazilië | Z29: Brésil | AA29: Brasilien | AB29: Brasile | AC29: ブラジル | AD29: 브라질 | AE29: Brazylia | AF29: Brasil | AG29: Бразилия | AH29: Brasil | AI29: Brasilien | AM29: real | AN29: real | AO29: 雷亚尔 | AP29: 里爾 | AQ29: real | AR29: real | AS29: Real | AT29: Real | AU29: レアル | AV29: 레알 | AW29: real | AX29: real | AY29: реал | AZ29: real | BA29: real
A30: dollarUS$ | B30: British Indian Ocean Territory | C30: dollar | D30: =D$233 -> US$ | E30: 1 | F30: 2009-11-11T14:08:34 | G30: 60000 | H30: 60000 | I30: 1.062831028 | J30: 0.4 | K30: 1 | L30: 0.15 | M30: 1.5 | N30: British Indian Ocean Territory | O30: British Indian Ocean Territory | U30: British Indian Ocean Territory | V30: Território Britânico do Oceano Índico | W30: 不列颠印度洋属土 | X30: 英屬印度洋地區 | Y30: Brits Territorium in de Indische Oceaan | Z30: Territoires britanniques de l'Océan Indien | AA30: Britisches Territorium im Indischen Ozean | AB30: Territorio britannico dell'Oceano Indiano | AC30: 英領インド洋地域 | AD30: 영국령 인도양 식민지 | AE30: Brytyjskie Terytorium Oceanu Indyjskiego | AF30: Território Britânico do Oceano Índico | AG30: Британская территория в Индийском океане | AH30: Territorio Británico del Océano Índico | AI30: Brittiska territoriet i Indiska oceanen | AM30: =AM$233 -> dollar | AN30: dólar | AO30: 津巴布韦元 | AP30: 美元 | AQ30: =AQ$233 -> dollar | AR30: dollar | AS30: Dollar | AT30: Dollaro | AU30: ドル | AV30: 달러 | AW30: dolar | AX30: dólar | AY30: доллар | AZ30: dólar | BA30: dollar
A31: dollarUS$ | B31: British Virgin Islands | C31: dollar | D31: =D$233 -> US$ | E31: 1 | F31: 2009-11-11T14:08:34 | G31: 60000 | H31: 60000 | I31: 1.062831028 | J31: 0.4 | K31: 1 | L31: 0.15 | M31: 1.5 | N31: British Virgin Islands | O31: British Virgin Islands | U31: British Virgin Islands | V31: Ilhas Virgens Britânicas | W31: 英属维尔京群岛 | X31: 英屬維爾京群島 | Y31: Britse Maagdeneilanden | Z31: Vierges britanniques (îles) | AA31: Britische Jungferninseln | AB31: Isole Vergini britanniche | AC31: 英領バージン諸島 | AD31: 영국령 버진 아일랜드 | AE31: Brytyjskie Wyspy Dziewicze | AF31: Ilhas Virgens Britânicas | AG31: Британские Виргинские острова | AH31: Islas Vírgenes Británicas | AI31: Brittiska Jungfruöarna | AM31: =AM$233 -> dollar | AN31: dólar | AO31: 津巴布韦元 | AP31: 美元 | AQ31: =AQ$233 -> dollar | AR31: dollar | AS31: Dollar | AT31: Dollaro | AU31: ドル | AV31: 달러 | AW31: dolar | AX31: dólar | AY31: доллар | AZ31: dólar | BA31: dollar
A32: ringgitB$ | B32: Brunei | C32: ringgit | D32: B$ | E32: =VLOOKUP(B32,ImportInfo!$D$1:$E$188,2,FALSE) -> 1.32 | F32: 2011-02-18T09:44:39 | G32: 107062 | H32: 81107.57576 | I32: 1.436727468 | J32: 0.3 | K32: 1 | L32: 0.15 | M32: 1.5 | N32: Brunei | O32: Brunei | U32: Brunei | V32: Brunei | W32: 文莱 | X32: 汶萊 | Y32: Brunei | Z32: Brunei | AA32: Brunei | AB32: Brunei | AC32: ブルネイ | AD32: 브루나이 | AE32: Brunei | AF32: Brunei | AG32: Бруней | AH32: Brunéi | AI32: Brunei | AM32: ringgit | AN32: ringgit | AO32: 林吉特 | AP32: 汶萊幣 | AQ32: ringgit | AR32: ringgit | AS32: Ringgit | AT32: Ringgit | AU32: リンギ | AV32: 링기트 | AW32: ringgit | AX32: ringgit | AY32: ринггит | AZ32: ringgit | BA32: ringgit
A33: new levлв | B33: Bulgaria | C33: new lev | D33: лв | E33: =VLOOKUP(B33,ImportInfo!$D$1:$E$188,2,FALSE) -> 1.5 | F33: 2011-02-18T09:44:39 | G33: 77677 | H33: 51784.66667 | I33: 0.9173058414 | J33: 0.2 | K33: 1 | L33: 0.11 | M33: 1.1 | N33: Bulgaria | O33: Bulgaria | U33: Bulgaria | V33: Bulgária | W33: 保加利亚 | X33: 保加利亞 | Y33: Bulgarije | Z33: Bulgarie | AA33: Bulgarien | AB33: Bulgaria | AC33: ブルガリア | AD33: 불가리아 | AE33: Bułgaria | AF33: Bulgária | AG33: Болгария | AH33: Bulgaria | AI33: Bulgarien | AM33: new lev | AN33: novo lev | AO33: 新列弗 | AP33: 新列弗 | AQ33: new lev | AR33: nouveau lev | AS33: Neuer Lew | AT33: Lev (nuovo) | AU33: 新レフ | AV33: 뉴 레프 | AW33: nowa lewa | AX33: novo lev | AY33: новый лев | AZ33: nuevo lev | BA33: nya lev
A34: francCFAF | B34: Burkina Faso | C34: franc | D34: CFAF | E34: =VLOOKUP(B34,ImportInfo!$D$1:$E$188,2,FALSE) -> 503.3 | F34: 2011-02-18T09:44:39 | G34: 25491732 | H34: 50649.17942 | I34: 0.8971919901 | J34: 0 | K34: 1 | L34: 0.15 | M34: 1.5 | N34: Burkina Faso | O34: Burkina Faso | U34: Burkina Faso | V34: Burkina Fasso | W34: 布基纳法索 | X34: 布吉納法索 | Y34: Burkina Faso | Z34: Burkina Faso | AA34: Burkina Faso | AB34: Burkina Faso | AC34: ブルキナファソ | AD34: 부르키나파소 | AE34: Burkina Faso | AF34: Burquina Faso | AG34: Буркина-Фасо | AH34: Burkina Faso | AI34: Burkina Faso | AM34: franc | AN34: franco | AO34: 法郎 | AP34: 法郎 | AQ34: franc | AR34: franc CFP | AS34: Franc | AT34: Franco | AU34: フラン | AV34: 프랑 | AW34: frank | AX34: franco | AY34: франк | AZ34: franco | BA34: franc
A35: francFBu | B35: Burundi | C35: franc | D35: FBu | E35: =VLOOKUP(B35,ImportInfo!$D$1:$E$188,2,FALSE) -> 1243 | F35: 2011-02-18T09:44:39 | G35: 28480746 | H35: 22912.90909 | I35: 0.4058758452 | J35: 0 | K35: 1 | L35: 0.15 | M35: 1.5 | N35: Burundi | O35: Burundi | U35: Burundi | V35: Burundi | W35: 布隆迪 | X35: 蒲隆地 | Y35: Burundi | Z35: Burundi | AA35: Burundi | AB35: Burundi | AC35: ブルンジ | AD35: 부룬디 | AE35: Burundi | AF35: Burundi | AG35: Бурунди | AH35: Burundi | AI35: Burundi | AM35: franc | AN35: franco | AO35: 法郎 | AP35: 法郎 | AQ35: franc | AR35: franc CFP | AS35: Franc | AT35: Franco | AU35: フラン | AV35: 프랑 | AW35: frank | AX35: franco | AY35: франк | AZ35: franco | BA35: franc
A36: new rielCR | B36: Cambodia | C36: new riel | D36: CR | E36: 3975.4 | F36: 2007-11-27 | G36: 117212494 | H36: 29484.45289 | I36: 0.5222831893 | J36: 0 | K36: 1 | L36: 0.15 | M36: 1.5 | N36: Cambodia | O36: Cambodia | U36: Cambodia | V36: Camboja | W36: 柬埔寨 | X36: 柬埔寨 | Y36: Cambodja | Z36: Cambodge | AA36: Kambodscha | AB36: Cambogia | AC36: カンボジア | AD36: 캄보디아 | AE36: Kambodża | AF36: Camboja | AG36: Камбоджа | AH36: Camboya | AI36: Kambodja | AM36: new riel | AN36: novo riel | AO36: 新瑞尔 | AP36: 新瑞爾 | AQ36: new riel | AR36: nouveau riel | AS36: Neuer Riel | AT36: Nuovo Riel | AU36: 新リエル | AV36: 뉴 리엘 | AW36: nowy riel | AX36: novo riel | AY36: новый риель | AZ36: nuevo riel | BA36: nya riel
A37: francCFAF | B37: Cameroon | C37: franc | D37: CFAF | E37: =VLOOKUP(B37,ImportInfo!$D$1:$E$188,2,FALSE) -> 503.3 | F37: 2011-02-18T09:44:39 | G37: 28036891 | H37: 55706.1216 | I37: 0.9867699077 | J37: 0 | K37: 1 | L37: 0.15 | M37: 1.5 | N37: Cameroon | O37: Cameroon | U37: Cameroon | V37: Camarões | W37: 喀麦隆 | X37: 喀麥隆 | Y37: Kameroen | Z37: Cameroun | AA37: Kamerun | AB37: Camerun | AC37: カメルーン | AD37: 카메룬 | AE37: Kamerun | AF37: Camarões | AG37: Камерун | AH37: Camerún | AI37: Kamerun | AM37: franc | AN37: franco | AO37: 法郎 | AP37: 法郎 | AQ37: franc | AR37: franc CFP | AS37: Franc | AT37: Franco | AU37: フラン | AV37: 프랑 | AW37: frank | AX37: franco | AY37: франк | AZ37: franco | BA37: franc
A38: dollarCan$ | B38: Canada | C38: dollar | D38: Can$ | E38: =VLOOKUP(B38,ImportInfo!$D$1:$E$188,2,FALSE) -> 1.02 | F38: 2011-02-18T09:44:39 | G38: 48990 | H38: 48029.41176 | I38: 0.8507858177 | J38: 0.75 | K38: 1 | L38: 0.078 | M38: 0.78 | N38: Canada | O38: Canada | U38: Canada | V38: Canadá | W38: 加拿大 | X38: 加拿大 | Y38: Canada | Z38: Canada | AA38: Kanada | AB38: Canada | AC38: カナダ | AD38: 캐나다 | AE38: Kanada | AF38: Canadá | AG38: Канада | AH38: Canadá | AI38: Kanada | AM38: dollar | AN38: dólar | AO38: 津巴布韦元 | AP38: 加幣 | AQ38: dollar | AR38: dollar | AS38: Dollar | AT38: Dollaro | AU38: ドル | AV38: 달러 | AW38: dolar | AX38: dólar | AY38: доллар | AZ38: dólar | BA38: dollar
A39: escudoC.V.Esc. | B39: Cape Verde Island | C39: escudo | D39: C.V.Esc. | E39: 74.31 | F39: 2007-11-27 | G39: 4454185 | H39: 59940.58673 | I39: 1.06177859 | J39: 0.2 | K39: 1 | L39: 0.15 | M39: 1.5 | N39: Cape Verde Island | O39: Cape Verde Island | U39: Cape Verde Island | V39: Ilha Cabo Verde | W39: 佛得角 | X39: 維德角群島 | Y39: Kaapverdië | Z39: Cap-Vert (îles du) | AA39: Kapverdische Inseln | AB39: Capo Verde | AC39: カーボベルデ諸島 | AD39: 카보베르데 제도 | AE39: Republika Zielonego Przylądka | AF39: Ilha de Cabo Verde | AG39: Республика Кабо-Верде | AH39: Islas Cabo Verde | AI39: Kap Verde | AM39: escudo | AN39: escudo | AO39: 埃斯库多 | AP39: 埃斯庫多 | AQ39: escudo | AR39: escudo | AS39: Escudo | AT39: Escudo | AU39: エスクード | AV39: 에스쿠도 | AW39: escudo | AX39: escudo | AY39: эскудо | AZ39: escudo | BA39: escudo
A40: dollarCI$ | B40: Cayman Islands | C40: dollar | D40: CI$ | E40: =VLOOKUP(B40,ImportInfo!$D$1:$E$188,2,FALSE) -> 0.82 | F40: 2011-02-18T09:44:39 | G40: 77521 | H40: 94537.80488 | I40: 1.674628538 | J40: 0.2 | K40: 1 | L40: 0.15 | M40: 1.5 | N40: Cayman Islands | O40: Cayman Islands | U40: Cayman Islands | V40: Ilhas Cayman | W40: 开曼群岛 | X40: 開曼群島 | Y40: Kaaimaneilanden | Z40: Cayman (îles) | AA40: Kaimaninseln | AB40: Isole Cayman | AC40: ケイマン諸島 | AD40: 케이맨 제도 | AE40: Kajmany | AF40: Ilhas Caimão | AG40: Каймановы острова | AH40: Islas Caimán | AI40: Caymanöarna | AM40: dollar | AN40: dólar | AO40: 津巴布韦元 | AP40: 開曼群島幣 | AQ40: dollar | AR40: dollar | AS40: Dollar | AT40: Dollaro | AU40: ドル | AV40: 달러 | AW40: dolar | AX40: dólar | AY40: доллар | AZ40: dólar | BA40: dollar
A41: francCFAF | B41: Central African Republic | C41: franc | D41: CFAF | E41: =VLOOKUP(B41,ImportInfo!$D$1:$E$188,2,FALSE) -> 503.3 | F41: 2011-02-18T09:44:39 | G41: 26010142 | H41: 51679.20127 | I41: 0.9154376432 | J41: 0 | K41: 1 | L41: 0.15 | M41: 1.5 | N41: Central African Republic | O41: Central African Republic | U41: Central African Republic | V41: República Centro-Africana | W41: 中非共和国 | X41: 中非共和國 | Y41: Centraal-Afrikaanse Republiek | Z41: République centrafricaine | AA41: Zentralafrikanische Republik | AB41: Repubblica Centrafricana | AC41: 中央アフリカ共和国 | AD41: 중앙 아프리카 공화국 | AE41: Republika Środkowoafrykańska | AF41: República Centro-Africana | AG41: Центральноафриканская Республика | AH41: República Centroafricana | AI41: Centralafrikanska republiken | AM41: franc | AN41: franco | AO41: 法郎 | AP41: 法郎 | AQ41: franc | AR41: franc CFP | AS41: Franc | AT41: Franco | AU41: フラン | AV41: 프랑 | AW41: frank | AX41: franco | AY41: франк | AZ41: franco | BA41: franc
A42: francCFAF | B42: Chad | C42: franc | D42: CFAF | E42: =VLOOKUP(B42,ImportInfo!$D$1:$E$188,2,FALSE) -> 503.3 | F42: 2011-02-18T09:44:39 | G42: 25432655 | H42: 50531.80012 | I42: 0.8951127508 | J42: 0 | K42: 1 | L42: 0.15 | M42: 1.5 | N42: Chad | O42: Chad | U42: Chad | V42: Chade | W42: 乍得 | X42: 查德 | Y42: Tsjaad | Z42: Tchad | AA42: Tschad | AB42: Ciad | AC42: チャド | AD42: 차드 | AE42: Czad | AF42: Chade | AG42: Чад | AH42: Chad | AI42: Tchad | AM42: franc | AN42: franco | AO42: 法郎 | AP42: 法郎 | AQ42: franc | AR42: franc CFP | AS42: Franc | AT42: Franco | AU42: フラン | AV42: 프랑 | AW42: frank | AX42: franco | AY42: франк | AZ42: franco | BA42: franc
A43: pesoCh$ | B43: Chile | C43: peso | D43: Ch$ | E43: =VLOOKUP(B43,ImportInfo!$D$1:$E$188,2,FALSE) -> 486.7 | F43: 2011-02-18T09:44:39 | G43: 39405526 | H43: 80964.71338 | I43: 1.434196825 | J43: 0.3 | K43: 1 | L43: 0.195 | M43: 1.95 | N43: Chile | O43: Chile | U43: Chile | V43: Chile | W43: 智利 | X43: 智利 | Y43: Chili | Z43: Chili | AA43: Chile | AB43: Cile | AC43: チリ | AD43: 칠레 | AE43: Chile | AF43: Chile | AG43: Чили | AH43: Chile | AI43: Chile | AM43: peso | AN43: peso | AO43: 比索 | AP43: 比索 | AQ43: peso | AR43: peso | AS43: Peso | AT43: Peso | AU43: ペソ | AV43: 페소 | AW43: peso | AX43: peso | AY43: песо | AZ43: peso | BA43: peso
A44: yuan renminbi¥ | B44: China | C44: yuan renminbi | D44: ¥ | E44: =VLOOKUP(B44,ImportInfo!$D$1:$E$188,2,FALSE) -> 6.67 | F44: 2011-02-18T09:44:39 | G44: 274732 | H44: 41189.2054 | I44: 0.729619425 | J44: 0 | K44: 1 | L44: 0.15 | M44: 1.5 | N44: China | O44: China | U44: China | V44: China | W44: 中国 | X44: 中國 | Y44: China | Z44: Chine | AA44: China | AB44: Cina | AC44: 中国 | AD44: 중국 | AE44: Chiny | AF44: China | AG44: Китай | AH44: China | AI44: Kina | AM44: yuan renminbi | AN44: yuan renminbi | AO44: 人民币 | AP44: 元，人民幣 | AQ44: yuan renminbi | AR44: yuan renminbi | AS44: Yuan Renminbi | AT44: Yuan Renminbi | AU44: 人民元 | AV44: 위안 | AW44: yuan (renminbi) | AX44: yuan renminbi | AY44: юань жэньминьби | AZ44: yuan renminbi | BA44: yuan renminbi
A45: dollarA$ | B45: Christmas Island | C45: dollar | D45: A$ | E45: 1.04 | F45: 2011-02-18T09:44:43 | G45: 56527 | H45: 54352.88462 | I45: 0.9627988701 | J45: 0.4 | K45: 1 | L45: 0.15 | M45: 1.5 | N45: Christmas Island | O45: Christmas Island | U45: Christmas Island | V45: Ilha Christmas | W45: 圣诞岛 | X45: 聖誕島 | Y45: Christmaseiland | Z45: Christmas (île) | AA45: Weihnachtsinsel | AB45: Christmas, Isola | AC45: クリスマス島 | AD45: 크리스마스 섬 | AE45: Wyspa Bożego Narodzenia | AF45: Ilha do Natal | AG45: Остров Рождества | AH45: Isla Christmas | AI45: Julön | AM45: dollar | AN45: dólar | AO45: 津巴布韦元 | AP45: 澳幣 | AQ45: dollar | AR45: dollar | AS45: Dollar | AT45: Dollaro | AU45: ドル | AV45: 달러 | AW45: dolar | AX45: dólar | AY45: доллар | AZ45: dólar | BA45: dollar
A46: dollarA$ | B46: Cocos (Keeling) Islands | C46: dollar | D46: A$ | E46: 1.04 | F46: 2011-02-18T09:44:43 | G46: 50000 | H46: 48076.92308 | I46: 0.8516274259 | J46: 0.4 | K46: 1 | L46: 0.15 | M46: 1.5 | N46: Cocos (Keeling) Islands | O46: Cocos (Keeling) Islands | U46: Cocos (Keeling) Islands | V46: Ilhas Cocos (Keeling) | W46: 科科斯群岛 | X46: 可可斯群島 | Y46: Cocoseilanden | Z46: Cocos (îles)/Keeling (îles) | AA46: Kokosinseln (Keelinginseln) | AB46: Isole Cocos (Keeling) | AC46: ココス諸島 | AD46: 코코스 제도 | AE46: Wyspy Kokosowe (Keelinga) | AF46: Ilhas dos Cocos (Keeling) | AG46: Кокосовые острова | AH46: Islas Cocos | AI46: Kokosöarna | AM46: dollar | AN46: dólar | AO46: 津巴布韦元 | AP46: 澳幣 | AQ46: dollar | AR46: dollar | AS46: Dollar | AT46: Dollaro | AU46: ドル | AV46: 달러 | AW46: dolar | AX46: dólar | AY46: доллар | AZ46: dólar | BA46: dollar
A47: pesoCol$ | B47: Colombia | C47: peso | D47: Col$ | E47: =VLOOKUP(B47,ImportInfo!$D$1:$E$188,2,FALSE) -> 1920 | F47: 2011-02-18T09:44:39 | G47: 66332037 | H47: 34547.93594 | I47: 0.6119769709 | J47: 0 | K47: 1 | L47: 0.135 | M47: 1.35 | N47: Colombia | O47: Colombia | U47: Colombia | V47: Colômbia | W47: 哥伦比亚 | X47: 哥倫比亞 | Y47: Colombia | Z47: Colombie | AA47: Kolumbien | AB47: Colombia | AC47: コロンビア | AD47: 콜롬비아 | AE47: Kolumbia | AF47: Colômbia | AG47: Колумбия | AH47: Colombia | AI47: Colombia | AM47: peso | AN47: peso | AO47: 比索 | AP47: 比索 | AQ47: peso | AR47: peso | AS47: Peso | AT47: Peso | AU47: ペソ | AV47: 페소 | AW47: peso | AX47: peso | AY47: песо | AZ47: peso | BA47: peso
A48: francKMF | B48: Comoros | C48: franc | D48: KMF | E48: =VLOOKUP(B48,ImportInfo!$D$1:$E$188,2,FALSE) -> 361.35 | F48: 2011-02-18T09:44:39 | G48: 17148809 | H48: 47457.6145 | I48: 0.8406570864 | J48: 0 | K48: 1 | L48: 0.15 | M48: 1.5 | N48: Comoros | O48: Comoros | U48: Comoros | V48: Ilhas Comores | W48: 科摩罗 | X48: 葛摩 | Y48: Comoren | Z48: Comores | AA48: Komoren | AB48: Comore | AC48: コモロ | AD48: 코모로 | AE48: Komory | AF48: Comores | AG48: Коморы | AH48: Comoras | AI48: Komorerna | AM48: franc | AN48: franco | AO48: 法郎 | AP48: 法郎 | AQ48: franc | AR48: franc CFP | AS48: Franc | AT48: Franco | AU48: フラン | AV48: 프랑 | AW48: frank | AX48: franco | AY48: франк | AZ48: franco | BA48: franc
A49: francCFAF | B49: Congo | C49: franc | D49: CFAF | E49: =VLOOKUP(B49,ImportInfo!$D$1:$E$188,2,FALSE) -> 503.3 | F49: 2011-02-18T09:44:39 | G49: 26257881 | H49: 52171.43056 | I49: 0.9241569192 | J49: 0 | K49: 1 | L49: 0.15 | M49: 1.5 | N49: Congo | O49: Congo | U49: Congo | V49: Congo | W49: 刚果共和国 | X49: 剛果 | Y49: Congo | Z49: Congo | AA49: Kongo | AB49: Congo | AC49: コンゴ共和国 | AD49: 콩고 | AE49: Kongo | AF49: Congo | AG49: Конго | AH49: Congo | AI49: Kongo | AM49: franc | AN49: franco | AO49: 法郎 | AP49: 法郎 | AQ49: franc | AR49: franc CFP | AS49: Franc | AT49: Franco | AU49: フラン | AV49: 프랑 | AW49: frank | AX49: franco | AY49: франк | AZ49: franco | BA49: franc
A50: francCDF | B50: Congo, Dem. Rep. | C50: franc | D50: CDF | E50: 560 | F50: 2007-11-27 | G50: 11356100 | H50: 20278.75 | I50: 0.359214745 | J50: 0 | K50: 1 | L50: 0.15 | M50: 1.5 | N50: Congo, Dem. Rep. | O50: Congo, Dem. Rep. | U50: Congo, Dem. Rep. | V50: Congo, República Democrática | W50: 刚果民主共和国 | X50: 剛果民主 共和國 | Y50: Congo, Dem. Rep. | Z50: Congo, Dem. Rep. | AA50: Congo, Dem. Rep. | AB50: Congo, Dem. Rep. | AC50: コンゴ民主共和国 | AD50: 콩고 민주 공화국 | AE50: Demokratyczna Republika Konga | AF50: Congo, República Democrática do | AG50: Демократическая республика Конго | AH50: Congo, República Democrática del República Dominicana | AI50: Kongo, dem. rep. | AM50: franc | AN50: franco | AO50: 法郎 | AP50: 剛果法郎 | AQ50: franc | AR50: franc CFP | AS50: Franc | AT50: Franco | AU50: フラン | AV50: 프랑 | AW50: frank | AX50: franco | AY50: франк | AZ50: franco | BA50: franc
A51: dollarNZ$ | B51: Cook Islands | C51: dollar | D51: NZ$ | E51: 1.34 | F51: 2011-02-18T09:44:43 | G51: 102726 | H51: 76661.19403 | I51: 1.357964927 | J51: 0.3 | K51: 1 | L51: 0.15 | M51: 1.5 | N51: Cook Islands | O51: Cook Islands | U51: Cook Islands | V51: Ilhas Cook | W51: 库可群岛 | X51: 柯克群島 | Y51: Cookeilanden | Z51: Cook (îles) | AA51: Cookinseln | AB51: Isole Cook | AC51: クック諸島 | AD51: 쿡 제도 | AE51: Wyspy Cooka | AF51: Ilhas Cook | AG51: Острова Кука | AH51: Islas Cook | AI51: Cooköarna | AM51: dollar | AN51: dólar | AO51: 津巴布韦元 | AP51: 紐西蘭幣 | AQ51: dollar | AR51: dollar | AS51: Dollar | AT51: Dollaro | AU51: ドル | AV51: 달러 | AW51: dolar | AX51: dólar | AY51: доллар | AZ51: dólar | BA51: dollar
A52: colon₡ | B52: Costa Rica | C52: colon | D52: ₡ | E52: =VLOOKUP(B52,ImportInfo!$D$1:$E$188,2,FALSE) -> 501.95 | F52: 2011-02-18T09:44:40 | G52: 11576728 | H52: 23063.50832 | I52: 0.4085435374 | J52: 0.2 | K52: 1 | L52: 0.097 | M52: 0.97 | N52: Costa Rica | O52: Costa Rica | U52: Costa Rica | V52: Costa Rica | W52: 哥斯达黎加 | X52: 哥斯大黎加 | Y52: Costa Rica | Z52: Costa Rica | AA52: Costa Rica | AB52: Costa Rica | AC52: コスタリカ | AD52: 코스타리카 | AE52: Kostaryka | AF52: Costa Rica | AG52: Коста-Рика | AH52: Costa Rica | AI52: Costa Rica | AM52: colon | AN52: colón | AO52: 科郎 | AP52: 科郎 | AQ52: colon | AR52: colon | AS52: Colon | AT52: Colon | AU52: コロン | AV52: 콜론 | AW52: colon | AX52: colón | AY52: колон | AZ52: colón | BA52: colon
A53: francCFAF | B53: Côte d'Ivoire | C53: franc | D53: CFAF | E53: 503.3 | F53: 2011-02-18T09:44:43 | G53: 25026596 | H53: 49725.00695 | I53: 0.8808213373 | J53: 0 | K53: 1 | L53: 0.15 | M53: 1.5 | N53: Côte d'Ivoire | O53: Côte d'Ivoire | U53: Côte d'Ivoire | V53: Costa do Marfim | W53: 科特迪瓦 | X53: 象牙海岸 | Y53: Ivoorkust | Z53: Côte d'Ivoire | AA53: Côte d'Ivoire | AB53: Costa d'Avorio | AC53: コートジボワール | AD53: 코트디부아르 | AE53: Wybrzeże Kości Słoniowej | AF53: Côte d'Ivoire | AG53: Кот-д'Ивуар | AH53: Costa de Marfil | AI53: Elfenbenskusten | AM53: franc | AN53: franco | AO53: 法郎 | AP53: 法郎 | AQ53: franc | AR53: franc CFP | AS53: Franc | AT53: Franco | AU53: フラン | AV53: 프랑 | AW53: frank | AX53: franco | AY53: франк | AZ53: franco | BA53: franc
A54: kunakn | B54: Croatia | C54: kuna | D54: kn | E54: =VLOOKUP(B54,ImportInfo!$D$1:$E$188,2,FALSE) -> 5.59 | F54: 2011-02-18T09:44:40 | G54: 280915 | H54: 50253.13059 | I54: 0.8901764404 | J54: 0 | K54: 1 | L54: 0.1 | M54: 1 | N54: Croatia | O54: Croatia | U54: Croatia | V54: Croácia | W54: 克罗地亚 | X54: 克羅埃西亞 | Y54: Kroatië | Z54: Croatie | AA54: Kroatien | AB54: Croazia | AC54: クロアチア | AD54: 크로아티아 | AE54: Chorwacja | AF54: Croácia | AG54: Хорватия | AH54: Croacia | AI54: Kroatien | AM54: kuna | AN54: kuna | AO54: 库纳 | AP54: 庫納 | AQ54: kuna | AR54: kuna | AS54: Kuna | AT54: Kuna | AU54: クーナ | AV54: 쿠나 | AW54: kuna | AX54: kuna | AY54: куна | AZ54: kuna | BA54: kuna
A55: convertible pesoCuc$ | B55: Cuba (external) | C55: convertible peso | D55: Cuc$ | E55: 0.9259 | F55: 2007-11-27 | G55: 12622.47641 | H55: 13632.65624 | I55: 0.241486834 | J55: 0 | K55: 1 | L55: 0.15 | M55: 1.5 | N55: Cuba (external) | O55: Cuba (external) | U55: Cuba (external) | V55: Cuba (externo) | W55: 古巴（外部） | X55: 古巴 (外) | Y55: Cuba (extern) | Z55: Cuba (externe) | AA55: Kuba (extern) | AB55: Cuba (esterno) | AC55: キューバ (国外) | AD55: 쿠바(외부) | AE55: Kuba (terytoria zewnętrzne) | AF55: Cuba (externo) | AG55: Куба (внешняя) | AH55: Cuba (externo) | AI55: Kuba (externt) | AM55: convertible peso | AN55: peso conversível | AO55: 可兑换比索 | AP55: 可兌換的古巴比索 | AQ55: convertible peso | AR55: peso convertible | AS55: Konvertibler Peso | AT55: Peso convertibile | AU55: 兌換ペソ | AV55: 가변 페소 | AW55: peso wymienialne | AX55: peso conversível | AY55: конвертируемое песо | AZ55: peso convertible | BA55: konvertibla peso
A56: peso₱ | B56: Cuba (internal) | C56: peso | D56: ₱ | E56: 26.49708532 | F56: 2007-11-27 | G56: 361550 | H56: 13644.897 | I56: 0.241703665 | J56: 0 | K56: 1 | L56: 0.15 | M56: 1.5 | N56: Cuba (internal) | O56: Cuba (internal) | U56: Cuba (internal) | V56: Cuba (interno) | W56: 古巴（内部） | X56: 古巴 (內) | Y56: Cuba (intern) | Z56: Cuba (interne) | AA56: Kuba (intern) | AB56: Cuba (interno) | AC56: キューバ (国内) | AD56: 쿠바(내부) | AE56: Kuba (terytoria wewnętrzne) | AF56: Cuba (interno) | AG56: Куба (внутренняя) | AH56: Cuba (interno) | AI56: Kuba (internt) | AM56: peso | AN56: peso | AO56: 比索 | AP56: 古巴比索 | AQ56: peso | AR56: peso | AS56: Peso | AT56: Peso | AU56: ペソ | AV56: 페소 | AW56: peso | AX56: peso | AY56: песо | AZ56: peso | BA56: peso
A57: poundC£C | B57: Cyprus | C57: poundC | D57: £C | E57: =VLOOKUP(B57,ImportInfo!$D$1:$E$188,2,FALSE) -> 0.77 | F57: 2011-02-18T09:44:40 | G57: 22847 | H57: 29671.42857 | I57: 0.5255952486 | J57: 0.2 | K57: 1 | L57: 0.22 | M57: 2.2 | N57: Cyprus | O57: Cyprus | U57: Cyprus | V57: Chipre | W57: 塞浦路斯 | X57: 賽普勒斯 | Y57: Cyprus | Z57: Chypre | AA57: Zypern | AB57: Cipro | AC57: キプロス | AD57: 키프로스 | AE57: Cypr | AF57: Chipre | AG57: Кипр | AH57: Chipre | AI57: Cypern | AM57: poundC | AN57: poundC | AO57: 镑 | AP57: 賽普勒斯鎊 | AQ57: poundC | AR57: livre chypriote | AS57: Zypern-Pfund | AT57: Sterlina cipriota | AU57: キプロス ポンド | AV57: 키프로스 파운드 | AW57: funt cypryjski | AX57: libra cipriota | AY57: кипрский фунт | AZ57: libraC | BA57: pund
A58: new liraYTL | B58: Cyprus (Northern) | C58: new lira | D58: YTL | E58: 1.344989913 | F58: 2006-04-10 | G58: 39760 | H58: 29561.56 | I58: 0.5236490532 | J58: 0.2 | K58: 1 | L58: 0.22 | M58: 2.2 | N58: Cyprus (Northern) | O58: Cyprus (Northern) | U58: Cyprus (Northern) | V58: Chipre (Norte) | W58: 塞浦路斯（北部） | X58: 賽普勒斯 (北) | Y58: Noord-Cyprus | Z58: Chypre (Nord) | AA58: Zypern (Nord) | AB58: Cipro (Nord) | AC58: キプロス (北部) | AD58: 키프로스(북) | AE58: Cypr (północny) | AF58: Chipre (Norte) | AG58: Кипр (северный) | AH58: Chipre (Norte) | AI58: Nordcypern | AM58: new lira | AN58: nova lira | AO58: 新里拉 | AP58: 新里拉 | AQ58: new lira | AR58: nouvelle lire | AS58: Neue Lira | AT58: Nuova Lira | AU58: 新リラ | AV58: 뉴 리라 | AW58: nowy lir | AX58: nova lira | AY58: новая лира | AZ58: nueva lira | BA58: nya lira
A59: korunaKč | B59: Czech | C59: koruna | D59: Kč | E59: 17 | F59: 2011-02-25T09:42:16 | G59: 335259 | H59: 19721.11765 | I59: 0.3493369289 | J59: 0.4 | K59: 1 | L59: 0.19 | M59: 1.9 | N59: Czech | O59: Czech | U59: Czech | V59: Tcheco | W59: 捷克 | X59: 捷克 | Y59: Tsjechië | Z59: République tchèque | AA59: Tschechisch | AB59: Repubblica Ceca | AC59: チェコ語 | AD59: 체코 | AE59: Czechy | AF59: Checo | AG59: Чешский | AH59: República Checa | AI59: Tjeckien | AM59: koruna | AN59: coroa | AO59: 克朗 | AP59: 斯洛伐克克郎 | AQ59: koruna | AR59: couronne slovaque | AS59: Krone | AT59: Corona | AU59: コルナ | AV59: 코루나 | AW59: korona | AX59: Coroa | AY59: крона | AZ59: corona | BA59: koruna
A60: kronerDkr | B60: Denmark | C60: kroner | D60: Dkr | E60: =VLOOKUP(B60,ImportInfo!$D$1:$E$188,2,FALSE) -> 5.72 | F60: 2011-02-18T09:44:40 | G60: 238799 | H60: 41748.07692 | I60: 0.7395191916 | J60: 0.75 | K60: 1 | L60: 0.32 | M60: 3.2 | N60: Denmark | O60: Denmark | U60: Denmark | V60: Dinamarca | W60: 丹麦 | X60: 丹麥 | Y60: Denemarken | Z60: Danemark | AA60: Dänemark | AB60: Danimarca | AC60: デンマーク | AD60: 덴마크 | AE60: Dania | AF60: Dinamarca | AG60: Дания | AH60: Dinamarca | AI60: Danmark | AM60: kroner | AN60: coroa | AO60: 克埃 | AP60: 丹麥克郎 | AQ60: kroner | AR60: couronne danoise | AS60: Krone | AT60: Corona | AU60: クローネ | AV60: 크로나 | AW60: korona | AX60: coroa | AY60: крона | AZ60: corona | BA60: kronor
A61: francDF | B61: Djibouti | C61: franc | D61: DF | E61: =VLOOKUP(B61,ImportInfo!$D$1:$E$188,2,FALSE) -> 177 | F61: 2011-02-18T09:44:40 | G61: 5932198 | H61: 33515.24294 | I61: 0.5936840015 | J61: 0 | K61: 1 | L61: 0.15 | M61: 1.5 | N61: Djibouti | O61: Djibouti | U61: Djibouti | V61: Djibuti | W61: 吉布提 | X61: 吉布地 | Y61: Djibouti | Z61: Djibouti | AA61: Dschibuti | AB61: Gibuti | AC61: ジブチ | AD61: 지부티 | AE61: Dżibuti | AF61: Jibuti | AG61: Джибути | AH61: Yibuti | AI61: Djibouti | AM61: franc | AN61: franco | AO61: 法郎 | AP61: 吉布地法郎 | AQ61: franc | AR61: franc CFP | AS61: Franc | AT61: Franco | AU61: フラン | AV61: 프랑 | AW61: frank | AX61: franco | AY61: франк | AZ61: franco | BA61: franc
A62: dollarEC$ | B62: Dominica | C62: dollar | D62: EC$ | E62: 2.7 | F62: 2011-02-18T09:44:43 | G62: 104991 | H62: 38885.55556 | I62: 0.6888129162 | J62: 0 | K62: 1 | L62: 0.15 | M62: 1.5 | N62: Dominica | O62: Dominica | U62: Dominica | V62: Dominica | W62: 多米尼克 | X62: 多米尼克 | Y62: Dominica | Z62: Dominique | AA62: Dominica | AB62: Dominica | AC62: ドミニカ | AD62: 도미니카 | AE62: Dominika | AF62: Domínica | AG62: Доминика | AH62: Dominica | AI62: Dominica | AM62: dollar | AN62: dólar | AO62: 津巴布韦元 | AP62: 東加勒比幣 | AQ62: dollar | AR62: dollar | AS62: Dollar | AT62: Dollaro | AU62: ドル | AV62: 달러 | AW62: dolar | AX62: dólar | AY62: доллар | AZ62: dólar | BA62: dollar
A63: pesoRD$ | B63: Dominican Rep. | C63: peso | D63: RD$ | E63: 33.4835 | F63: 2007-11-27 | G63: 668500 | H63: 19965.05742 | I63: 0.3536580415 | J63: 0 | K63: 1 | L63: 0.15 | M63: 1.5 | N63: Dominican Rep. | O63: Dominican Rep. | U63: Dominican Rep. | V63: República Dominicana | W63: 多米尼加共和国 | X63: 多明尼加 | Y63: Dominicaanse Rep. | Z63: République dominicaine | AA63: Dominikanische Republik | AB63: Repubblica Dominicana | AC63: ドミニカ共和国 | AD63: 도미니카 공화국 | AE63: Dominikana | AF63: República Dominicana | AG63: Доминиканская Республика | AH63: República Dominicana | AI63: Dominikanska republiken | AM63: peso | AN63: peso | AO63: 比索 | AP63: 多明尼加比索 | AQ63: peso | AR63: peso | AS63: Peso | AT63: Peso | AU63: ペソ | AV63: 페소 | AW63: peso | AX63: peso | AY63: песо | AZ63: peso | BA63: peso
A64: kroneNKr | B64: Dronning Maud Land | C64: krone | D64: NKr | E64: 6.2 | F64: 2011-02-18T09:44:43 | G64: 290135.3965 | H64: 46796.0317 | I64: 0.8289379076 | J64: 0.75 | K64: 1 | L64: 0.15 | M64: 1.5 | N64: Dronning Maud Land | O64: Dronning Maud Land | U64: Dronning Maud Land | V64: Dronning Maud Land | W64: 毛德皇后地 | X64: 毛德皇后地 | Y64: Koningin Maud Land | Z64: Terre de la Reine Maud | AA64: Königin-Maud-Land | AB64: Terra della regina Maud | AC64: ドローニング・モード・ランド | AD64: 드로닝 모드 랜드 | AE64: Ziemia Królowej Maud | AF64: Dronning Maud Land | AG64: Земля Королевы Мод | AH64: Territorio de la Reina Maud | AI64: Drottning Mauds land | AM64: krone | AN64: coroa | AO64: 克朗 | AP64: 克郎 | AQ64: krone | AR64: couronne norvégienne | AS64: Krone | AT64: Corona | AU64: クローネ | AV64: 크로네 | AW64: korona | AX64: coroa | AY64: крона | AZ64: corona | BA64: kronor
A65: dollarUS$ | B65: East Timor | C65: dollar | D65: US$ | E65: =VLOOKUP(B65,ImportInfo!$D$1:$E$188,2,FALSE) -> 1 | F65: 2011-02-18T09:44:40 | G65: 42000 | H65: 42000 | I65: 0.7439817193 | J65: 0 | K65: 1 | L65: 0.15 | M65: 1.5 | N65: East Timor | O65: East Timor | U65: East Timor | V65: Timor Leste | W65: 东帝汶 | X65: 東帝汶 | Y65: Oost-Timor | Z65: Timor-Oriental | AA65: Osttimor | AB65: Timor Est | AC65: 東ティモール | AD65: 동티모르 | AE65: Timor Wschodni | AF65: Timor Leste | AG65: Восточный Тимор | AH65: Timor Oriental | AI65: Östtimor | AM65: dollar | AN65: dólar | AO65: 津巴布韦元 | AP65: 美元 | AQ65: dollar | AR65: dollar | AS65: Dollar | AT65: Dollaro | AU65: ドル | AV65: 달러 | AW65: dolar | AX65: dólar | AY65: доллар | AZ65: dólar | BA65: dollar
A66: dollarUS$ | B66: Ecuador | C66: =OFFSET(AM66,,LanguageOffset) -> dollar | D66: US$ | E66: 1 | F66: 2009-11-11T14:08:34 | G66: 40410 | H66: 40410 | I66: 0.7158166971 | J66: 0.2 | K66: 1 | L66: 0.094 | M66: 0.94 | N66: =OFFSET(U66,,LanguageOffset) -> Ecuador | O66: Ecuador | U66: Ecuador | V66: Equador | W66: 厄瓜多尔 | X66: 厄瓜多 | Y66: Ecuador | Z66: Équateur | AA66: Ecuador | AB66: Ecuador | AC66: エクアドル | AD66: 에콰도르 | AE66: Ekwador | AF66: Equador | AG66: Эквадор | AH66: Ecuador | AI66: Ecuador | AM66: dollar | AN66: dólar | AO66: 津巴布韦元 | AP66: 美元 | AQ66: dollar | AR66: dollar | AS66: Dollar | AT66: Dollaro | AU66: ドル | AV66: 달러 | AW66: dolar | AX66: dólar | AY66: доллар | AZ66: dólar | BA66: dollar
A67: =C67&D67 -> poundE£E | B67: Egypt | C67: poundE | D67: £E | E67: =VLOOKUP(B67,ImportInfo!$D$1:$E$188,2,FALSE) -> 5.79 | F67: 2011-02-18T09:44:40 | G67: 156775 | H67: =G67/E67 -> 27076.85665 | I67: =H67/$G$233 -> 0.4796353896 | J67: 0.2 | K67: 1 | L67: 0.15 | M67: 1.5 | N67: Egypt | O67: Egypt | U67: Egypt | V67: Egito | W67: 埃及 | X67: 埃及 | Y67: Egypte | Z67: Égypte | AA67: Ägypten | AB67: Egitto | AC67: エジプト | AD67: 이집트 | AE67: Egipt | AF67: Egipto | AG67: Египет | AH67: Egipto | AI67: Egypten | AM67: poundE | AN67: poundE | AO67: 镑 | AP67: 埃及鎊 | AQ67: poundE | AR67: livre égyptienne | AS67: Ägyptisches Pfund | AT67: Lira egiziana | AU67: エジプト ポンド | AV67: 이집트 파운드 | AW67: funt egipski | AX67: libra egípcia | AY67: египетский фунт | AZ67: libraE | BA67: pund
A68: dollarUS$ | B68: El Salvador | C68: dollar | D68: US$ | E68: =VLOOKUP(B68,ImportInfo!$D$1:$E$188,2,FALSE) -> 1 | F68: 2011-02-18T09:44:40 | G68: 33868 | H68: 33868 | I68: 0.5999326874 | J68: 0.2 | K68: 1 | L68: 0.142 | M68: 1.42 | N68: El Salvador | O68: El Salvador | U68: El Salvador | V68: El Salvador | W68: 萨尔瓦多 | X68: 薩爾瓦多 | Y68: El Salvador | Z68: Salvador | AA68: El Salvador | AB68: El Salvador | AC68: エルサルバドル | AD68: 엘살바도르 | AE68: Salwador | AF68: El Salvador | AG68: Эль-Сальвадор | AH68: El Salvador | AI68: El Salvador | AM68: dollar | AN68: dólar | AO68: 津巴布韦元 | AP68: 美元 | AQ68: dollar | AR68: dollar | AS68: Dollar | AT68: Dollaro | AU68: ドル | AV68: 달러 | AW68: dolar | AX68: dólar | AY68: доллар | AZ68: dólar | BA68: dollar
A69: francCFAF | B69: Equatorial Guinea | C69: franc | D69: CFAF | E69: =VLOOKUP(B69,ImportInfo!$D$1:$E$188,2,FALSE) -> 503.3 | F69: 2011-02-18T09:44:40 | G69: 27066568 | H69: 53778.19988 | I69: 0.9526189907 | J69: 0 | K69: 1 | L69: 0.15 | M69: 1.5 | N69: Equatorial Guinea | O69: Equatorial Guinea | U69: Equatorial Guinea | V69: Guiné Equatorial | W69: 赤道几内亚 | X69: 赤道幾內亞 | Y69: Equatoriaal-Guinea | Z69: Guinée équatoriale | AA69: Äquatorialguinea | AB69: Guinea Equatoriale | AC69: 赤道ギニア | AD69: 적도 기니 | AE69: Gwinea Równikowa | AF69: Guiné Equatorial | AG69: Экваториальная Гвинея | AH69: Guinea Ecuatorial | AI69: Ekvatorialguinea | AM69: franc | AN69: franco | AO69: 法郎 | AP69: 法郎 | AQ69: franc | AR69: franc CFP | AS69: Franc | AT69: Franco | AU69: フラン | AV69: 프랑 | AW69: frank | AX69: franco | AY69: франк | AZ69: franco | BA69: franc
A70: nakfaNfa | B70: Eritrea | C70: nakfa | D70: Nfa | E70: =VLOOKUP(B70,ImportInfo!$D$1:$E$188,2,FALSE) -> 15 | F70: 2011-02-18T09:44:40 | G70: 394652 | H70: 26310.13333 | I70: 0.4660537674 | J70: 0 | K70: 1 | L70: 0.15 | M70: 1.5 | N70: Eritrea | O70: Eritrea | U70: Eritrea | V70: Eritreia | W70: 厄立特里亚 | X70: 厄利垂亞 | Y70: Eritrea | Z70: Érythrée | AA70: Eritrea | AB70: Eritrea | AC70: エリトリア | AD70: 에리트레아 | AE70: Erytrea | AF70: Eritreia | AG70: Эритрея | AH70: Eritrea | AI70: Eritrea | AM70: nakfa | AN70: nakfa | AO70: 纳克法 | AP70: 納可法 | AQ70: nakfa | AR70: nakfa | AS70: Nakfa | AT70: Nakfa | AU70: ナクファ | AV70: 나크파 | AW70: nakfa | AX70: nakfa | AY70: накфа | AZ70: nakfa | BA70: nakfa
A71: kroonKR | B71: Estonia | C71: kroon | D71: KR | E71: =VLOOKUP(B71,ImportInfo!$D$1:$E$188,2,FALSE) -> 12 | F71: 2011-02-18T09:44:40 | G71: 130043 | H71: 10836.91667 | I71: 0.1919635213 | J71: 0 | K71: 1 | L71: 0.12 | M71: 1.2 | N71: Estonia | O71: Estonia | U71: Estonia | V71: Estônia | W71: 爱沙尼亚 | X71: 愛沙尼亞 | Y71: Estland | Z71: Estonie | AA71: Estland | AB71: Estonia | AC71: エストニア | AD71: 에스토니아 | AE71: Estonia | AF71: Estónia | AG71: Эстония | AH71: Estonia | AI71: Estland | AM71: kroon | AN71: coroa estoniana | AO71: 克鲁恩 | AP71: 愛沙尼亞克郎 | AQ71: kroon | AR71: couronne estonienne | AS71: Krone | AT71: Corona | AU71: クローン | AV71: 크룬 | AW71: korona | AX71: coroa | AY71: крона | AZ71: corona | BA71: kroon
A72: birrBr | B72: Ethiopia | C72: birr | D72: Br | E72: =VLOOKUP(B72,ImportInfo!$D$1:$E$188,2,FALSE) -> 16.49 | F72: 2011-02-18T09:44:40 | G72: 316731 | H72: 19207.45907 | I72: 0.3402380576 | J72: 0 | K72: 1 | L72: 0.15 | M72: 1.5 | N72: Ethiopia | O72: Ethiopia | U72: Ethiopia | V72: Etiópia | W72: 埃塞俄比亚 | X72: 衣索比亞 | Y72: Ethiopië | Z72: Éthiopie | AA72: Äthiopien | AB72: Etiopia | AC72: エチオピア | AD72: 에티오피아 | AE72: Etiopia | AF72: Etiópia | AG72: Эфиопия | AH72: Etiopía | AI72: Etiopien | AM72: birr | AN72: birr | AO72: 比尔 | AP72: 比爾 | AQ72: birr | AR72: birr éthiopien | AS72: Birr | AT72: Birr | AU72: ブル | AV72: 비르 | AW72: birr | AX72: birr | AY72: быр | AZ72: birr | BA72: birr
A73: kronerDkr | B73: Faeroe Islands (Føroyar) | C73: kroner | D73: Dkr | E73: 5.72 | F73: 2011-02-18T09:44:43 | G73: 250000 | H73: 43706.29371 | I73: 0.7742067509 | J73: 0.6 | K73: 1 | L73: 0.15 | M73: 1.5 | N73: Faeroe Islands (Føroyar) | O73: Faeroe Islands (Føroyar) | U73: Faeroe Islands (Føroyar) | V73: Ilhas Faroés (Føroyar) | W73: 法罗群岛 | X73: 法羅群島 | Y73: Faeröer | Z73: Féroé (îles) | AA73: Färöer (Føroyar) | AB73: Isole Faroe (Føroyar) | AC73: フェロー諸島 | AD73: 페로스 제도(페로어) | AE73: Wyspy Owcze (Føroyar) | AF73: Ilhas Feroé (Føroyar) | AG73: Фарерские острова | AH73: Islas Feroe | AI73: Färöarna | AM73: kroner | AN73: coroa | AO73: 克埃 | AP73: 丹麥克郎 | AQ73: kroner | AR73: couronne danoise | AS73: Krone | AT73: Corona | AU73: クローネ | AV73: 크로나 | AW73: korona | AX73: coroa | AY73: крона | AZ73: corona | BA73: kronor
A74: pound£ | B74: Falkland Islands | C74: pound | D74: £ | E74: 0.64 | F74: 2011-02-18T09:44:43 | G74: 41000 | H74: 64062.5 | I74: 1.134793545 | J74: 0.5 | K74: 1 | L74: 0.15 | M74: 1.5 | N74: Falkland Islands | O74: Falkland Islands | U74: Falkland Islands | V74: Ilhas Falkland | W74: 马尔维纳斯群岛 | X74: 福克蘭群島 | Y74: Falklandeilanden | Z74: Falkland (îles) | AA74: Falklandinseln | AB74: Isole Falkland | AC74: フォークランド諸島 | AD74: 포클랜드 제도 | AE74: Falklandy | AF74: Ilhas Falkland | AG74: Фолклендские острова | AH74: Islas Malvinas (Falkland Islands) | AI74: Falklandsöarna | AM74: pound | AN74: libra | AO74: 英镑 | AP74: 福克蘭群島鎊 | AQ74: pound | AR74: livre sterling | AS74: Pfund | AT74: Sterlina | AU74: ポンド | AV74: 파운드 | AW74: funt | AX74: libra | AY74: фунт | AZ74: libra | BA74: pund
A75: dollarF$ | B75: Fiji | C75: dollar | D75: F$ | E75: =VLOOKUP(B75,ImportInfo!$D$1:$E$188,2,FALSE) -> 1.82 | F75: 2011-02-18T09:44:40 | G75: 76640 | H75: 42109.89011 | I75: 0.7459282963 | J75: 0.2 | K75: 1 | L75: 0.15 | M75: 1.5 | N75: Fiji | O75: Fiji | U75: Fiji | V75: Fiji | W75: 斐济 | X75: 斐濟 | Y75: Fiji | Z75: Fidji | AA75: Fidschi | AB75: Fiji | AC75: フィジー | AD75: 피지 | AE75: Fidżi | AF75: Fiji | AG75: Фиджи | AH75: Fiyi | AI75: Fiji | AM75: dollar | AN75: dólar | AO75: 津巴布韦元 | AP75: 斐濟幣 | AQ75: dollar | AR75: dollar | AS75: Dollar | AT75: Dollaro | AU75: ドル | AV75: 달러 | AW75: dolar | AX75: dólar | AY75: доллар | AZ75: dólar | BA75: dollar
A76: euro€ | B76: Finland | C76: euro | D76: € | E76: =VLOOKUP(B76,ImportInfo!$D$1:$E$188,2,FALSE) -> 0.77 | F76: 2011-02-18T09:44:40 | G76: 43015 | H76: 55863.63636 | I76: 0.9895601007 | J76: 0.75 | K76: 1 | L76: 0.17 | M76: 1.7 | N76: Finland | O76: Finland | U76: Finland | V76: Finlândia | W76: 芬兰 | X76: 芬蘭 | Y76: Finland | Z76: Finlande | AA76: Finnland | AB76: Finlandia | AC76: フィンランド | AD76: 핀란드 | AE76: Finlandia | AF76: Finlândia | AG76: Финляндия | AH76: Finlandia | AI76: Finland | AM76: euro | AN76: euro | AO76: 欧元 | AP76: 歐元 | AQ76: euro | AR76: euro | AS76: Euro | AT76: Euro | AU76: ユーロ | AV76: 유로 | AW76: euro | AX76: euro | AY76: евро | AZ76: euro | BA76: euro
A77: euro€ | B77: France | C77: euro | D77: € | E77: =VLOOKUP(B77,ImportInfo!$D$1:$E$188,2,FALSE) -> 0.77 | F77: 2011-02-18T09:44:40 | G77: 35127 | H77: 45619.48052 | I77: 0.808096656 | J77: 0.8 | K77: 1 | L77: 0.16 | M77: 1.6 | N77: France | O77: France | U77: France | V77: França | W77: 法国 | X77: 法國 | Y77: Frankrijk | Z77: France | AA77: Frankreich | AB77: Francia | AC77: フランス | AD77: 프랑스 | AE77: Francja | AF77: França | AG77: Франция | AH77: Francia | AI77: Frankrike | AM77: euro | AN77: euro | AO77: 欧元 | AP77: 歐元 | AQ77: euro | AR77: euro | AS77: Euro | AT77: Euro | AU77: ユーロ | AV77: 유로 | AW77: euro | AX77: euro | AY77: евро | AZ77: euro | BA77: euro
A78: euro€ | B78: French Guiana | C78: euro | D78: € | E78: 0.77 | F78: 2011-02-18T09:44:43 | G78: 25000 | H78: 32467.53247 | I78: 0.5751250149 | J78: 0.2 | K78: 1 | L78: 0.15 | M78: 1.5 | N78: French Guiana | O78: French Guiana | U78: French Guiana | V78: Guiana Francesa | W78: 法属圭亚那 | X78: 法屬圭亞那 | Y78: Frans-Guyana | Z78: Guyane française | AA78: Französisch Guayana | AB78: Guayana Francese | AC78: フランス領ギアナ | AD78: 프랑스령 기아나 | AE78: Gujana Francuska | AF78: Guiana Francesa | AG78: Французская Гвиана | AH78: Guayana Francesa | AI78: Franska Guyana | AM78: euro | AN78: euro | AO78: 欧元 | AP78: 歐元 | AQ78: euro | AR78: euro | AS78: Euro | AT78: Euro | AU78: ユーロ | AV78: 유로 | AW78: euro | AX78: euro | AY78: евро | AZ78: euro | BA78: euro
A79: euro€ | B79: French Polynesia | C79: euro | D79: € | E79: 0.733 | F79: 2007-11-27 | G79: 35000 | H79: 47748.97681 | I79: 0.8458182348 | J79: 0.2 | K79: 1 | L79: 0.15 | M79: 1.5 | N79: French Polynesia | O79: French Polynesia | U79: French Polynesia | V79: Polinésia Francesa | W79: 法属波利尼西亚 | X79: 法屬玻里尼西亞 | Y79: Frans-Polynesië | Z79: Polynésie française | AA79: Französisch-Polynesien | AB79: Polinesia Francese | AC79: フランス領ポリネシア | AD79: 프랑스령 폴리네시아 | AE79: Polinezja Francuska | AF79: Polinésia Francesa | AG79: Французская Полинезия | AH79: Polinesia Francesa | AI79: Franska Polynesien | AM79: euro | AN79: euro | AO79: 欧元 | AP79: 歐元 | AQ79: euro | AR79: euro | AS79: Euro | AT79: Euro | AU79: ユーロ | AV79: 유로 | AW79: euro | AX79: euro | AY79: евро | AZ79: euro | BA79: euro
A80: francCFAF | B80: Gabon | C80: franc | D80: CFAF | E80: =VLOOKUP(B80,ImportInfo!$D$1:$E$188,2,FALSE) -> 503.3 | F80: 2011-02-18T09:44:40 | G80: 38198242 | H80: 75895.57322 | I80: 1.344402835 | J80: 0 | K80: 1 | L80: 0.15 | M80: 1.5 | N80: Gabon | O80: Gabon | U80: Gabon | V80: Gabão | W80: 加蓬 | X80: 加彭 | Y80: Gabon | Z80: Gabon | AA80: Gabun | AB80: Gabon | AC80: ガボン | AD80: 가봉 | AE80: Gabon | AF80: Gabão | AG80: Габон | AH80: Gabón | AI80: Gabon | AM80: franc | AN80: franco | AO80: 法郎 | AP80: 法郎 | AQ80: franc | AR80: franc CFP | AS80: Franc | AT80: Franco | AU80: フラン | AV80: 프랑 | AW80: frank | AX80: franco | AY80: франк | AZ80: franco | BA80: franc
A81: dalasiD | B81: Gambia | C81: dalasi | D81: D | E81: =VLOOKUP(B81,ImportInfo!$D$1:$E$188,2,FALSE) -> 28 | F81: 2011-02-18T09:44:40 | G81: 639396 | H81: 22835.57143 | I81: 0.4045058974 | J81: 0 | K81: 1 | L81: 0.15 | M81: 1.5 | N81: Gambia | O81: Gambia | U81: Gambia | V81: Gâmbia | W81: 冈比亚 | X81: 甘比亞 | Y81: Gambia | Z81: Gambie | AA81: Gambia | AB81: Gambia | AC81: ガンビア | AD81: 감비아 | AE81: Gambia | AF81: Gâmbia | AG81: Гамбия | AH81: Gambia | AI81: Gambia | AM81: dalasi | AN81: dalasi | AO81: 达拉 | AP81: 達拉西 | AQ81: dalasi | AR81: dalasi | AS81: Dalasi | AT81: Dalasi | AU81: ダラシ | AV81: 달라시 | AW81: dalasi | AX81: dalasi | AY81: даласи | AZ81: dalasi | BA81: dalasi
A82: new shekelNIS | B82: Gaza | C82: new shekel | D82: NIS | E82: 3.8614 | F82: 2007-11-27 | G82: 45000 | H82: 11653.80432 | I82: 0.206433747 | J82: 0 | K82: 1 | L82: 0.15 | M82: 1.5 | N82: Gaza | O82: Gaza | U82: Gaza | V82: Gaza | W82: 加沙 | X82: 加薩 | Y82: Gaza | Z82: Gaza | AA82: Gaza | AB82: Gaza | AC82: ガザ | AD82: 가자 | AE82: Gaza | AF82: Gaza | AG82: Газа | AH82: Gaza | AI82: Gaza | AM82: new shekel | AN82: novo shekel | AO82: 新谢克尔 | AP82: 新克爾 | AQ82: new shekel | AR82: nouveau shekel israélien | AS82: Neuer Schekel | AT82: Nuovo sheqel | AU82: 新シェケル | AV82: 뉴 셰켈 | AW82: nowy szekel | AX82: novo shekel | AY82: новый шекель | AZ82: nuevo siclo | BA82: nya shekel
A83: lariGEL | B83: Georgia | C83: lari | D83: GEL | E83: =VLOOKUP(B83,ImportInfo!$D$1:$E$188,2,FALSE) -> 1.76 | F83: 2011-02-18T09:44:40 | G83: 70299 | H83: 39942.61364 | I83: 0.7075374849 | J83: 0 | K83: 1 | L83: 0.15 | M83: 1.5 | N83: Georgia | O83: Georgia | U83: Georgia | V83: Geórgia | W83: 格鲁吉亚 | X83: 喬治亞 | Y83: Georgië | Z83: Géorgie | AA83: Georgien | AB83: Georgia | AC83: グルジア | AD83: 그루지야 | AE83: Gruzja | AF83: Geórgia | AG83: Грузия | AH83: Georgia | AI83: Georgien | AM83: lari | AN83: lari | AO83: 拉里 | AP83: 拉里 | AQ83: lari | AR83: lari | AS83: Lari | AT83: Lari | AU83: ラリ | AV83: 라리 | AW83: lari | AX83: lari | AY83: лари | AZ83: lari | BA83: lari
A84: euro€ | B84: Germany | C84: euro | D84: € | E84: 0.77 | F84: 2011-02-18T09:44:43 | G84: 42266 | H84: 54890.90909 | I84: 0.9723293552 | J84: 0.75 | K84: 1 | L84: 0.28 | M84: 2.8 | N84: Germany | O84: Germany | U84: Germany | V84: Alemanha | W84: 德国 | X84: 德國 | Y84: Duitsland | Z84: Allemagne | AA84: Deutschland | AB84: Germania | AC84: ドイツ | AD84: 독일 | AE84: Niemcy | AF84: Alemanha | AG84: Германия | AH84: Alemania | AI84: Tyskland | AM84: euro | AN84: euro | AO84: 欧元 | AP84: 歐元 | AQ84: euro | AR84: euro | AS84: Euro | AT84: Euro | AU84: ユーロ | AV84: 유로 | AW84: euro | AX84: euro | AY84: евро | AZ84: euro | BA84: euro
A85: new cedi¢ | B85: Ghana | C85: new cedi | D85: ¢ | E85: =VLOOKUP(B85,ImportInfo!$D$1:$E$188,2,FALSE) -> 1.45 | F85: 2011-02-18T09:44:40 | G85: 45303 | H85: 31243.44828 | I85: 0.5534417706 | J85: 0 | K85: 1 | L85: 0.15 | M85: 1.5 | N85: Ghana | O85: Ghana | U85: Ghana | V85: Gana | W85: 加纳 | X85: 迦納 | Y85: Ghana | Z85: Ghana | AA85: Ghana | AB85: Ghana | AC85: ガーナ | AD85: 가나 | AE85: Ghana | AF85: Gana | AG85: Гана | AH85: Ghana | AI85: Ghana | AM85: new cedi | AN85: novo cedi | AO85: 新塞迪 | AP85: 新塞地 | AQ85: new cedi | AR85: nouveau cedi | AS85: New Cedi | AT85: Nuovo cedi | AU85: 新セディ | AV85: 뉴 세디 | AW85: nowe cedi | AX85: novo cedi | AY85: новый седи | AZ85: nuevo cedi | BA85: nya cedi
A86: pound£ | B86: Gibraltar | C86: pound | D86: £ | E86: 0.64 | F86: 2011-02-18T09:44:43 | G86: 41090 | H86: 64203.125 | I86: 1.137284555 | J86: 0.5 | K86: 1 | L86: 0.15 | M86: 1.5 | N86: Gibraltar | O86: Gibraltar | U86: Gibraltar | V86: Gibraltar | W86: 直布罗陀 | X86: 直布羅陀 | Y86: Gibraltar | Z86: Gibraltar | AA86: Gibraltar | AB86: Gibilterra | AC86: ジブラルタル | AD86: 지브롤터 | AE86: Gibraltar | AF86: Gibraltar | AG86: Гибралтар | AH86: Gibraltar | AI86: Gibraltar | AM86: pound | AN86: libra | AO86: 英镑 | AP86: 直布羅陀鎊 | AQ86: pound | AR86: livre sterling | AS86: Pfund | AT86: Sterlina | AU86: ポンド | AV86: 파운드 | AW86: funt | AX86: libra | AY86: фунт | AZ86: libra | BA86: pund
A87: pound£ | B87: Great Britain | C87: pound | D87: £ | E87: 0.64 | F87: 2011-02-18T09:44:43 | G87: 27472 | H87: 42925 | I87: 0.760367031 | J87: 0.5 | K87: 1 | L87: 0.17 | M87: 1.7 | N87: Great Britain | O87: Great Britain | U87: Great Britain | V87: Grã-Bretanha | W87: 英国 | X87: 大不列顛群島 | Y87: Groot-Brittannië | Z87: Grande-Bretagne | AA87: Großbritannien | AB87: Gran Bretagna | AC87: グレートブリテン島 | AD87: 영국 | AE87: Wielka Brytania | AF87: Grã-Bretanha | AG87: Великобритания | AH87: Gran Bretaña | AI87: Storbritannien | AM87: pound | AN87: libra | AO87: 英镑 | AP87: 英鎊 | AQ87: pound | AR87: livre sterling | AS87: Pfund | AT87: Sterlina | AU87: ポンド | AV87: 파운드 | AW87: funt | AX87: libra | AY87: фунт | AZ87: libra | BA87: pund
A88: euro€ | B88: Greece | C88: euro | D88: € | E88: =VLOOKUP(B88,ImportInfo!$D$1:$E$188,2,FALSE) -> 0.77 | F88: 2011-02-18T09:44:40 | G88: 16682 | H88: 21664.93506 | I88: 0.38376942 | J88: 0.5 | K88: 1 | L88: 0.14 | M88: 1.4 | N88: Greece | O88: Greece | U88: Greece | V88: Grécia | W88: 希腊 | X88: 希臘 | Y88: Griekenland | Z88: Grèce | AA88: Griechenland | AB88: Grecia | AC88: ギリシャ | AD88: 그리스 | AE88: Grecja | AF88: Grécia | AG88: Греция | AH88: Grecia | AI88: Grekland | AM88: euro | AN88: euro | AO88: 欧元 | AP88: 歐元 | AQ88: euro | AR88: euro | AS88: Euro | AT88: Euro | AU88: ユーロ | AV88: 유로 | AW88: euro | AX88: euro | AY88: евро | AZ88: euro | BA88: euro
A89: kronerDkr | B89: Greenland | C89: kroner | D89: Dkr | E89: 5.72 | F89: 2011-02-18T09:44:43 | G89: 300000 | H89: 52447.55245 | I89: 0.929048101 | J89: 0.6 | K89: 1 | L89: 0.15 | M89: 1.5 | N89: Greenland | O89: Greenland | U89: Greenland | V89: Groenlândia | W89: 格陵兰 | X89: 格陵蘭 | Y89: Groenland | Z89: Groenland | AA89: Grönland | AB89: Groenlandia | AC89: グリーンランド | AD89: 그린란드 | AE89: Grenlandia | AF89: Gronelândia | AG89: Гренландия | AH89: Groenlandia | AI89: Grönland | AM89: kroner | AN89: coroa | AO89: 克埃 | AP89: 丹麥克郎 | AQ89: kroner | AR89: couronne danoise | AS89: Krone | AT89: Corona | AU89: クローネ | AV89: 크로나 | AW89: korona | AX89: coroa | AY89: крона | AZ89: corona | BA89: kronor
A90: dollarEC$ | B90: Grenada | C90: dollar | D90: EC$ | E90: =VLOOKUP(B90,ImportInfo!$D$1:$E$188,2,FALSE) -> 2.7 | F90: 2011-02-18T09:44:40 | G90: 98755 | H90: 36575.92593 | I90: 0.6479004823 | J90: 0.3 | K90: 1 | L90: 0.15 | M90: 1.5 | N90: Grenada | O90: Grenada | U90: Grenada | V90: Granada | W90: 格林纳达 | X90: 格瑞那達 | Y90: Grenada | Z90: Grenade | AA90: Grenada | AB90: Grenada | AC90: グレナダ | AD90: 그레나다 | AE90: Grenada | AF90: Granada | AG90: Гренада | AH90: Granada | AI90: Grenada | AM90: dollar | AN90: dólar | AO90: 津巴布韦元 | AP90: 東加勒比幣 | AQ90: dollar | AR90: dollar | AS90: Dollar | AT90: Dollaro | AU90: ドル | AV90: 달러 | AW90: dolar | AX90: dólar | AY90: доллар | AZ90: dólar | BA90: dollar
A91: euro€ | B91: Guadeloupe | C91: euro | D91: € | E91: 0.77 | F91: 2011-02-18T09:44:43 | G91: 35000 | H91: 45454.54545 | I91: 0.8051750209 | J91: 0.3 | K91: 1 | L91: 0.15 | M91: 1.5 | N91: Guadeloupe | O91: Guadeloupe | U91: Guadeloupe | V91: Guadalupe | W91: 瓜德罗普 | X91: 哥德普洛 | Y91: Guadeloupe | Z91: Guadeloupe | AA91: Guadeloupe | AB91: Guadalupa | AC91: グアドループ | AD91: 과들루프 | AE91: Gwadelupa | AF91: Guadalupe | AG91: Гваделупа | AH91: Guadalupe | AI91: Guadeloupe | AM91: euro | AN91: euro | AO91: 欧元 | AP91: 歐元 | AQ91: euro | AR91: euro | AS91: Euro | AT91: Euro | AU91: ユーロ | AV91: 유로 | AW91: euro | AX91: euro | AY91: евро | AZ91: euro | BA91: euro
A92: dollarUS$ | B92: Guam | C92: dollar | D92: US$ | E92: 1 | F92: 2009-11-11T14:08:34 | G92: 60000 | H92: 60000 | I92: 1.062831028 | J92: 0.4 | K92: 1 | L92: 0.15 | M92: 1.5 | N92: Guam | O92: Guam | U92: Guam | V92: Guam | W92: 关岛 | X92: 關島 | Y92: Guam | Z92: Guam | AA92: Guam | AB92: Guam | AC92: グアム | AD92: 괌 | AE92: Guam | AF92: Guam | AG92: Гуам | AH92: Guam | AI92: Guam | AM92: dollar | AN92: dólar | AO92: 津巴布韦元 | AP92: 美元 | AQ92: dollar | AR92: dollar | AS92: Dollar | AT92: Dollaro | AU92: ドル | AV92: 달러 | AW92: dolar | AX92: dólar | AY92: доллар | AZ92: dólar | BA92: dollar
A93: quetzalQ | B93: Guatemala | C93: quetzal | D93: Q | E93: =VLOOKUP(B93,ImportInfo!$D$1:$E$188,2,FALSE) -> 8 | F93: 2011-02-18T09:44:40 | G93: 298699 | H93: 37337.375 | I93: 0.6613886773 | J93: 0.2 | K93: 1 | L93: 0.15 | M93: 1.5 | N93: Guatemala | O93: Guatemala | U93: Guatemala | V93: Guatemala | W93: 危地马拉 | X93: 瓜地馬拉 | Y93: Guatemala | Z93: Guatemala | AA93: Guatemala | AB93: Guatemala | AC93: グアテマラ | AD93: 과테말라 | AE93: Gwatemala | AF93: Guatemala | AG93: Гватемала | AH93: Guatemala | AI93: Guatemala | AM93: quetzal | AN93: quetzal | AO93: 格查尔 | AP93: 格查爾 | AQ93: quetzal | AR93: quetzal | AS93: Quetzal | AT93: Quetzal | AU93: ケツァル | AV93: 케찰 | AW93: quetzal | AX93: quetzal | AY93: кетсаль | AZ93: quetzal | BA93: quetzal
A94: pound£ | B94: Guernsey | C94: pound | D94: £ | E94: 0.64 | F94: 2011-02-18T09:44:43 | G94: 41090 | H94: 64203.125 | I94: 1.137284555 | J94: 0.5 | K94: 1 | L94: 0.15 | M94: 1.5 | N94: Guernsey | O94: Guernsey | U94: Guernsey | V94: Guernsey | W94: 根西 | X94: 格恩西島 | Y94: Guernsey | Z94: Guernesey | AA94: Guernsey | AB94: Guernsey | AC94: ガーンジー島 | AD94: 건지 | AE94: Guernsey | AF94: Guernsey | AG94: Гернси | AH94: Guernsey | AI94: Guernsey | AM94: pound | AN94: libra | AO94: 英镑 | AP94: 英鎊 | AQ94: pound | AR94: livre sterling | AS94: Pfund | AT94: Sterlina | AU94: ポンド | AV94: 파운드 | AW94: funt | AX94: libra | AY94: фунт | AZ94: libra | BA94: pund
A95: francGNF | B95: Guinea | C95: franc | D95: GNF | E95: =VLOOKUP(B95,ImportInfo!$D$1:$E$188,2,FALSE) -> 6078 | F95: 2011-02-18T09:44:40 | G95: 70598326 | H95: 11615.38763 | I95: 0.2057532395 | J95: 0 | K95: 1 | L95: 0.15 | M95: 1.5 | N95: Guinea | O95: Guinea | U95: Guinea | V95: Guiné | W95: 几内亚 | X95: 幾內亞 | Y95: Guinee | Z95: Guinée | AA95: Guinea | AB95: Guinea | AC95: ギニア | AD95: 기니 | AE95: Gwinea | AF95: Guiné | AG95: Гвинея | AH95: Guinea | AI95: Guinea | AM95: franc | AN95: franco | AO95: 法郎 | AP95: 幾內亞法郎 | AQ95: franc | AR95: franc CFP | AS95: Franc | AT95: Franco | AU95: フラン | AV95: 프랑 | AW95: frank | AX95: franco | AY95: франк | AZ95: franco | BA95: franc
A96: francCFAF | B96: Guinea-Bissau | C96: franc | D96: CFAF | E96: 503.3 | F96: 2011-02-18T09:44:43 | G96: 25438488 | H96: 50543.38963 | I96: 0.8953180456 | J96: 0 | K96: 1 | L96: 0.15 | M96: 1.5 | N96: Guinea-Bissau | O96: Guinea-Bissau | U96: Guinea-Bissau | V96: Guiné-Bissau | W96: 几内亚比绍 | X96: 幾內亞比索 | Y96: Guinee-Bissau | Z96: Guinée-Bissau | AA96: Guinea-Bissau | AB96: Guinea-Bissau | AC96: ギニアビサウ | AD96: 기니비사우 | AE96: Gwinea Bissau | AF96: Guiné-Bissau | AG96: Гвинея-Бисау | AH96: Guinea-Bissau | AI96: Guinea-Bissau | AM96: franc | AN96: franco | AO96: 法郎 | AP96: 法郎 | AQ96: franc | AR96: franc CFP | AS96: Franc | AT96: Franco | AU96: フラン | AV96: 프랑 | AW96: frank | AX96: franco | AY96: франк | AZ96: franco | BA96: franc
A97: dollarG$ | B97: Guyana | C97: dollar | D97: G$ | E97: =VLOOKUP(B97,ImportInfo!$D$1:$E$188,2,FALSE) -> 201 | F97: 2011-02-18T09:44:40 | G97: 6410445 | H97: 31892.76119 | I97: 0.5649436025 | J97: 0 | K97: 1 | L97: 0.15 | M97: 1.5 | N97: Guyana | O97: Guyana | U97: Guyana | V97: Guiana | W97: 圭亚那 | X97: 蓋亞納 | Y97: Guyana | Z97: Guyane | AA97: Guyana | AB97: Guyana | AC97: ガイアナ | AD97: 가이아나 | AE97: Gujana | AF97: Guiana | AG97: Гайана | AH97: Guyana | AI97: Guyana | AM97: dollar | AN97: dólar | AO97: 津巴布韦元 | AP97: 圭亞那幣 | AQ97: dollar | AR97: dollar | AS97: Dollar | AT97: Dollaro | AU97: ドル | AV97: 달러 | AW97: dolar | AX97: dólar | AY97: доллар | AZ97: dólar | BA97: dollar
A98: gourdeG | B98: Haiti | C98: gourde | D98: G | E98: =VLOOKUP(B98,ImportInfo!$D$1:$E$188,2,FALSE) -> 38.5 | F98: 2011-02-18T09:44:40 | G98: 846125 | H98: 21977.27273 | I98: 0.3893021226 | J98: 0 | K98: 1 | L98: 0.135 | M98: 1.35 | N98: Haiti | O98: Haiti | U98: Haiti | V98: Haiti | W98: 海地 | X98: 海地 | Y98: Haïti | Z98: Haïti | AA98: Haiti | AB98: Haiti | AC98: ハイチ | AD98: 아이티 | AE98: Haiti | AF98: Haiti | AG98: Гаити | AH98: Haití | AI98: Haiti | AM98: gourde | AN98: gourde | AO98: 古德 | AP98: 古德 | AQ98: gourde | AR98: gourde | AS98: Gourde | AT98: Gourde | AU98: グールド | AV98: 구르드 | AW98: gourde | AX98: gurde | AY98: гурд | AZ98: gurda | BA98: gourde
A99: dollarA$ | B99: Heard and McDonald Islands | C99: dollar | D99: A$ | E99: 1.04 | F99: 2011-02-18T09:44:43 | G99: 66000 | H99: 63461.53846 | I99: 1.124148202 | J99: 0.5 | K99: 1 | L99: 0.15 | M99: 1.5 | N99: Heard and McDonald Islands | O99: Heard and McDonald Islands | U99: Heard and McDonald Islands | V99: Ilhas Heard e McDonald | W99: 赫德和麦克唐纳群岛 | X99: 赫德島及麥當勞群島 | Y99: Heard en McDonaldeilanden | Z99: Heard et McDonald (îles) | AA99: Heard und McDonaldinseln | AB99: Isole Heard e McDonald | AC99: ハード・マクドナルド諸島 | AD99: 허드 섬 및 맥도널드 제도 | AE99: Wyspy Heard i McDonald | AF99: Ilhas Heard e McDonald | AG99: Heard and McDonald Islands | AH99: Islas Heard y McDonald | AI99: Heardön och McDonaldöarna | AM99: dollar | AN99: dólar | AO99: 津巴布韦元 | AP99: 澳幣 | AQ99: dollar | AR99: dollar | AS99: Dollar | AT99: Dollaro | AU99: ドル | AV99: 달러 | AW99: dolar | AX99: dólar | AY99: доллар | AZ99: dólar | BA99: dollar
A100: lempiraL | B100: Honduras | C100: lempira | D100: L | E100: =VLOOKUP(B100,ImportInfo!$D$1:$E$188,2,FALSE) -> 18.9 | F100: 2011-02-18T09:44:40 | G100: 529475 | H100: 28014.55026 | I100: 0.4962455541 | J100: 0.2 | K100: 1 | L100: 0.15 | M100: 1.5 | N100: Honduras | O100: Honduras | U100: Honduras | V100: Honduras | W100: 洪都拉斯 | X100: 宏都拉斯 | Y100: Honduras | Z100: Honduras | AA100: Honduras | AB100: Honduras | AC100: ホンジュラス | AD100: 온두라스 | AE100: Honduras | AF100: Honduras | AG100: Гондурас | AH100: Honduras | AI100: Honduras | AM100: lempira | AN100: lempira | AO100: 伦皮拉 | AP100: 倫皮拉 | AQ100: lempira | AR100: lempira | AS100: Lempira | AT100: Lempira | AU100: レンピラ | AV100: 렘피라 | AW100: lempira | AX100: lempira | AY100: лемпира | AZ100: lempira | BA100: lempira
A101: dollarHK$ | B101: Hong Kong | C101: dollar | D101: HK$ | E101: =VLOOKUP(B101,ImportInfo!$D$1:$E$188,2,FALSE) -> 7.77 | F101: 2011-02-18T09:44:41 | G101: 277980 | H101: 35776.06178 | I101: 0.6337318083 | J101: 0.5 | K101: 1 | L101: 0.15 | M101: 1.5 | N101: Hong Kong | O101: Hong Kong | U101: Hong Kong | V101: Hong Kong | W101: 香港特别行政区 | X101: 香港 | Y101: Hongkong | Z101: Hong Kong | AA101: Hongkong | AB101: Hong Kong | AC101: 香港 | AD101: 홍콩 | AE101: Hongkong | AF101: Hong Kong | AG101: Гонконг | AH101: Hong Kong | AI101: Hongkong | AM101: dollar | AN101: dólar | AO101: 津巴布韦元 | AP101: 港幣 | AQ101: dollar | AR101: dollar | AS101: Dollar | AT101: Dollaro | AU101: ドル | AV101: 달러 | AW101: dolar | AX101: dólar | AY101: доллар | AZ101: dólar | BA101: dollar
A102: forintFt | B102: Hungary | C102: forint | D102: Ft | E102: =VLOOKUP(B102,ImportInfo!$D$1:$E$188,2,FALSE) -> 217.12 | F102: 2011-02-18T09:44:41 | G102: 4215385 | H102: 19415.00092 | I102: 0.343914423 | J102: 0.2 | K102: 1 | L102: 0.207 | M102: 2.07 | N102: Hungary | O102: Hungary | U102: Hungary | V102: Hungria | W102: 匈牙利 | X102: 匈牙利 | Y102: Hongarije | Z102: Hongrie | AA102: Ungarn | AB102: Ungheria | AC102: ハンガリー | AD102: 헝가리 | AE102: Węgry | AF102: Hungria | AG102: Венгрия | AH102: Hungría | AI102: Ungern | AM102: forint | AN102: forinto | AO102: 福林 | AP102: 富林特 | AQ102: forint | AR102: forint | AS102: Forint | AT102: Fiorino | AU102: フォリント | AV102: 포린트 | AW102: forint | AX102: forint | AY102: форинт | AZ102: forint | BA102: forint
A103: krónaIKr | B103: Iceland | C103: króna | D103: IKr | E103: =VLOOKUP(B103,ImportInfo!$D$1:$E$188,2,FALSE) -> 117.07 | F103: 2011-02-18T09:44:41 | G103: 7610474 | H103: 65007.89271 | I103: 1.15154009 | J103: 0.6 | K103: 1 | L103: 0.15 | M103: 1.5 | N103: Iceland | O103: Iceland | U103: Iceland | V103: Islândia | W103: 冰岛 | X103: 冰島 | Y103: IJsland | Z103: Islande | AA103: Island | AB103: Islanda | AC103: アイスランド | AD103: 아이슬란드 | AE103: Islandia | AF103: Islândia | AG103: Исландия | AH103: Islandia | AI103: Island | AM103: króna | AN103: coroa | AO103: 克朗 | AP103: 冰島克郎 | AQ103: króna | AR103: couronne islandaise | AS103: Krone | AT103: Corona | AU103: クローネ | AV103: 크로나 | AW103: korona | AX103: coroa | AY103: крона | AZ103: corona | BA103: króna
A104: rupee₨ | B104: India | C104: rupee | D104: ₨ | E104: =VLOOKUP(B104,ImportInfo!$D$1:$E$188,2,FALSE) -> 45.7 | F104: 2011-02-18T09:44:41 | G104: 910343 | H104: 19919.97812 | I104: 0.3528595135 | J104: 0.2 | K104: 1 | L104: 0.047 | M104: 0.47 | N104: India | O104: India | U104: India | V104: Índia | W104: 印度 | X104: 印度 | Y104: India | Z104: Inde | AA104: Indien | AB104: India | AC104: インド | AD104: 인도 | AE104: Indie | AF104: Índia | AG104: Индия | AH104: India | AI104: Indien | AM104: rupee | AN104: rúpia | AO104: 卢比 | AP104: 印度盧比 | AQ104: rupee | AR104: roupie | AS104: Rupie | AT104: Rupia | AU104: ルピー | AV104: 루피 | AW104: rupia | AX104: rupia | AY104: рупия | AZ104: rupia | BA104: rupie
A105: rupiahRp | B105: Indonesia | C105: rupiah | D105: Rp | E105: =VLOOKUP(B105,ImportInfo!$D$1:$E$188,2,FALSE) -> 8900 | F105: 2011-02-18T09:44:41 | G105: 380936780 | H105: 42801.88539 | I105: 0.7581861972 | J105: 0.2 | K105: 1 | L105: 0.06 | M105: 0.6 | N105: Indonesia | O105: Indonesia | U105: Indonesia | V105: Indonésia | W105: 印度尼西亚 | X105: 印尼 | Y105: Indonesië | Z105: Indonésie | AA105: Indonesien | AB105: Indonesia | AC105: インドネシア | AD105: 인도네시아 | AE105: Indonezja | AF105: Indonésia | AG105: Индонезия | AH105: Indonesia | AI105: Indonesien | AM105: rupiah | AN105: rúpia | AO105: 卢比 | AP105: 印尼盧比 | AQ105: rupiah | AR105: roupie | AS105: Rupiah | AT105: Rupia | AU105: ルピア | AV105: 루피아 | AW105: rupia | AX105: rupia | AY105: рупия | AZ105: rupia | BA105: rupiah
A106: rial﷼ | B106: Iran | C106: rial | D106: ﷼ | E106: =VLOOKUP(B106,ImportInfo!$D$1:$E$188,2,FALSE) -> 8229 | F106: 2011-02-18T09:44:41 | G106: 155381551 | H106: 18882.19115 | I106: 0.3344763104 | J106: 0 | K106: 1 | L106: 0.15 | M106: 1.5 | N106: Iran | O106: Iran | U106: Iran | V106: Irã | W106: 伊朗 | X106: 伊朗 | Y106: Iran | Z106: Iran | AA106: Iran | AB106: Iran | AC106: イラン | AD106: 이란 | AE106: Iran | AF106: Irão | AG106: Иран | AH106: Irán | AI106: Iran | AM106: rial | AN106: rial | AO106: 里亚尔 | AP106: 伊朗里亞爾 | AQ106: rial | AR106: rial | AS106: Rial | AT106: Rial | AU106: リアル | AV106: 리알 | AW106: rial | AX106: rial | AY106: риал | AZ106: rial | BA106: rial
A107: new dinarID | B107: Iraq | C107: new dinar | D107: ID | E107: =VLOOKUP(B107,ImportInfo!$D$1:$E$188,2,FALSE) -> 1166.5 | F107: 2011-02-18T09:44:41 | G107: 20109022 | H107: 17238.76725 | I107: 0.3053649452 | J107: 0 | K107: 1 | L107: 0.15 | M107: 1.5 | N107: Iraq | O107: Iraq | U107: Iraq | V107: Iraque | W107: 伊拉克 | X107: 伊拉克 | Y107: Irak | Z107: Irak | AA107: Irak | AB107: Iraq | AC107: イラク | AD107: 이라크 | AE107: Irak | AF107: Iraque | AG107: Ирак | AH107: Iraq | AI107: Irak | AM107: new dinar | AN107: novo dinar | AO107: 新第纳尔 | AP107: 新第納爾 | AQ107: new dinar | AR107: nouveau dinar | AS107: Neuer Dinar | AT107: Nuovo Dinaro | AU107: 新ディナール | AV107: 뉴 디나르 | AW107: nowy dinar | AX107: novo dinar | AY107: новый динар | AZ107: nuevo dinar | BA107: nya dinar
A108: euro€ | B108: Ireland | C108: euro | D108: € | E108: =VLOOKUP(B108,ImportInfo!$D$1:$E$188,2,FALSE) -> 0.77 | F108: 2011-02-18T09:44:41 | G108: 34533 | H108: 44848.05195 | I108: 0.7944316856 | J108: 0.75 | K108: 1 | L108: 0.22 | M108: 2.2 | N108: Ireland | O108: Ireland | U108: Ireland | V108: Irlanda | W108: 爱尔兰 | X108: 愛爾蘭 | Y108: Ierland | Z108: Irlande | AA108: Irland | AB108: Irlanda | AC108: アイルランド | AD108: 아일랜드 | AE108: Irlandia | AF108: Irlanda | AG108: Ирландия | AH108: Irlanda | AI108: Irland | AM108: euro | AN108: euro | AO108: 欧元 | AP108: 歐元 | AQ108: euro | AR108: euro | AS108: Euro | AT108: Euro | AU108: ユーロ | AV108: 유로 | AW108: euro | AX108: euro | AY108: евро | AZ108: euro | BA108: euro
